Body Name,Body,Service Label,Service Code,CIPFA Detailed Expenditure Type,CIPFA Detailed Expenditure Code,Date,Transaction Number,Net Amount,Supplier Name
Nottinghamshire County Council,1111/1001,Children and Young People,CYP,Employee Related,ABA,08/08/2022,05-17759,595.00,Sleep Charity
Nottinghamshire County Council,1111/1001,Children and Young People,CYP,Employee Related,ABA,08/08/2022,05-17778,595,Sleep Charity
Nottinghamshire County Council,1111/1001,Children and Young People,CYP,Premises Related,BAA,02/08/2022,05-10552,11854.66,ARC Property Services Partnership L
Nottinghamshire County Council,1111/1001,Children and Young People,CYP,Premises Related,BAA,09/08/2022,05-11983,5364.67,ARC Property Services Partnership L
Nottinghamshire County Council,1111/1001,Children and Young People,CYP,Premises Related,BAA,15/08/2022,05-12547,7234,ARC Property Services Partnership L
Nottinghamshire County Council,1111/1001,Children and Young People,CYP,Premises Related,BAA,18/08/2022,05-14098,"6,817.69",ARC Property Services Partnership L
Nottinghamshire County Council,1111/1001,Children and Young People,CYP,Premises Related,BDA,01/08/2022,05-10001,"1,085.00",High Peak Borough Council
Nottinghamshire County Council,1111/1001,Children and Young People,CYP,Premises Related,BDA,01/08/2022,05-10002,886,Derbyshire Dales District Council
Nottinghamshire County Council,1111/1001,Children and Young People,CYP,Premises Related,BDA,01/08/2022,05-10003,920.00,Portland College
Nottinghamshire County Council,1111/1001,Children and Young People,CYP,Premises Related,BDA,01/08/2022,05-10004,1500,Portland College
Nottinghamshire County Council,1111/1001,Children and Young People,CYP,Premises Related,BDA,01/08/2022,05-17723,"2,500.00",Active4Today Ltd
Nottinghamshire County Council,1111/1001,Children and Young People,CYP,Premises Related,BDA,05/08/2022,05-10754,11454.95,Calder Conferences Ltd
Nottinghamshire County Council,1111/1001,Children and Young People,CYP,Premises Related,BDA,11/08/2022,05-17920,3363.03,More Community Leisure Trust
Nottinghamshire County Council,1111/1001,Children and Young People,CYP,Premises Related,BDA,15/08/2022,05-17842,2137.62,Lex Leisure CIC
Nottinghamshire County Council,1111/1001,Children and Young People,CYP,Premises Related,BJA,04/08/2022,05-17746,552.34,Herts FullStop (890000)
Nottinghamshire County Council,1111/1001,Children and Young People,CYP,Transport Related,CAA,03/08/2022,05-10118,79.75,UK Fuels Ltd
Nottinghamshire County Council,1111/1001,Children and Young People,CYP,Transport Related,CAA,03/08/2022,05-10560,5452.55,Via East Midlands Ltd
Nottinghamshire County Council,1111/1001,Children and Young People,CYP,Transport Related,CAA,10/08/2022,05-10126,415.04,UK Fuels Ltd
Nottinghamshire County Council,1111/1001,Children and Young People,CYP,Transport Related,CAA,16/08/2022,05-11342,190.22,UK Fuels Ltd
Nottinghamshire County Council,1111/1001,Children and Young People,CYP,Transport Related,CAA,24/08/2022,05-14498,68.93,UK Fuels Ltd
Nottinghamshire County Council,1111/1001,Children and Young People,CYP,Transport Related,CAA,25/08/2022,05-14567,1013,Via East Midlands Ltd
Nottinghamshire County Council,1111/1001,Children and Young People,CYP,Transport Related,CAA,30/08/2022,05-17309,1207.44,Via East Midlands Ltd
Nottinghamshire County Council,1111/1001,Children and Young People,CYP,Transport Related,CAA,30/08/2022,05-17314,309.51,Via East Midlands Ltd
Nottinghamshire County Council,1111/1001,Children and Young People,CYP,Transport Related,CAA,31/08/2022,05-14492,248.69,UK Fuels Ltd
Nottinghamshire County Council,1111/1001,Children and Young People,CYP,Transport Related,CCA,08/08/2022,05-11682,2121.6,Taxicover Uk Ltd
Nottinghamshire County Council,1111/1001,Children and Young People,CYP,Transport Related,CCA,08/08/2022,05-11683,"2,924.00",Taxicover Uk Ltd
Nottinghamshire County Council,1111/1001,Children and Young People,CYP,Transport Related,CCA,08/08/2022,05-11684,"2,924.00",Taxicover Uk Ltd
Nottinghamshire County Council,1111/1001,Children and Young People,CYP,Transport Related,CCA,08/08/2022,05-11685,"1,732.64",Taxicover Uk Ltd
Nottinghamshire County Council,1111/1001,Children and Young People,CYP,Transport Related,CCA,08/08/2022,05-11686,1872,Taxicover Uk Ltd
Nottinghamshire County Council,1111/1001,Children and Young People,CYP,Transport Related,CCA,08/08/2022,05-11687,"2,321.28",Taxicover Uk Ltd
Nottinghamshire County Council,1111/1001,Children and Young People,CYP,Transport Related,CCA,08/08/2022,05-11688,1872,Taxicover Uk Ltd
Nottinghamshire County Council,1111/1001,Children and Young People,CYP,Transport Related,CCA,08/08/2022,05-11689,"2,094.56",Taxicover Uk Ltd
Nottinghamshire County Council,1111/1001,Children and Young People,CYP,Transport Related,CCA,08/08/2022,05-11690,3136.2,All Wayz Travel
Nottinghamshire County Council,1111/1001,Children and Young People,CYP,Transport Related,CCA,08/08/2022,05-11691,2159.46,All Wayz Travel
Nottinghamshire County Council,1111/1001,Children and Young People,CYP,Transport Related,CCA,08/08/2022,05-11692,2371.2,All Wayz Travel
Nottinghamshire County Council,1111/1001,Children and Young People,CYP,Transport Related,CCA,08/08/2022,05-11693,"2,340.00",All Wayz Travel
Nottinghamshire County Council,1111/1001,Children and Young People,CYP,Transport Related,CCA,08/08/2022,05-11694,"3,680.49",All Wayz Travel
Nottinghamshire County Council,1111/1001,Children and Young People,CYP,Transport Related,CCA,08/08/2022,05-11695,"1,497.60",All Wayz Travel
Nottinghamshire County Council,1111/1001,Children and Young People,CYP,Transport Related,CCA,08/08/2022,05-11696,3440.88,Glenn Ryder Coaches
Nottinghamshire County Council,1111/1001,Children and Young People,CYP,Transport Related,CCA,08/08/2022,05-11697,"3,440.88",Glenn Ryder Coaches
Nottinghamshire County Council,1111/1001,Children and Young People,CYP,Transport Related,CCA,08/08/2022,05-11698,"4,394.50",Glenn Ryder Coaches
Nottinghamshire County Council,1111/1001,Children and Young People,CYP,Transport Related,CCA,08/08/2022,05-11699,4940,Johnson Bros Tours Ltd
Nottinghamshire County Council,1111/1001,Children and Young People,CYP,Transport Related,CCA,08/08/2022,05-11700,2933.35,Martins Travel
Nottinghamshire County Council,1111/1001,Children and Young People,CYP,Transport Related,CCA,08/08/2022,05-11701,1123.2,200 Cars Ltd
Nottinghamshire County Council,1111/1001,Children and Young People,CYP,Transport Related,CCA,08/08/2022,05-11702,732.16,200 Cars Ltd
Nottinghamshire County Council,1111/1001,Children and Young People,CYP,Transport Related,CCA,08/08/2022,05-11703,"1,872.00",200 Cars Ltd
Nottinghamshire County Council,1111/1001,Children and Young People,CYP,Transport Related,CCA,08/08/2022,05-11706,2824.92,Arnold Acorn Travel
Nottinghamshire County Council,1111/1001,Children and Young People,CYP,Transport Related,CCA,08/08/2022,05-11707,702.00,Acorn Contracts
Nottinghamshire County Council,1111/1001,Children and Young People,CYP,Transport Related,CCA,08/08/2022,05-11708,948.48,Acorn Contracts
Nottinghamshire County Council,1111/1001,Children and Young People,CYP,Transport Related,CCA,08/08/2022,05-11709,1440,Acorn Contracts
Nottinghamshire County Council,1111/1001,Children and Young People,CYP,Transport Related,CCA,08/08/2022,05-11710,"1,925.10",Alpha Cars
Nottinghamshire County Council,1111/1001,Children and Young People,CYP,Transport Related,CCA,08/08/2022,05-11711,2634.35,Alpha Cars
Nottinghamshire County Council,1111/1001,Children and Young People,CYP,Transport Related,CCA,08/08/2022,05-11712,2625,Alpha Cars
Nottinghamshire County Council,1111/1001,Children and Young People,CYP,Transport Related,CCA,08/08/2022,05-11713,"1,679.60",Alpha Cars
Nottinghamshire County Council,1111/1001,Children and Young People,CYP,Transport Related,CCA,08/08/2022,05-11714,1769.04,Alpha Cars
Nottinghamshire County Council,1111/1001,Children and Young People,CYP,Transport Related,CCA,08/08/2022,05-11716,"1,470.18",Alpha Cars
Nottinghamshire County Council,1111/1001,Children and Young People,CYP,Transport Related,CCA,08/08/2022,05-11718,2160,Alpha Cars
Nottinghamshire County Council,1111/1001,Children and Young People,CYP,Transport Related,CCA,08/08/2022,05-11721,"3,139.38",Arrow Specialised Transport Ltd
Nottinghamshire County Council,1111/1001,Children and Young People,CYP,Transport Related,CCA,08/08/2022,05-11722,4208.88,Arrow Specialised Transport Ltd
Nottinghamshire County Council,1111/1001,Children and Young People,CYP,Transport Related,CCA,08/08/2022,05-11723,3210.43,Arrow Specialised Transport Ltd
Nottinghamshire County Council,1111/1001,Children and Young People,CYP,Transport Related,CCA,08/08/2022,05-11724,3818.81,Arrow Specialised Transport Ltd
Nottinghamshire County Council,1111/1001,Children and Young People,CYP,Transport Related,CCA,08/08/2022,05-11725,"3,695.50",Arrow Specialised Transport Ltd
Nottinghamshire County Council,1111/1001,Children and Young People,CYP,Transport Related,CCA,08/08/2022,05-11726,2291.4,Arrow Specialised Transport Ltd
Nottinghamshire County Council,1111/1001,Children and Young People,CYP,Transport Related,CCA,08/08/2022,05-11727,"2,621.52",Arrow Specialised Transport Ltd
Nottinghamshire County Council,1111/1001,Children and Young People,CYP,Transport Related,CCA,08/08/2022,05-11728,2947.86,Arrow Specialised Transport Ltd
Nottinghamshire County Council,1111/1001,Children and Young People,CYP,Transport Related,CCA,08/08/2022,05-11729,5226.84,Arrow Specialised Transport Ltd
Nottinghamshire County Council,1111/1001,Children and Young People,CYP,Transport Related,CCA,08/08/2022,05-11730,"2,545.92",Arrow Specialised Transport Ltd
Nottinghamshire County Council,1111/1001,Children and Young People,CYP,Transport Related,CCA,08/08/2022,05-11731,3646.5,Arrow Specialised Transport Ltd
Nottinghamshire County Council,1111/1001,Children and Young People,CYP,Transport Related,CCA,08/08/2022,05-11732,3981.96,Arrow Specialised Transport Ltd
Nottinghamshire County Council,1111/1001,Children and Young People,CYP,Transport Related,CCA,08/08/2022,05-11733,3218.94,Arrow Specialised Transport Ltd
Nottinghamshire County Council,1111/1001,Children and Young People,CYP,Transport Related,CCA,08/08/2022,05-11734,3042.9,Arrow Specialised Transport Ltd
Nottinghamshire County Council,1111/1001,Children and Young People,CYP,Transport Related,CCA,08/08/2022,05-11735,2594.52,Arrow Specialised Transport Ltd
Nottinghamshire County Council,1111/1001,Children and Young People,CYP,Transport Related,CCA,08/08/2022,05-11736,2331.54,Arrow Specialised Transport Ltd
Nottinghamshire County Council,1111/1001,Children and Young People,CYP,Transport Related,CCA,08/08/2022,05-11737,3205.26,Arrow Specialised Transport Ltd
Nottinghamshire County Council,1111/1001,Children and Young People,CYP,Transport Related,CCA,08/08/2022,05-11738,2972.7,Arrow Specialised Transport Ltd
Nottinghamshire County Council,1111/1001,Children and Young People,CYP,Transport Related,CCA,08/08/2022,05-11739,2156.58,Arrow Specialised Transport Ltd
Nottinghamshire County Council,1111/1001,Children and Young People,CYP,Transport Related,CCA,08/08/2022,05-11740,3103.74,Arrow Specialised Transport Ltd
Nottinghamshire County Council,1111/1001,Children and Young People,CYP,Transport Related,CCA,08/08/2022,05-11741,3203.28,Arrow Specialised Transport Ltd
Nottinghamshire County Council,1111/1001,Children and Young People,CYP,Transport Related,CCA,08/08/2022,05-11742,2328.26,Arrow Specialised Transport Ltd
Nottinghamshire County Council,1111/1001,Children and Young People,CYP,Transport Related,CCA,08/08/2022,05-11743,2354.94,Arrow Specialised Transport Ltd
Nottinghamshire County Council,1111/1001,Children and Young People,CYP,Transport Related,CCA,08/08/2022,05-11744,3246.48,Arrow Specialised Transport Ltd
Nottinghamshire County Council,1111/1001,Children and Young People,CYP,Transport Related,CCA,08/08/2022,05-11745,2403.72,Arrow Specialised Transport Ltd
Nottinghamshire County Council,1111/1001,Children and Young People,CYP,Transport Related,CCA,08/08/2022,05-11746,2755.26,Arrow Specialised Transport Ltd
Nottinghamshire County Council,1111/1001,Children and Young People,CYP,Transport Related,CCA,08/08/2022,05-11747,2484.18,Arrow Specialised Transport Ltd
Nottinghamshire County Council,1111/1001,Children and Young People,CYP,Transport Related,CCA,08/08/2022,05-11748,3153.96,Arrow Specialised Transport Ltd
Nottinghamshire County Council,1111/1001,Children and Young People,CYP,Transport Related,CCA,08/08/2022,05-11749,1663.02,Arrow Specialised Transport Ltd
Nottinghamshire County Council,1111/1001,Children and Young People,CYP,Transport Related,CCA,08/08/2022,05-11750,1765.62,Arrow Specialised Transport Ltd
Nottinghamshire County Council,1111/1001,Children and Young People,CYP,Transport Related,CCA,08/08/2022,05-11751,2401.38,Arrow Specialised Transport Ltd
Nottinghamshire County Council,1111/1001,Children and Young People,CYP,Transport Related,CCA,08/08/2022,05-11752,2468.88,Arrow Specialised Transport Ltd
Nottinghamshire County Council,1111/1001,Children and Young People,CYP,Transport Related,CCA,08/08/2022,05-11753,2514.06,Arrow Specialised Transport Ltd
Nottinghamshire County Council,1111/1001,Children and Young People,CYP,Transport Related,CCA,08/08/2022,05-11754,2413.8,Arrow Specialised Transport Ltd
Nottinghamshire County Council,1111/1001,Children and Young People,CYP,Transport Related,CCA,08/08/2022,05-11755,3283.56,Arrow Specialised Transport Ltd
Nottinghamshire County Council,1111/1001,Children and Young People,CYP,Transport Related,CCA,08/08/2022,05-11756,2746.98,Arrow Specialised Transport Ltd
Nottinghamshire County Council,1111/1001,Children and Young People,CYP,Transport Related,CCA,08/08/2022,05-11757,2518.92,Arrow Specialised Transport Ltd
Nottinghamshire County Council,1111/1001,Children and Young People,CYP,Transport Related,CCA,08/08/2022,05-11758,2321.28,Arrow Specialised Transport Ltd
Nottinghamshire County Council,1111/1001,Children and Young People,CYP,Transport Related,CCA,08/08/2022,05-11759,3169.58,Arrow Specialised Transport Ltd
Nottinghamshire County Council,1111/1001,Children and Young People,CYP,Transport Related,CCA,08/08/2022,05-11760,2917.26,Arrow Specialised Transport Ltd
Nottinghamshire County Council,1111/1001,Children and Young People,CYP,Transport Related,CCA,08/08/2022,05-11761,2793.06,Arrow Specialised Transport Ltd
Nottinghamshire County Council,1111/1001,Children and Young People,CYP,Transport Related,CCA,08/08/2022,05-11762,3533.4,Arrow Specialised Transport Ltd
Nottinghamshire County Council,1111/1001,Children and Young People,CYP,Transport Related,CCA,08/08/2022,05-11763,4062.24,Arrow Specialised Transport Ltd
Nottinghamshire County Council,1111/1001,Children and Young People,CYP,Transport Related,CCA,08/08/2022,05-11764,5388.59,Arrow Specialised Transport Ltd
Nottinghamshire County Council,1111/1001,Children and Young People,CYP,Transport Related,CCA,08/08/2022,05-11765,2138.45,Arrow Specialised Transport Ltd
Nottinghamshire County Council,1111/1001,Children and Young People,CYP,Transport Related,CCA,08/08/2022,05-11766,3069.83,Arrow Specialised Transport Ltd
Nottinghamshire County Council,1111/1001,Children and Young People,CYP,Transport Related,CCA,08/08/2022,05-11767,4065.05,Arrow Specialised Transport Ltd
Nottinghamshire County Council,1111/1001,Children and Young People,CYP,Transport Related,CCA,08/08/2022,05-11768,2759.75,Arrow Specialised Transport Ltd
Nottinghamshire County Council,1111/1001,Children and Young People,CYP,Transport Related,CCA,08/08/2022,05-11769,4424.34,Arrow Specialised Transport Ltd
Nottinghamshire County Council,1111/1001,Children and Young People,CYP,Transport Related,CCA,08/08/2022,05-11771,2128.5,Arrow Specialised Transport Ltd
Nottinghamshire County Council,1111/1001,Children and Young People,CYP,Transport Related,CCA,08/08/2022,05-11772,4623.84,Arrow Specialised Transport Ltd
Nottinghamshire County Council,1111/1001,Children and Young People,CYP,Transport Related,CCA,08/08/2022,05-11774,2475.45,Bridges Transport Ltd
Nottinghamshire County Council,1111/1001,Children and Young People,CYP,Transport Related,CCA,08/08/2022,05-11775,2265.12,Bridges Transport Ltd
Nottinghamshire County Council,1111/1001,Children and Young People,CYP,Transport Related,CCA,08/08/2022,05-11776,1649.96,Bridges Transport Ltd
Nottinghamshire County Council,1111/1001,Children and Young People,CYP,Transport Related,CCA,08/08/2022,05-11777,768.24,Bridges Transport Ltd
Nottinghamshire County Council,1111/1001,Children and Young People,CYP,Transport Related,CCA,08/08/2022,05-11778,743.82,Bridges Transport Ltd
Nottinghamshire County Council,1111/1001,Children and Young People,CYP,Transport Related,CCA,08/08/2022,05-11779,2683.2,Bridges Transport Ltd
Nottinghamshire County Council,1111/1001,Children and Young People,CYP,Transport Related,CCA,08/08/2022,05-11780,1981.2,Bridges Transport Ltd
Nottinghamshire County Council,1111/1001,Children and Young People,CYP,Transport Related,CCA,08/08/2022,05-11781,1414.4,Fozcabs Newark Taxis
Nottinghamshire County Council,1111/1001,Children and Young People,CYP,Transport Related,CCA,08/08/2022,05-11782,3161.6,Fozcabs Newark Taxis
Nottinghamshire County Council,1111/1001,Children and Young People,CYP,Transport Related,CCA,08/08/2022,05-11783,"1,664.00",Fozcabs Newark Taxis
Nottinghamshire County Council,1111/1001,Children and Young People,CYP,Transport Related,CCA,08/08/2022,05-11784,2412.8,Fozcabs Newark Taxis
Nottinghamshire County Council,1111/1001,Children and Young People,CYP,Transport Related,CCA,08/08/2022,05-11785,2096.64,Fozcabs Newark Taxis
Nottinghamshire County Council,1111/1001,Children and Young People,CYP,Transport Related,CCA,08/08/2022,05-11786,"1,625.00",Fozcabs Newark Taxis
Nottinghamshire County Council,1111/1001,Children and Young People,CYP,Transport Related,CCA,08/08/2022,05-11788,"2,924.00",Horizon Travel
Nottinghamshire County Council,1111/1001,Children and Young People,CYP,Transport Related,CCA,08/08/2022,05-11789,665.6,Ng11 Cars
Nottinghamshire County Council,1111/1001,Children and Young People,CYP,Transport Related,CCA,08/08/2022,05-11790,2163.2,Ng11 Cars
Nottinghamshire County Council,1111/1001,Children and Young People,CYP,Transport Related,CCA,08/08/2022,05-11791,800.00,Ng11 Cars
Nottinghamshire County Council,1111/1001,Children and Young People,CYP,Transport Related,CCA,08/08/2022,05-11792,"1,106.56",Ng11 Cars
Nottinghamshire County Council,1111/1001,Children and Young People,CYP,Transport Related,CCA,08/08/2022,05-11793,1659.84,Ng11 Cars
Nottinghamshire County Council,1111/1001,Children and Young People,CYP,Transport Related,CCA,08/08/2022,05-11794,988,Ng11 Cars
Nottinghamshire County Council,1111/1001,Children and Young People,CYP,Transport Related,CCA,08/08/2022,05-11795,3825,Vallances Coaches
Nottinghamshire County Council,1111/1001,Children and Young People,CYP,Transport Related,CCA,08/08/2022,05-11796,"3,465.28",Vallances Coaches
Nottinghamshire County Council,1111/1001,Children and Young People,CYP,Transport Related,CCA,08/08/2022,05-11797,"4,420.00",Vallances Coaches
Nottinghamshire County Council,1111/1001,Children and Young People,CYP,Transport Related,CCA,08/08/2022,05-11798,"4,080.00",Vallances Coaches
Nottinghamshire County Council,1111/1001,Children and Young People,CYP,Transport Related,CCA,08/08/2022,05-11799,4080,Vallances Coaches
Nottinghamshire County Council,1111/1001,Children and Young People,CYP,Transport Related,CCA,08/08/2022,05-11800,"3,105.05",Midfield Travel
Nottinghamshire County Council,1111/1001,Children and Young People,CYP,Transport Related,CCA,08/08/2022,05-11801,3181.93,Midfield Travel
Nottinghamshire County Council,1111/1001,Children and Young People,CYP,Transport Related,CCA,08/08/2022,05-11802,"2,214.30",Skills Motor Coaches Ltd
Nottinghamshire County Council,1111/1001,Children and Young People,CYP,Transport Related,CCA,08/08/2022,05-11803,"2,701.76",Skills Motor Coaches Ltd
Nottinghamshire County Council,1111/1001,Children and Young People,CYP,Transport Related,CCA,08/08/2022,05-11804,"2,787.53",Skills Motor Coaches Ltd
Nottinghamshire County Council,1111/1001,Children and Young People,CYP,Transport Related,CCA,08/08/2022,05-11805,3648,Skills Motor Coaches Ltd
Nottinghamshire County Council,1111/1001,Children and Young People,CYP,Transport Related,CCA,08/08/2022,05-11806,"3,072.00",Skills Motor Coaches Ltd
Nottinghamshire County Council,1111/1001,Children and Young People,CYP,Transport Related,CCA,08/08/2022,05-11807,2809.98,Skills Motor Coaches Ltd
Nottinghamshire County Council,1111/1001,Children and Young People,CYP,Transport Related,CCA,08/08/2022,05-11808,2190,Skills Motor Coaches Ltd
Nottinghamshire County Council,1111/1001,Children and Young People,CYP,Transport Related,CCA,08/08/2022,05-11809,"2,190.75",Skills Motor Coaches Ltd
Nottinghamshire County Council,1111/1001,Children and Young People,CYP,Transport Related,CCA,08/08/2022,05-11810,636.48,D G Private Hire Ltd
Nottinghamshire County Council,1111/1001,Children and Young People,CYP,Transport Related,CCA,08/08/2022,05-11812,815.36,D G Private Hire Ltd
Nottinghamshire County Council,1111/1001,Children and Young People,CYP,Transport Related,CCA,08/08/2022,05-11813,1622.4,D G Private Hire Ltd
Nottinghamshire County Council,1111/1001,Children and Young People,CYP,Transport Related,CCA,08/08/2022,05-11814,873.60,D G Private Hire Ltd
Nottinghamshire County Council,1111/1001,Children and Young People,CYP,Transport Related,CCA,08/08/2022,05-11815,2074.8,D G Private Hire Ltd
Nottinghamshire County Council,1111/1001,Children and Young People,CYP,Transport Related,CCA,08/08/2022,05-11816,1164.8,D G Private Hire Ltd
Nottinghamshire County Council,1111/1001,Children and Young People,CYP,Transport Related,CCA,08/08/2022,05-11817,945,D G Private Hire Ltd
Nottinghamshire County Council,1111/1001,Children and Young People,CYP,Transport Related,CCA,08/08/2022,05-11818,948.48,D G Private Hire Ltd
Nottinghamshire County Council,1111/1001,Children and Young People,CYP,Transport Related,CCA,08/08/2022,05-11820,1560,Abacus Cars
Nottinghamshire County Council,1111/1001,Children and Young People,CYP,Transport Related,CCA,08/08/2022,05-11821,"3,040.00",Abacus Cars
Nottinghamshire County Council,1111/1001,Children and Young People,CYP,Transport Related,CCA,08/08/2022,05-11822,2704,Abacus Cars
Nottinghamshire County Council,1111/1001,Children and Young People,CYP,Transport Related,CCA,08/08/2022,05-11825,1435.2,Abacus Cars
Nottinghamshire County Council,1111/1001,Children and Young People,CYP,Transport Related,CCA,08/08/2022,05-11826,748.8,Abacus Cars
Nottinghamshire County Council,1111/1001,Children and Young People,CYP,Transport Related,CCA,08/08/2022,05-11828,2340,Abacus Cars
Nottinghamshire County Council,1111/1001,Children and Young People,CYP,Transport Related,CCA,08/08/2022,05-11831,2977.56,AOT Coaches Nottingham LLP
Nottinghamshire County Council,1111/1001,Children and Young People,CYP,Transport Related,CCA,08/08/2022,05-11832,2140.92,AOT Coaches Nottingham LLP
Nottinghamshire County Council,1111/1001,Children and Young People,CYP,Transport Related,CCA,08/08/2022,05-11833,"2,761.82",AOT Coaches Nottingham LLP
Nottinghamshire County Council,1111/1001,Children and Young People,CYP,Transport Related,CCA,08/08/2022,05-11834,"1,822.00",Bryans Taxis
Nottinghamshire County Council,1111/1001,Children and Young People,CYP,Transport Related,CCA,08/08/2022,05-11835,"2,787.75",JB Tours Watnall Ltd
Nottinghamshire County Council,1111/1001,Children and Young People,CYP,Transport Related,CCA,08/08/2022,05-11836,"2,739.90",JB Tours Watnall Ltd
Nottinghamshire County Council,1111/1001,Children and Young People,CYP,Transport Related,CCA,08/08/2022,05-11837,1497.6,K & R Cars
Nottinghamshire County Council,1111/1001,Children and Young People,CYP,Transport Related,CCA,08/08/2022,05-11841,"2,159.66",Marshalls Of Sutton On Trent Ltd
Nottinghamshire County Council,1111/1001,Children and Young People,CYP,Transport Related,CCA,08/08/2022,05-11843,"3,915.62",Marshalls Of Sutton On Trent Ltd
Nottinghamshire County Council,1111/1001,Children and Young People,CYP,Transport Related,CCA,08/08/2022,05-11844,5853.5,Marshalls Of Sutton On Trent Ltd
Nottinghamshire County Council,1111/1001,Children and Young People,CYP,Transport Related,CCA,08/08/2022,05-11845,4312.75,Marshalls Of Sutton On Trent Ltd
Nottinghamshire County Council,1111/1001,Children and Young People,CYP,Transport Related,CCA,08/08/2022,05-11846,1646.2,Marshalls Of Sutton On Trent Ltd
Nottinghamshire County Council,1111/1001,Children and Young People,CYP,Transport Related,CCA,08/08/2022,05-11847,1452.74,Meden Travel
Nottinghamshire County Council,1111/1001,Children and Young People,CYP,Transport Related,CCA,08/08/2022,05-11850,"6,243.00",Silverdale Tours Nottm Ltd
Nottinghamshire County Council,1111/1001,Children and Young People,CYP,Transport Related,CCA,08/08/2022,05-11851,"2,867.40",Silverdale Tours Nottm Ltd
Nottinghamshire County Council,1111/1001,Children and Young People,CYP,Transport Related,CCA,08/08/2022,05-11852,"3,096.72",Silverdale Tours Nottm Ltd
Nottinghamshire County Council,1111/1001,Children and Young People,CYP,Transport Related,CCA,08/08/2022,05-11853,"3,115.98",Silverdale Tours Nottm Ltd
Nottinghamshire County Council,1111/1001,Children and Young People,CYP,Transport Related,CCA,08/08/2022,05-11854,"3,026.70",Silverdale Tours Nottm Ltd
Nottinghamshire County Council,1111/1001,Children and Young People,CYP,Transport Related,CCA,08/08/2022,05-11855,"3,281.58",Silverdale Tours Nottm Ltd
Nottinghamshire County Council,1111/1001,Children and Young People,CYP,Transport Related,CCA,08/08/2022,05-11856,"3,281.58",Silverdale Tours Nottm Ltd
Nottinghamshire County Council,1111/1001,Children and Young People,CYP,Transport Related,CCA,08/08/2022,05-11857,"3,315.00",Tiger European Uk Ltd
Nottinghamshire County Council,1111/1001,Children and Young People,CYP,Transport Related,CCA,08/08/2022,05-11859,"3,572.04",Tiger European Uk Ltd
Nottinghamshire County Council,1111/1001,Children and Young People,CYP,Transport Related,CCA,08/08/2022,05-11860,"3,727.62",Tiger European Uk Ltd
Nottinghamshire County Council,1111/1001,Children and Young People,CYP,Transport Related,CCA,08/08/2022,05-11861,"3,670.20",Tiger European Uk Ltd
Nottinghamshire County Council,1111/1001,Children and Young People,CYP,Transport Related,CCA,08/08/2022,05-11862,"6,595.02",Tiger European Uk Ltd
Nottinghamshire County Council,1111/1001,Children and Young People,CYP,Transport Related,CCA,08/08/2022,05-11863,"4,759.92",Tiger European Uk Ltd
Nottinghamshire County Council,1111/1001,Children and Young People,CYP,Transport Related,CCA,08/08/2022,05-11864,"3,096.72",Tiger European Uk Ltd
Nottinghamshire County Council,1111/1001,Children and Young People,CYP,Transport Related,CCA,08/08/2022,05-11865,"5,310.00",Tiger European Uk Ltd
Nottinghamshire County Council,1111/1001,Children and Young People,CYP,Transport Related,CCA,08/08/2022,05-11866,"4,121.20",Tiger European Uk Ltd
Nottinghamshire County Council,1111/1001,Children and Young People,CYP,Transport Related,CCA,08/08/2022,05-11867,"3,249.72",Tiger European Uk Ltd
Nottinghamshire County Council,1111/1001,Children and Young People,CYP,Transport Related,CCA,08/08/2022,05-11868,"3,164.80",Kettlewell Retford Ltd
Nottinghamshire County Council,1111/1001,Children and Young People,CYP,Transport Related,CCA,08/08/2022,05-11869,"2,017.80",Kettlewell Retford Ltd
Nottinghamshire County Council,1111/1001,Children and Young People,CYP,Transport Related,CCA,08/08/2022,05-11870,"2,527.60",Kettlewell Retford Ltd
Nottinghamshire County Council,1111/1001,Children and Young People,CYP,Transport Related,CCA,08/08/2022,05-11871,"2,400.60",Kettlewell Retford Ltd
Nottinghamshire County Council,1111/1001,Children and Young People,CYP,Transport Related,CCA,08/08/2022,05-11872,"7,519.00",Kettlewell Retford Ltd
Nottinghamshire County Council,1111/1001,Children and Young People,CYP,Transport Related,CCA,08/08/2022,05-11873,"3,483.40",Kettlewell Retford Ltd
Nottinghamshire County Council,1111/1001,Children and Young People,CYP,Transport Related,CCA,08/08/2022,05-11874,900.00,Kettlewell Retford Ltd
Nottinghamshire County Council,1111/1001,Children and Young People,CYP,Transport Related,CCA,08/08/2022,05-11875,"9,400.00",Kettlewell Retford Ltd
Nottinghamshire County Council,1111/1001,Children and Young People,CYP,Transport Related,CCA,08/08/2022,05-11877,"2,246.40",Rio Cabs
Nottinghamshire County Council,1111/1001,Children and Young People,CYP,Transport Related,CCA,08/08/2022,05-11878,"1,479.36",Rio Cabs
Nottinghamshire County Council,1111/1001,Children and Young People,CYP,Transport Related,CCA,08/08/2022,05-11879,"1,542.90",Rio Cabs
Nottinghamshire County Council,1111/1001,Children and Young People,CYP,Transport Related,CCA,08/08/2022,05-11880,"2,985.84",Ace Cars & Minibuses Ltd
Nottinghamshire County Council,1111/1001,Children and Young People,CYP,Transport Related,CCA,08/08/2022,05-11881,"3,052.92",Ace Cars & Minibuses Ltd
Nottinghamshire County Council,1111/1001,Children and Young People,CYP,Transport Related,CCA,08/08/2022,05-11882,"3,151.72",Ace Cars & Minibuses Ltd
Nottinghamshire County Council,1111/1001,Children and Young People,CYP,Transport Related,CCA,08/08/2022,05-11883,"2,558.92",Ace Cars & Minibuses Ltd
Nottinghamshire County Council,1111/1001,Children and Young People,CYP,Transport Related,CCA,08/08/2022,05-11884,"3,349.32",Ace Cars & Minibuses Ltd
Nottinghamshire County Council,1111/1001,Children and Young People,CYP,Transport Related,CCA,08/08/2022,05-11885,"2,954.12",Ace Cars & Minibuses Ltd
Nottinghamshire County Council,1111/1001,Children and Young People,CYP,Transport Related,CCA,08/08/2022,05-11886,"2,321.28",Ace Cars & Minibuses Ltd
Nottinghamshire County Council,1111/1001,Children and Young People,CYP,Transport Related,CCA,08/08/2022,05-11887,"2,773.65",L A Travel
Nottinghamshire County Council,1111/1001,Children and Young People,CYP,Transport Related,CCA,08/08/2022,05-11888,"2,118.69",Travel Liner
Nottinghamshire County Council,1111/1001,Children and Young People,CYP,Transport Related,CCA,08/08/2022,05-11889,"2,596.80",Nottingham Coaches Ltd
Nottinghamshire County Council,1111/1001,Children and Young People,CYP,Transport Related,CCA,08/08/2022,05-11890,"9,623.49",Nottingham Coaches Ltd
Nottinghamshire County Council,1111/1001,Children and Young People,CYP,Transport Related,CCA,08/08/2022,05-11891,"3,008.48",Nottingham Coaches Ltd
Nottinghamshire County Council,1111/1001,Children and Young People,CYP,Transport Related,CCA,08/08/2022,05-11892,"2,987.54",Nottingham Coaches Ltd
Nottinghamshire County Council,1111/1001,Children and Young People,CYP,Transport Related,CCA,08/08/2022,05-11893,"2,406.11",Nottingham Coaches Ltd
Nottinghamshire County Council,1111/1001,Children and Young People,CYP,Transport Related,CCA,08/08/2022,05-11894,"3,184.00",Nottingham Coaches Ltd
Nottinghamshire County Council,1111/1001,Children and Young People,CYP,Transport Related,CCA,08/08/2022,05-11895,"1,747.20",Sean's Taxi Services
Nottinghamshire County Council,1111/1001,Children and Young People,CYP,Transport Related,CCA,08/08/2022,05-11896,"1,102.40",Ideal Cars (Private Hire) Ltd
Nottinghamshire County Council,1111/1001,Children and Young People,CYP,Transport Related,CCA,08/08/2022,05-11897,832.00,Ideal Cars (Private Hire) Ltd
Nottinghamshire County Council,1111/1001,Children and Young People,CYP,Transport Related,CCA,08/08/2022,05-11898,"2,059.20",Ideal Cars (Private Hire) Ltd
Nottinghamshire County Council,1111/1001,Children and Young People,CYP,Transport Related,CCA,08/08/2022,05-11899,"2,059.20",Ideal Cars (Private Hire) Ltd
Nottinghamshire County Council,1111/1001,Children and Young People,CYP,Transport Related,CCA,08/08/2022,05-11900,713.44,Ideal Cars (Private Hire) Ltd
Nottinghamshire County Council,1111/1001,Children and Young People,CYP,Transport Related,CCA,08/08/2022,05-11902,"1,547.52",A Travel
Nottinghamshire County Council,1111/1001,Children and Young People,CYP,Transport Related,CCA,08/08/2022,05-11903,"1,580.80",Reliable Cars Ltd
Nottinghamshire County Council,1111/1001,Children and Young People,CYP,Transport Related,CCA,08/08/2022,05-11904,"1,185.00",Reliable Cars Ltd
Nottinghamshire County Council,1111/1001,Children and Young People,CYP,Transport Related,CCA,08/08/2022,05-11906,"5,225.12",Millennium Travel (Mansfield) Ltd
Nottinghamshire County Council,1111/1001,Children and Young People,CYP,Transport Related,CCA,08/08/2022,05-11908,"2,986.56",Millennium Travel (Mansfield) Ltd
Nottinghamshire County Council,1111/1001,Children and Young People,CYP,Transport Related,CCA,08/08/2022,05-11909,"5,981.01",Millennium Travel (Mansfield) Ltd
Nottinghamshire County Council,1111/1001,Children and Young People,CYP,Transport Related,CCA,08/08/2022,05-11910,"5,750.35",Millennium Travel (Mansfield) Ltd
Nottinghamshire County Council,1111/1001,Children and Young People,CYP,Transport Related,CCA,08/08/2022,05-11911,"8,977.88",Millennium Travel (Mansfield) Ltd
Nottinghamshire County Council,1111/1001,Children and Young People,CYP,Transport Related,CCA,08/08/2022,05-11912,"3,201.12",APC Travel
Nottinghamshire County Council,1111/1001,Children and Young People,CYP,Transport Related,CCA,08/08/2022,05-11913,"1,456.00",Carriage Solutions Ltd
Nottinghamshire County Council,1111/1001,Children and Young People,CYP,Transport Related,CCA,08/08/2022,05-11914,"1,955.20",Carriage Solutions Ltd
Nottinghamshire County Council,1111/1001,Children and Young People,CYP,Transport Related,CCA,08/08/2022,05-11915,"3,700.00",Carriage Solutions Ltd
Nottinghamshire County Council,1111/1001,Children and Young People,CYP,Transport Related,CCA,08/08/2022,05-11916,700.96,Carriage Solutions Ltd
Nottinghamshire County Council,1111/1001,Children and Young People,CYP,Transport Related,CCA,08/08/2022,05-11917,915.20,Florin Cocut T/A Stars Taxi
Nottinghamshire County Council,1111/1001,Children and Young People,CYP,Transport Related,CCA,08/08/2022,05-11935,"1,541.28",A1 Private Hire Ltd
Nottinghamshire County Council,1111/1001,Children and Young People,CYP,Transport Related,CCA,08/08/2022,05-11936,"2,134.08",A1 Private Hire Ltd
Nottinghamshire County Council,1111/1001,Children and Young People,CYP,Transport Related,CCA,08/08/2022,05-11937,977.60,A1 Private Hire Ltd
Nottinghamshire County Council,1111/1001,Children and Young People,CYP,Transport Related,CCA,08/08/2022,05-11938,"2,063.36",A1 Private Hire Ltd
Nottinghamshire County Council,1111/1001,Children and Young People,CYP,Transport Related,CCA,08/08/2022,05-11939,"1,564.16",A1 Private Hire Ltd
Nottinghamshire County Council,1111/1001,Children and Young People,CYP,Transport Related,CCA,08/08/2022,05-11940,"2,232.00",A1 Private Hire Ltd
Nottinghamshire County Council,1111/1001,Children and Young People,CYP,Transport Related,CCA,08/08/2022,05-11941,"1,759.68",A1 Private Hire Ltd
Nottinghamshire County Council,1111/1001,Children and Young People,CYP,Transport Related,CCA,08/08/2022,05-11945,"1,797.12",A1 Private Hire Ltd
Nottinghamshire County Council,1111/1001,Children and Young People,CYP,Transport Related,CCA,08/08/2022,05-11946,"2,160.00",A1 Private Hire Ltd
Nottinghamshire County Council,1111/1001,Children and Young People,CYP,Transport Related,CCA,08/08/2022,05-11947,"2,232.00",A1 Private Hire Ltd
Nottinghamshire County Council,1111/1001,Children and Young People,CYP,Transport Related,CCA,08/08/2022,05-11948,"2,055.00",A1 Private Hire Ltd
Nottinghamshire County Council,1111/1001,Children and Young People,CYP,Transport Related,CCA,08/08/2022,05-11950,"3,024.00",A1 Private Hire Ltd
Nottinghamshire County Council,1111/1001,Children and Young People,CYP,Transport Related,CCA,08/08/2022,05-11951,"2,756.52",Nottingham Specialist Transport Ltd
Nottinghamshire County Council,1111/1001,Children and Young People,CYP,Transport Related,CCA,08/08/2022,05-11952,"2,954.12",Nottingham Specialist Transport Ltd
Nottinghamshire County Council,1111/1001,Children and Young People,CYP,Transport Related,CCA,08/08/2022,05-11953,"3,349.32",Nottingham Specialist Transport Ltd
Nottinghamshire County Council,1111/1001,Children and Young People,CYP,Transport Related,CCA,08/08/2022,05-11954,"3,546.92",Nottingham Specialist Transport Ltd
Nottinghamshire County Council,1111/1001,Children and Young People,CYP,Transport Related,CCA,08/08/2022,05-11955,"3,734.64",Nottingham Specialist Transport Ltd
Nottinghamshire County Council,1111/1001,Children and Young People,CYP,Transport Related,CCA,08/08/2022,05-11956,"3,173.04",Nottingham Specialist Transport Ltd
Nottinghamshire County Council,1111/1001,Children and Young People,CYP,Transport Related,CCA,08/08/2022,05-11957,"2,321.28",Nottingham Specialist Transport Ltd
Nottinghamshire County Council,1111/1001,Children and Young People,CYP,Transport Related,CCA,08/08/2022,05-11958,"2,373.00",Nottingham Specialist Transport Ltd
Nottinghamshire County Council,1111/1001,Children and Young People,CYP,Transport Related,CCA,08/08/2022,05-11959,"2,439.84",Nottingham Specialist Transport Ltd
Nottinghamshire County Council,1111/1001,Children and Young People,CYP,Transport Related,CCA,08/08/2022,05-11960,"2,255.76",Nottingham Specialist Transport Ltd
Nottinghamshire County Council,1111/1001,Children and Young People,CYP,Transport Related,CCA,08/08/2022,05-11962,"2,739.36",Nottingham Specialist Transport Ltd
Nottinghamshire County Council,1111/1001,Children and Young People,CYP,Transport Related,CCA,08/08/2022,05-11963,"2,814.24",Nottingham Specialist Transport Ltd
Nottinghamshire County Council,1111/1001,Children and Young People,CYP,Transport Related,CCA,08/08/2022,05-11965,"3,355.21",D n K Travel
Nottinghamshire County Council,1111/1001,Children and Young People,CYP,Transport Related,CCA,08/08/2022,05-11966,"2,598.96",W Hollingsworth T/A Target Taxis
Nottinghamshire County Council,1111/1001,Children and Young People,CYP,Transport Related,CCA,08/08/2022,05-11967,"1,160.64",W Hollingsworth T/A Target Taxis
Nottinghamshire County Council,1111/1001,Children and Young People,CYP,Transport Related,CCA,08/08/2022,05-11968,"2,063.36",W Hollingsworth T/A Target Taxis
Nottinghamshire County Council,1111/1001,Children and Young People,CYP,Transport Related,CCA,08/08/2022,05-11969,845.00,W Hollingsworth T/A Target Taxis
Nottinghamshire County Council,1111/1001,Children and Young People,CYP,Transport Related,CCA,08/08/2022,05-11971,"3,240.00",JK Transport Ltd
Nottinghamshire County Council,1111/1001,Children and Young People,CYP,Transport Related,CCA,08/08/2022,05-11972,"3,188.64",JK Transport Ltd
Nottinghamshire County Council,1111/1001,Children and Young People,CYP,Transport Related,CCA,08/08/2022,05-11974,"1,343.00",JK Transport Ltd
Nottinghamshire County Council,1111/1001,Children and Young People,CYP,Transport Related,CCA,08/08/2022,05-11975,"1,980.00",JK Transport Ltd
Nottinghamshire County Council,1111/1001,Children and Young People,CYP,Transport Related,CCA,08/08/2022,05-11976,"4,099.68",JK Transport Ltd
Nottinghamshire County Council,1111/1001,Children and Young People,CYP,Transport Related,CCA,11/08/2022,05-12012,"3,659.21",Sharpes Of Nottingham
Nottinghamshire County Council,1111/1001,Children and Young People,CYP,Transport Related,CCA,11/08/2022,05-12013,"3,055.44",Sharpes Of Nottingham
Nottinghamshire County Council,1111/1001,Children and Young People,CYP,Transport Related,CCA,11/08/2022,05-12014,"2,911.20",Sharpes Of Nottingham
Nottinghamshire County Council,1111/1001,Children and Young People,CYP,Transport Related,CCA,11/08/2022,05-12015,"3,498.60",Sharpes Of Nottingham
Nottinghamshire County Council,1111/1001,Children and Young People,CYP,Transport Related,CCA,11/08/2022,05-12016,"3,182.84",Sharpes Of Nottingham
Nottinghamshire County Council,1111/1001,Children and Young People,CYP,Transport Related,CCA,11/08/2022,05-12017,"3,769.48",Sharpes Of Nottingham
Nottinghamshire County Council,1111/1001,Children and Young People,CYP,Transport Related,CCA,11/08/2022,05-12018,"3,566.87",Sharpes Of Nottingham
Nottinghamshire County Council,1111/1001,Children and Young People,CYP,Transport Related,CCA,11/08/2022,05-12019,"3,107.50",Sharpes Of Nottingham
Nottinghamshire County Council,1111/1001,Children and Young People,CYP,Transport Related,CCA,11/08/2022,05-12020,998.40,6 Five 2s
Nottinghamshire County Council,1111/1001,Children and Young People,CYP,Transport Related,CCA,11/08/2022,05-12021,915.20,6 Five 2s
Nottinghamshire County Council,1111/1001,Children and Young People,CYP,Transport Related,CCA,11/08/2022,05-12022,732.16,6 Five 2s
Nottinghamshire County Council,1111/1001,Children and Young People,CYP,Transport Related,CCA,11/08/2022,05-12023,"2,080.00",6 Five 2s
Nottinghamshire County Council,1111/1001,Children and Young People,CYP,Transport Related,CCA,11/08/2022,05-12024,"1,456.00",6 Five 2s
Nottinghamshire County Council,1111/1001,Children and Young People,CYP,Transport Related,CCA,11/08/2022,05-12025,"1,331.20",6 Five 2s
Nottinghamshire County Council,1111/1001,Children and Young People,CYP,Transport Related,CCA,11/08/2022,05-12026,599.04,6 Five 2s
Nottinghamshire County Council,1111/1001,Children and Young People,CYP,Transport Related,CCA,11/08/2022,05-12027,"1,846.20",6 Five 2s
Nottinghamshire County Council,1111/1001,Children and Young People,CYP,Transport Related,CCA,11/08/2022,05-12028,"1,123.20",6 Five 2s
Nottinghamshire County Council,1111/1001,Children and Young People,CYP,Transport Related,CCA,11/08/2022,05-12029,"1,456.00",6 Five 2s
Nottinghamshire County Council,1111/1001,Children and Young People,CYP,Transport Related,CCA,11/08/2022,05-12030,"1,813.00",6 Five 2s
Nottinghamshire County Council,1111/1001,Children and Young People,CYP,Transport Related,CCA,11/08/2022,05-12031,"1,830.40",6 Five 2s
Nottinghamshire County Council,1111/1001,Children and Young People,CYP,Transport Related,CCA,11/08/2022,05-12032,832.00,6 Five 2s
Nottinghamshire County Council,1111/1001,Children and Young People,CYP,Transport Related,CCA,11/08/2022,05-12033,"1,630.72",6 Five 2s
Nottinghamshire County Council,1111/1001,Children and Young People,CYP,Transport Related,CCA,11/08/2022,05-12034,"1,622.40",6 Five 2s
Nottinghamshire County Council,1111/1001,Children and Young People,CYP,Transport Related,CCA,11/08/2022,05-12036,988.00,6 Five 2s
Nottinghamshire County Council,1111/1001,Children and Young People,CYP,Transport Related,CCA,11/08/2022,05-12037,"2,924.48",Central Cars Nottm Ltd
Nottinghamshire County Council,1111/1001,Children and Young People,CYP,Transport Related,CCA,11/08/2022,05-12039,"2,929.14",F4Control Ltd (t/a First4care)
Nottinghamshire County Council,1111/1001,Children and Young People,CYP,Transport Related,CCA,11/08/2022,05-12040,"2,898.00",F4Control Ltd (t/a First4care)
Nottinghamshire County Council,1111/1001,Children and Young People,CYP,Transport Related,CCA,11/08/2022,05-12041,"3,789.00",F4Control Ltd (t/a First4care)
Nottinghamshire County Council,1111/1001,Children and Young People,CYP,Transport Related,CCA,11/08/2022,05-12042,"3,780.00",F4Control Ltd (t/a First4care)
Nottinghamshire County Council,1111/1001,Children and Young People,CYP,Transport Related,CCA,11/08/2022,05-12043,"2,668.32",F4Control Ltd (t/a First4care)
Nottinghamshire County Council,1111/1001,Children and Young People,CYP,Transport Related,CCA,11/08/2022,05-12044,"2,316.60",F4Control Ltd (t/a First4care)
Nottinghamshire County Council,1111/1001,Children and Young People,CYP,Transport Related,CCA,11/08/2022,05-12045,"2,382.60",F4Control Ltd (t/a First4care)
Nottinghamshire County Council,1111/1001,Children and Young People,CYP,Transport Related,CCA,11/08/2022,05-12049,"4,051.08",Johnson Bros Tours Ltd
Nottinghamshire County Council,1111/1001,Children and Young People,CYP,Transport Related,CCA,11/08/2022,05-12050,"3,837.60",Johnson Bros Tours Ltd
Nottinghamshire County Council,1111/1001,Children and Young People,CYP,Transport Related,CCA,11/08/2022,05-12051,"5,396.40",Johnson Bros Tours Ltd
Nottinghamshire County Council,1111/1001,Children and Young People,CYP,Transport Related,CCA,11/08/2022,05-12052,"8,457.65",Johnson Bros Tours Ltd
Nottinghamshire County Council,1111/1001,Children and Young People,CYP,Transport Related,CCA,11/08/2022,05-12053,"9,241.60",Johnson Bros Tours Ltd
Nottinghamshire County Council,1111/1001,Children and Young People,CYP,Transport Related,CCA,11/08/2022,05-12054,"1,028.80",200 Cars Ltd
Nottinghamshire County Council,1111/1001,Children and Young People,CYP,Transport Related,CCA,11/08/2022,05-12058,"1,054.65",Alpha Cars
Nottinghamshire County Council,1111/1001,Children and Young People,CYP,Transport Related,CCA,11/08/2022,05-12059,"1,980.00",Alpha Cars
Nottinghamshire County Council,1111/1001,Children and Young People,CYP,Transport Related,CCA,11/08/2022,05-12063,"1,060.80",Ng11 Cars
Nottinghamshire County Council,1111/1001,Children and Young People,CYP,Transport Related,CCA,11/08/2022,05-12064,"3,260.40",F4Control Ltd (t/a First4care)
Nottinghamshire County Council,1111/1001,Children and Young People,CYP,Transport Related,CCA,11/08/2022,05-12065,"2,823.00",F4Control Ltd (t/a First4care)
Nottinghamshire County Council,1111/1001,Children and Young People,CYP,Transport Related,CCA,11/08/2022,05-12066,"2,522.52",F4Control Ltd (t/a First4care)
Nottinghamshire County Council,1111/1001,Children and Young People,CYP,Transport Related,CCA,11/08/2022,05-12067,"2,648.88",F4Control Ltd (t/a First4care)
Nottinghamshire County Council,1111/1001,Children and Young People,CYP,Transport Related,CCA,11/08/2022,05-12068,"3,096.36",F4Control Ltd (t/a First4care)
Nottinghamshire County Council,1111/1001,Children and Young People,CYP,Transport Related,CCA,11/08/2022,05-12069,"2,367.21",F4Control Ltd (t/a First4care)
Nottinghamshire County Council,1111/1001,Children and Young People,CYP,Transport Related,CCA,11/08/2022,05-12070,"2,540.70",F4Control Ltd (t/a First4care)
Nottinghamshire County Council,1111/1001,Children and Young People,CYP,Transport Related,CCA,11/08/2022,05-12071,"3,037.53",F4Control Ltd (t/a First4care)
Nottinghamshire County Council,1111/1001,Children and Young People,CYP,Transport Related,CCA,11/08/2022,05-12072,"1,960.80",F4Control Ltd (t/a First4care)
Nottinghamshire County Council,1111/1001,Children and Young People,CYP,Transport Related,CCA,11/08/2022,05-12073,"2,859.40",F4Control Ltd (t/a First4care)
Nottinghamshire County Council,1111/1001,Children and Young People,CYP,Transport Related,CCA,11/08/2022,05-12074,"2,990.16",F4Control Ltd (t/a First4care)
Nottinghamshire County Council,1111/1001,Children and Young People,CYP,Transport Related,CCA,11/08/2022,05-12075,"2,525.40",F4Control Ltd (t/a First4care)
Nottinghamshire County Council,1111/1001,Children and Young People,CYP,Transport Related,CCA,11/08/2022,05-12076,"2,717.57",F4Control Ltd (t/a First4care)
Nottinghamshire County Council,1111/1001,Children and Young People,CYP,Transport Related,CCA,11/08/2022,05-12077,"3,353.88",F4Control Ltd (t/a First4care)
Nottinghamshire County Council,1111/1001,Children and Young People,CYP,Transport Related,CCA,11/08/2022,05-12078,"2,235.45",F4Control Ltd (t/a First4care)
Nottinghamshire County Council,1111/1001,Children and Young People,CYP,Transport Related,CCA,11/08/2022,05-12079,"2,301.30",F4Control Ltd (t/a First4care)
Nottinghamshire County Council,1111/1001,Children and Young People,CYP,Transport Related,CCA,11/08/2022,05-12080,"2,265.90",F4Control Ltd (t/a First4care)
Nottinghamshire County Council,1111/1001,Children and Young People,CYP,Transport Related,CCA,11/08/2022,05-12081,"2,615.20",F4Control Ltd (t/a First4care)
Nottinghamshire County Council,1111/1001,Children and Young People,CYP,Transport Related,CCA,11/08/2022,05-12083,"2,121.60",Abacus Cars
Nottinghamshire County Council,1111/1001,Children and Young People,CYP,Transport Related,CCA,11/08/2022,05-12084,"2,568.80",Abacus Cars
Nottinghamshire County Council,1111/1001,Children and Young People,CYP,Transport Related,CCA,11/08/2022,05-12086,"1,248.00",Abacus Cars
Nottinghamshire County Council,1111/1001,Children and Young People,CYP,Transport Related,CCA,11/08/2022,05-12088,712.65,Abacus Cars
Nottinghamshire County Council,1111/1001,Children and Young People,CYP,Transport Related,CCA,11/08/2022,05-12091,"9,453.71",AOT Coaches Nottingham LLP
Nottinghamshire County Council,1111/1001,Children and Young People,CYP,Transport Related,CCA,11/08/2022,05-12092,"3,768.86",Gem Mini Travel Ltd
Nottinghamshire County Council,1111/1001,Children and Young People,CYP,Transport Related,CCA,11/08/2022,05-12093,"3,300.00",Gem Mini Travel Ltd
Nottinghamshire County Council,1111/1001,Children and Young People,CYP,Transport Related,CCA,11/08/2022,05-12094,"4,212.60",Gem Mini Travel Ltd
Nottinghamshire County Council,1111/1001,Children and Young People,CYP,Transport Related,CCA,11/08/2022,05-12095,"3,794.70",Gem Mini Travel Ltd
Nottinghamshire County Council,1111/1001,Children and Young People,CYP,Transport Related,CCA,11/08/2022,05-12096,"3,494.00",Gem Mini Travel Ltd
Nottinghamshire County Council,1111/1001,Children and Young People,CYP,Transport Related,CCA,11/08/2022,05-12097,"4,062.15",Gem Mini Travel Ltd
Nottinghamshire County Council,1111/1001,Children and Young People,CYP,Transport Related,CCA,11/08/2022,05-12098,"5,004.22",Gem Mini Travel Ltd
Nottinghamshire County Council,1111/1001,Children and Young People,CYP,Transport Related,CCA,11/08/2022,05-12106,"1,839.36",Marshalls Of Sutton On Trent Ltd
Nottinghamshire County Council,1111/1001,Children and Young People,CYP,Transport Related,CCA,11/08/2022,05-12109,"3,017.60",Marshalls Of Sutton On Trent Ltd
Nottinghamshire County Council,1111/1001,Children and Young People,CYP,Transport Related,CCA,11/08/2022,05-12120,"3,396.82",Aj Travel
Nottinghamshire County Council,1111/1001,Children and Young People,CYP,Transport Related,CCA,11/08/2022,05-12121,"3,849.40",Kettlewell Retford Ltd
Nottinghamshire County Council,1111/1001,Children and Young People,CYP,Transport Related,CCA,11/08/2022,05-12122,"5,783.40",Kettlewell Retford Ltd
Nottinghamshire County Council,1111/1001,Children and Young People,CYP,Transport Related,CCA,11/08/2022,05-12123,"2,401.22",Paul S Winson Coaches
Nottinghamshire County Council,1111/1001,Children and Young People,CYP,Transport Related,CCA,11/08/2022,05-12127,561.60,AAA Cabs (Notts) Ltd
Nottinghamshire County Council,1111/1001,Children and Young People,CYP,Transport Related,CCA,11/08/2022,05-12130,"3,154.14",Hammonds Coaches Ltd
Nottinghamshire County Council,1111/1001,Children and Young People,CYP,Transport Related,CCA,11/08/2022,05-12131,"1,579.68",Hammonds Coaches Ltd
Nottinghamshire County Council,1111/1001,Children and Young People,CYP,Transport Related,CCA,11/08/2022,05-12132,"2,024.35",Hammonds Coaches Ltd
Nottinghamshire County Council,1111/1001,Children and Young People,CYP,Transport Related,CCA,11/08/2022,05-12133,"2,965.91",Hammonds Coaches Ltd
Nottinghamshire County Council,1111/1001,Children and Young People,CYP,Transport Related,CCA,11/08/2022,05-12134,"3,202.27",Hammonds Coaches Ltd
Nottinghamshire County Council,1111/1001,Children and Young People,CYP,Transport Related,CCA,11/08/2022,05-12135,"1,326.00",Reliable Cars Ltd
Nottinghamshire County Council,1111/1001,Children and Young People,CYP,Transport Related,CCA,11/08/2022,05-12136,"1,716.00",Reliable Cars Ltd
Nottinghamshire County Council,1111/1001,Children and Young People,CYP,Transport Related,CCA,11/08/2022,05-12137,"2,701.76",Unity Coaches Ltd
Nottinghamshire County Council,1111/1001,Children and Young People,CYP,Transport Related,CCA,11/08/2022,05-12139,"1,389.12",Vectare Ltd
Nottinghamshire County Council,1111/1001,Children and Young People,CYP,Transport Related,CCA,11/08/2022,05-12140,"1,967.92",Vectare Ltd
Nottinghamshire County Council,1111/1001,Children and Young People,CYP,Transport Related,CCA,11/08/2022,05-12141,"5,952.51",Vectare Ltd
Nottinghamshire County Council,1111/1001,Children and Young People,CYP,Transport Related,CCA,11/08/2022,05-12143,"2,332.20",Nottingham Specialist Transport Ltd
Nottinghamshire County Council,1111/1001,Children and Young People,CYP,Transport Related,CCA,11/08/2022,05-12144,"2,176.20",Nottingham Specialist Transport Ltd
Nottinghamshire County Council,1111/1001,Children and Young People,CYP,Transport Related,CCA,11/08/2022,05-12145,"2,337.92",Nottingham Specialist Transport Ltd
Nottinghamshire County Council,1111/1001,Children and Young People,CYP,Transport Related,CCA,11/08/2022,05-12146,"1,684.80",Nottingham Specialist Transport Ltd
Nottinghamshire County Council,1111/1001,Children and Young People,CYP,Transport Related,CCA,11/08/2022,05-12147,"2,279.16",Nottingham Specialist Transport Ltd
Nottinghamshire County Council,1111/1001,Children and Young People,CYP,Transport Related,CCA,11/08/2022,05-12148,819.00,Nottingham Specialist Transport Ltd
Nottinghamshire County Council,1111/1001,Children and Young People,CYP,Transport Related,CCA,11/08/2022,05-12149,"1,380.92",Nottingham Specialist Transport Ltd
Nottinghamshire County Council,1111/1001,Children and Young People,CYP,Transport Related,CCA,11/08/2022,05-12150,585.26,Nottingham Specialist Transport Ltd
Nottinghamshire County Council,1111/1001,Children and Young People,CYP,Transport Related,CCA,11/08/2022,05-12154,676.00,Bryans Taxis
Nottinghamshire County Council,1111/1001,Children and Young People,CYP,Transport Related,CCA,12/08/2022,05-12468,556.05,Ace Of Mansfield Ltd
Nottinghamshire County Council,1111/1001,Children and Young People,CYP,Transport Related,CCA,12/08/2022,05-12469,988.00,Acorn Contracts
Nottinghamshire County Council,1111/1001,Children and Young People,CYP,Transport Related,CCA,12/08/2022,05-12472,"1,737.90",Arrow Specialised Transport Ltd
Nottinghamshire County Council,1111/1001,Children and Young People,CYP,Transport Related,CCA,12/08/2022,05-12473,"1,413.30",Arrow Specialised Transport Ltd
Nottinghamshire County Council,1111/1001,Children and Young People,CYP,Transport Related,CCA,12/08/2022,05-12474,"2,471.04",Arrow Specialised Transport Ltd
Nottinghamshire County Council,1111/1001,Children and Young People,CYP,Transport Related,CCA,12/08/2022,05-12476,"1,730.82",Arrow Specialised Transport Ltd
Nottinghamshire County Council,1111/1001,Children and Young People,CYP,Transport Related,CCA,12/08/2022,05-12477,"2,088.84",Arrow Specialised Transport Ltd
Nottinghamshire County Council,1111/1001,Children and Young People,CYP,Transport Related,CCA,12/08/2022,05-12478,"3,043.56",Arrow Specialised Transport Ltd
Nottinghamshire County Council,1111/1001,Children and Young People,CYP,Transport Related,CCA,12/08/2022,05-12479,"2,098.20",Arrow Specialised Transport Ltd
Nottinghamshire County Council,1111/1001,Children and Young People,CYP,Transport Related,CCA,12/08/2022,05-12480,"2,127.48",Arrow Specialised Transport Ltd
Nottinghamshire County Council,1111/1001,Children and Young People,CYP,Transport Related,CCA,12/08/2022,05-12481,"2,778.00",Arrow Specialised Transport Ltd
Nottinghamshire County Council,1111/1001,Children and Young People,CYP,Transport Related,CCA,12/08/2022,05-12482,"3,784.50",Arrow Specialised Transport Ltd
Nottinghamshire County Council,1111/1001,Children and Young People,CYP,Transport Related,CCA,12/08/2022,05-12483,"2,614.50",Arrow Specialised Transport Ltd
Nottinghamshire County Council,1111/1001,Children and Young People,CYP,Transport Related,CCA,12/08/2022,05-12484,"2,695.65",Arrow Specialised Transport Ltd
Nottinghamshire County Council,1111/1001,Children and Young People,CYP,Transport Related,CCA,12/08/2022,05-12485,"4,010.70",Arrow Specialised Transport Ltd
Nottinghamshire County Council,1111/1001,Children and Young People,CYP,Transport Related,CCA,12/08/2022,05-12486,"1,785.75",Arrow Specialised Transport Ltd
Nottinghamshire County Council,1111/1001,Children and Young People,CYP,Transport Related,CCA,12/08/2022,05-12487,"2,227.65",Arrow Specialised Transport Ltd
Nottinghamshire County Council,1111/1001,Children and Young People,CYP,Transport Related,CCA,12/08/2022,05-12488,"2,001.45",Arrow Specialised Transport Ltd
Nottinghamshire County Council,1111/1001,Children and Young People,CYP,Transport Related,CCA,12/08/2022,05-12489,"1,917.00",Arrow Specialised Transport Ltd
Nottinghamshire County Council,1111/1001,Children and Young People,CYP,Transport Related,CCA,12/08/2022,05-12490,"2,402.40",Arrow Specialised Transport Ltd
Nottinghamshire County Council,1111/1001,Children and Young People,CYP,Transport Related,CCA,12/08/2022,05-12491,"2,163.30",Arrow Specialised Transport Ltd
Nottinghamshire County Council,1111/1001,Children and Young People,CYP,Transport Related,CCA,12/08/2022,05-12492,"2,106.00",Arrow Specialised Transport Ltd
Nottinghamshire County Council,1111/1001,Children and Young People,CYP,Transport Related,CCA,12/08/2022,05-12493,"1,040.00",Fozcabs Newark Taxis
Nottinghamshire County Council,1111/1001,Children and Young People,CYP,Transport Related,CCA,12/08/2022,05-12495,"2,568.80",F4Control Ltd (t/a First4care)
Nottinghamshire County Council,1111/1001,Children and Young People,CYP,Transport Related,CCA,12/08/2022,05-12496,"8,038.23",F4Control Ltd (t/a First4care)
Nottinghamshire County Council,1111/1001,Children and Young People,CYP,Transport Related,CCA,12/08/2022,05-12498,"4,372.84",Stagecoach Services Ltd
Nottinghamshire County Council,1111/1001,Children and Young People,CYP,Transport Related,CCA,12/08/2022,05-12500,"2,567.27",Stagecoach Services Ltd
Nottinghamshire County Council,1111/1001,Children and Young People,CYP,Transport Related,CCA,12/08/2022,05-12502,"5,450.54",Stagecoach Services Ltd
Nottinghamshire County Council,1111/1001,Children and Young People,CYP,Transport Related,CCA,12/08/2022,05-12504,"4,476.40",Stagecoach Services Ltd
Nottinghamshire County Council,1111/1001,Children and Young People,CYP,Transport Related,CCA,12/08/2022,05-12505,"3,894.43",Stagecoach Services Ltd
Nottinghamshire County Council,1111/1001,Children and Young People,CYP,Transport Related,CCA,12/08/2022,05-12506,"3,895.00",Stagecoach Services Ltd
Nottinghamshire County Council,1111/1001,Children and Young People,CYP,Transport Related,CCA,12/08/2022,05-12507,"5,436.00",Stagecoach Services Ltd
Nottinghamshire County Council,1111/1001,Children and Young People,CYP,Transport Related,CCA,12/08/2022,05-12509,"2,025.40",Stagecoach Services Ltd
Nottinghamshire County Council,1111/1001,Children and Young People,CYP,Transport Related,CCA,12/08/2022,05-12516,"3,940.13",Stagecoach Services Ltd
Nottinghamshire County Council,1111/1001,Children and Young People,CYP,Transport Related,CCA,12/08/2022,05-12521,"5,121.39",Stagecoach Services Ltd
Nottinghamshire County Council,1111/1001,Children and Young People,CYP,Transport Related,CCA,12/08/2022,05-12523,"2,750.82",Stagecoach Services Ltd
Nottinghamshire County Council,1111/1001,Children and Young People,CYP,Transport Related,CCA,12/08/2022,05-12526,"5,207.13",Stagecoach Services Ltd
Nottinghamshire County Council,1111/1001,Children and Young People,CYP,Transport Related,CCA,12/08/2022,05-12528,"4,419.02",Stagecoach Services Ltd
Nottinghamshire County Council,1111/1001,Children and Young People,CYP,Transport Related,CCA,12/08/2022,05-12529,"5,226.14",Stagecoach Services Ltd
Nottinghamshire County Council,1111/1001,Children and Young People,CYP,Transport Related,CCA,12/08/2022,05-12531,"6,316.90",Stagecoach Services Ltd
Nottinghamshire County Council,1111/1001,Children and Young People,CYP,Transport Related,CCA,12/08/2022,05-12532,"5,221.00",Stagecoach Services Ltd
Nottinghamshire County Council,1111/1001,Children and Young People,CYP,Transport Related,CCA,12/08/2022,05-12536,"9,972.55",C W Moxon Ltd
Nottinghamshire County Council,1111/1001,Children and Young People,CYP,Transport Related,CCA,12/08/2022,05-12537,628.33,Bassetlaw Action Centre
Nottinghamshire County Council,1111/1001,Children and Young People,CYP,Transport Related,CCA,12/08/2022,05-12538,"1,301.40",Bassetlaw Action Centre
Nottinghamshire County Council,1111/1001,Children and Young People,CYP,Transport Related,CCA,12/08/2022,05-12539,"1,477.01",Ace Cars & Minibuses Ltd
Nottinghamshire County Council,1111/1001,Children and Young People,CYP,Transport Related,CCA,12/08/2022,05-12541,"1,305.72",Ace Cars & Minibuses Ltd
Nottinghamshire County Council,1111/1001,Children and Young People,CYP,Transport Related,CCA,12/08/2022,05-12542,748.80,Nottingham Cars Ltd
Nottinghamshire County Council,1111/1001,Children and Young People,CYP,Transport Related,CCA,16/08/2022,05-13879,"1,166.88",Alert Cars Ltd
Nottinghamshire County Council,1111/1001,Children and Young People,CYP,Transport Related,CCA,16/08/2022,05-13880,"1,980.72",Southside Cars Ltd
Nottinghamshire County Council,1111/1001,Children and Young People,CYP,Transport Related,CCA,16/08/2022,05-13881,678.48,Southside Cars Ltd
Nottinghamshire County Council,1111/1001,Children and Young People,CYP,Transport Related,CCA,16/08/2022,05-13882,"1,923.04",Southside Cars Ltd
Nottinghamshire County Council,1111/1001,Children and Young People,CYP,Transport Related,CCA,16/08/2022,05-13884,"1,740.00",Southside Cars Ltd
Nottinghamshire County Council,1111/1001,Children and Young People,CYP,Transport Related,CCA,16/08/2022,05-13885,"1,872.00",Southside Cars Ltd
Nottinghamshire County Council,1111/1001,Children and Young People,CYP,Transport Related,CCA,16/08/2022,05-13886,"1,794.00",Southside Cars Ltd
Nottinghamshire County Council,1111/1001,Children and Young People,CYP,Transport Related,CCA,16/08/2022,05-13887,"2,292.16",Southside Cars Ltd
Nottinghamshire County Council,1111/1001,Children and Young People,CYP,Transport Related,CCA,16/08/2022,05-13888,"1,856.40",Southside Cars Ltd
Nottinghamshire County Council,1111/1001,Children and Young People,CYP,Transport Related,CCA,16/08/2022,05-13889,"2,363.19",Southside Cars Ltd
Nottinghamshire County Council,1111/1001,Children and Young People,CYP,Transport Related,CCA,16/08/2022,05-13890,"2,238.60",Southside Cars Ltd
Nottinghamshire County Council,1111/1001,Children and Young People,CYP,Transport Related,CCA,16/08/2022,05-13891,"1,186.20",Southside Cars Ltd
Nottinghamshire County Council,1111/1001,Children and Young People,CYP,Transport Related,CCA,16/08/2022,05-13892,"2,111.36",Southside Cars Ltd
Nottinghamshire County Council,1111/1001,Children and Young People,CYP,Transport Related,CCA,16/08/2022,05-13893,"2,509.52",Southside Cars Ltd
Nottinghamshire County Council,1111/1001,Children and Young People,CYP,Transport Related,CCA,16/08/2022,05-13894,"1,951.04",Southside Cars Ltd
Nottinghamshire County Council,1111/1001,Children and Young People,CYP,Transport Related,CCA,16/08/2022,05-13896,"2,670.64",Southside Cars Ltd
Nottinghamshire County Council,1111/1001,Children and Young People,CYP,Transport Related,CCA,16/08/2022,05-13897,"2,766.40",Southside Cars Ltd
Nottinghamshire County Council,1111/1001,Children and Young People,CYP,Transport Related,CCA,16/08/2022,05-13898,"1,924.00",Southside Cars Ltd
Nottinghamshire County Council,1111/1001,Children and Young People,CYP,Transport Related,CCA,16/08/2022,05-13899,"2,886.00",Southside Cars Ltd
Nottinghamshire County Council,1111/1001,Children and Young People,CYP,Transport Related,CCA,16/08/2022,05-13900,"2,706.88",Southside Cars Ltd
Nottinghamshire County Council,1111/1001,Children and Young People,CYP,Transport Related,CCA,16/08/2022,05-13901,"2,230.80",Southside Cars Ltd
Nottinghamshire County Council,1111/1001,Children and Young People,CYP,Transport Related,CCA,16/08/2022,05-13902,"3,038.68",Southside Cars Ltd
Nottinghamshire County Council,1111/1001,Children and Young People,CYP,Transport Related,CCA,16/08/2022,05-13904,"2,246.40",Southside Cars Ltd
Nottinghamshire County Council,1111/1001,Children and Young People,CYP,Transport Related,CCA,16/08/2022,05-13905,"3,594.24",Southside Cars Ltd
Nottinghamshire County Council,1111/1001,Children and Young People,CYP,Transport Related,CCA,16/08/2022,05-13906,"1,431.84",Southside Cars Ltd
Nottinghamshire County Council,1111/1001,Children and Young People,CYP,Transport Related,CCA,16/08/2022,05-13907,"1,612.00",Shelleys Taxis Ltd
Nottinghamshire County Council,1111/1001,Children and Young People,CYP,Transport Related,CCA,16/08/2022,05-13908,"1,996.80",Shelleys Taxis Ltd
Nottinghamshire County Council,1111/1001,Children and Young People,CYP,Transport Related,CCA,16/08/2022,05-13909,"2,021.76",Shelleys Taxis Ltd
Nottinghamshire County Council,1111/1001,Children and Young People,CYP,Transport Related,CCA,16/08/2022,05-13910,"1,372.80",Shelleys Taxis Ltd
Nottinghamshire County Council,1111/1001,Children and Young People,CYP,Transport Related,CCA,16/08/2022,05-13911,"1,164.80",Shelleys Taxis Ltd
Nottinghamshire County Council,1111/1001,Children and Young People,CYP,Transport Related,CCA,16/08/2022,05-13912,"1,310.40",Shelleys Taxis Ltd
Nottinghamshire County Council,1111/1001,Children and Young People,CYP,Transport Related,CCA,16/08/2022,05-13913,"1,834.56",Shelleys Taxis Ltd
Nottinghamshire County Council,1111/1001,Children and Young People,CYP,Transport Related,CCA,16/08/2022,05-13914,"1,580.80",Elkingtons Park Garage
Nottinghamshire County Council,1111/1001,Children and Young People,CYP,Transport Related,CCA,16/08/2022,05-13915,"3,985.06",BN Gibson Ltd
Nottinghamshire County Council,1111/1001,Children and Young People,CYP,Transport Related,CCA,16/08/2022,05-13916,"4,431.75",BN Gibson Ltd
Nottinghamshire County Council,1111/1001,Children and Young People,CYP,Transport Related,CCA,16/08/2022,05-13917,"4,046.05",BN Gibson Ltd
Nottinghamshire County Council,1111/1001,Children and Young People,CYP,Transport Related,CCA,16/08/2022,05-13918,"2,832.80",BN Gibson Ltd
Nottinghamshire County Council,1111/1001,Children and Young People,CYP,Transport Related,CCA,16/08/2022,05-13919,"3,547.11",BN Gibson Ltd
Nottinghamshire County Council,1111/1001,Children and Young People,CYP,Transport Related,CCA,16/08/2022,05-13920,"3,211.95",BN Gibson Ltd
Nottinghamshire County Council,1111/1001,Children and Young People,CYP,Transport Related,CCA,16/08/2022,05-13921,"3,315.78",BN Gibson Ltd
Nottinghamshire County Council,1111/1001,Children and Young People,CYP,Transport Related,CCA,16/08/2022,05-13922,"2,734.02",BN Gibson Ltd
Nottinghamshire County Council,1111/1001,Children and Young People,CYP,Transport Related,CCA,16/08/2022,05-13923,"4,427.46",BN Gibson Ltd
Nottinghamshire County Council,1111/1001,Children and Young People,CYP,Transport Related,CCA,16/08/2022,05-13924,"2,691.16",BN Gibson Ltd
Nottinghamshire County Council,1111/1001,Children and Young People,CYP,Transport Related,CCA,16/08/2022,05-13925,"3,846.06",BN Gibson Ltd
Nottinghamshire County Council,1111/1001,Children and Young People,CYP,Transport Related,CCA,16/08/2022,05-13926,"4,447.80",BN Gibson Ltd
Nottinghamshire County Council,1111/1001,Children and Young People,CYP,Transport Related,CCA,16/08/2022,05-13927,"4,142.70",BN Gibson Ltd
Nottinghamshire County Council,1111/1001,Children and Young People,CYP,Transport Related,CCA,16/08/2022,05-13928,"3,876.48",BN Gibson Ltd
Nottinghamshire County Council,1111/1001,Children and Young People,CYP,Transport Related,CCA,16/08/2022,05-13929,"3,578.08",BN Gibson Ltd
Nottinghamshire County Council,1111/1001,Children and Young People,CYP,Transport Related,CCA,16/08/2022,05-13930,"4,044.60",BN Gibson Ltd
Nottinghamshire County Council,1111/1001,Children and Young People,CYP,Transport Related,CCA,16/08/2022,05-13931,"3,714.84",BN Gibson Ltd
Nottinghamshire County Council,1111/1001,Children and Young People,CYP,Transport Related,CCA,16/08/2022,05-13932,"3,052.26",BN Gibson Ltd
Nottinghamshire County Council,1111/1001,Children and Young People,CYP,Transport Related,CCA,16/08/2022,05-13933,"2,691.16",BN Gibson Ltd
Nottinghamshire County Council,1111/1001,Children and Young People,CYP,Transport Related,CCA,16/08/2022,05-13934,"2,330.10",BN Gibson Ltd
Nottinghamshire County Council,1111/1001,Children and Young People,CYP,Transport Related,CCA,16/08/2022,05-13935,"3,873.78",BN Gibson Ltd
Nottinghamshire County Council,1111/1001,Children and Young People,CYP,Transport Related,CCA,16/08/2022,05-13936,"3,211.95",BN Gibson Ltd
Nottinghamshire County Council,1111/1001,Children and Young People,CYP,Transport Related,CCA,16/08/2022,05-13937,"3,389.39",BN Gibson Ltd
Nottinghamshire County Council,1111/1001,Children and Young People,CYP,Transport Related,CCA,16/08/2022,05-13938,"2,927.33",BN Gibson Ltd
Nottinghamshire County Council,1111/1001,Children and Young People,CYP,Transport Related,CCA,16/08/2022,05-13939,"2,330.10",BN Gibson Ltd
Nottinghamshire County Council,1111/1001,Children and Young People,CYP,Transport Related,CCA,16/08/2022,05-13940,"2,330.10",BN Gibson Ltd
Nottinghamshire County Council,1111/1001,Children and Young People,CYP,Transport Related,CCA,16/08/2022,05-13941,"2,223.90",BN Gibson Ltd
Nottinghamshire County Council,1111/1001,Children and Young People,CYP,Transport Related,CCA,16/08/2022,05-13945,"2,370.60",BN Gibson Ltd
Nottinghamshire County Council,1111/1001,Children and Young People,CYP,Transport Related,CCA,16/08/2022,05-13946,"2,350.11",BN Gibson Ltd
Nottinghamshire County Council,1111/1001,Children and Young People,CYP,Transport Related,CCA,16/08/2022,05-13947,"2,289.48",BN Gibson Ltd
Nottinghamshire County Council,1111/1001,Children and Young People,CYP,Transport Related,CCA,16/08/2022,05-13948,"2,511.96",BN Gibson Ltd
Nottinghamshire County Council,1111/1001,Children and Young People,CYP,Transport Related,CCA,16/08/2022,05-13950,"2,330.10",BN Gibson Ltd
Nottinghamshire County Council,1111/1001,Children and Young People,CYP,Transport Related,CCA,16/08/2022,05-13951,"2,491.20",BN Gibson Ltd
Nottinghamshire County Council,1111/1001,Children and Young People,CYP,Transport Related,CCA,16/08/2022,05-13952,"2,124.60",BN Gibson Ltd
Nottinghamshire County Council,1111/1001,Children and Young People,CYP,Transport Related,CCA,16/08/2022,05-13953,"3,172.50",BN Gibson Ltd
Nottinghamshire County Council,1111/1001,Children and Young People,CYP,Transport Related,CCA,16/08/2022,05-13954,"2,531.10",BN Gibson Ltd
Nottinghamshire County Council,1111/1001,Children and Young People,CYP,Transport Related,CCA,16/08/2022,05-13955,"3,221.25",BN Gibson Ltd
Nottinghamshire County Council,1111/1001,Children and Young People,CYP,Transport Related,CCA,16/08/2022,05-13959,"3,013.38",Nottingham Minibuses & Coaches
Nottinghamshire County Council,1111/1001,Children and Young People,CYP,Transport Related,CCA,16/08/2022,05-13963,"2,039.04",Nottingham Minibuses & Coaches
Nottinghamshire County Council,1111/1001,Children and Young People,CYP,Transport Related,CCA,16/08/2022,05-13964,"2,032.81",Nottingham Minibuses & Coaches
Nottinghamshire County Council,1111/1001,Children and Young People,CYP,Transport Related,CCA,16/08/2022,05-13967,"2,925.92",Stagecoach Services Ltd
Nottinghamshire County Council,1111/1001,Children and Young People,CYP,Transport Related,CCA,16/08/2022,05-13969,"1,755.00",Tiger European Uk Ltd
Nottinghamshire County Council,1111/1001,Children and Young People,CYP,Transport Related,CCA,16/08/2022,05-13971,"4,914.90",Tiger European Uk Ltd
Nottinghamshire County Council,1111/1001,Children and Young People,CYP,Transport Related,CCA,16/08/2022,05-13972,"9,443.34",Wilfreda Beehive
Nottinghamshire County Council,1111/1001,Children and Young People,CYP,Transport Related,CCA,16/08/2022,05-13973,"2,394.00",Wilfreda Beehive
Nottinghamshire County Council,1111/1001,Children and Young People,CYP,Transport Related,CCA,16/08/2022,05-13974,"7,920.00",Wilfreda Beehive
Nottinghamshire County Council,1111/1001,Children and Young People,CYP,Transport Related,CCA,16/08/2022,05-13975,"1,403.84",Ace Cars & Minibuses Ltd
Nottinghamshire County Council,1111/1001,Children and Young People,CYP,Transport Related,CCA,16/08/2022,05-13976,"2,344.96",Nottingham Coaches Ltd
Nottinghamshire County Council,1111/1001,Children and Young People,CYP,Transport Related,CCA,16/08/2022,05-13978,"1,716.00",Ideal Cars (Private Hire) Ltd
Nottinghamshire County Council,1111/1001,Children and Young People,CYP,Transport Related,CCA,16/08/2022,05-13979,582.40,Ideal Cars (Private Hire) Ltd
Nottinghamshire County Council,1111/1001,Children and Young People,CYP,Transport Related,CCA,16/08/2022,05-13983,"1,394.82",A1 Private Hire Ltd
Nottinghamshire County Council,1111/1001,Children and Young People,CYP,Transport Related,CCA,18/08/2022,05-14108,"1,123.20",Southside Cars Ltd
Nottinghamshire County Council,1111/1001,Children and Young People,CYP,Transport Related,CCA,18/08/2022,05-14109,"1,146.08",Southside Cars Ltd
Nottinghamshire County Council,1111/1001,Children and Young People,CYP,Transport Related,CCA,18/08/2022,05-14111,"1,183.70",Southside Cars Ltd
Nottinghamshire County Council,1111/1001,Children and Young People,CYP,Transport Related,CCA,18/08/2022,05-14112,"1,031.68",Southside Cars Ltd
Nottinghamshire County Council,1111/1001,Children and Young People,CYP,Transport Related,CCA,18/08/2022,05-14113,"1,284.40",Southside Cars Ltd
Nottinghamshire County Council,1111/1001,Children and Young People,CYP,Transport Related,CCA,18/08/2022,05-14114,"1,381.30",Southside Cars Ltd
Nottinghamshire County Council,1111/1001,Children and Young People,CYP,Transport Related,CCA,18/08/2022,05-14115,903.76,Southside Cars Ltd
Nottinghamshire County Council,1111/1001,Children and Young People,CYP,Transport Related,CCA,18/08/2022,05-14116,648.96,Southside Cars Ltd
Nottinghamshire County Council,1111/1001,Children and Young People,CYP,Transport Related,CCA,18/08/2022,05-14117,"1,801.08",Southside Cars Ltd
Nottinghamshire County Council,1111/1001,Children and Young People,CYP,Transport Related,CCA,18/08/2022,05-14118,"1,940.66",Southside Cars Ltd
Nottinghamshire County Council,1111/1001,Children and Young People,CYP,Transport Related,CCA,18/08/2022,05-14119,895.84,Southside Cars Ltd
Nottinghamshire County Council,1111/1001,Children and Young People,CYP,Transport Related,CCA,18/08/2022,05-14120,"1,622.10",Southside Cars Ltd
Nottinghamshire County Council,1111/1001,Children and Young People,CYP,Transport Related,CCA,18/08/2022,05-14122,"1,456.00",6 Five 2s
Nottinghamshire County Council,1111/1001,Children and Young People,CYP,Transport Related,CCA,18/08/2022,05-14124,"3,130.40",Vallances Coaches
Nottinghamshire County Council,1111/1001,Children and Young People,CYP,Transport Related,CCA,18/08/2022,05-14125,"2,951.46",BN Gibson Ltd
Nottinghamshire County Council,1111/1001,Children and Young People,CYP,Transport Related,CCA,18/08/2022,05-14135,"3,002.80",Trevor Bailey t/a Trevor Bailey Tra
Nottinghamshire County Council,1111/1001,Children and Young People,CYP,Transport Related,CCA,18/08/2022,05-14136,"4,479.50",Freeway Coaches Ltd
Nottinghamshire County Council,1111/1001,Children and Young People,CYP,Transport Related,CCA,18/08/2022,05-14137,"2,219.58",Freeway Coaches Ltd
Nottinghamshire County Council,1111/1001,Children and Young People,CYP,Transport Related,CCA,18/08/2022,05-14138,"2,134.69",Freeway Coaches Ltd
Nottinghamshire County Council,1111/1001,Children and Young People,CYP,Transport Related,CCA,18/08/2022,05-14143,761.28,Nottingham Cars Ltd
Nottinghamshire County Council,1111/1001,Children and Young People,CYP,Transport Related,CCA,18/08/2022,05-14145,638.70,Ideal Cars (Private Hire) Ltd
Nottinghamshire County Council,1111/1001,Children and Young People,CYP,Transport Related,CCA,18/08/2022,05-14149,"2,862.16",CT4N Ltd
Nottinghamshire County Council,1111/1001,Children and Young People,CYP,Transport Related,CCA,18/08/2022,05-14150,"2,108.96",CT4N Ltd
Nottinghamshire County Council,1111/1001,Children and Young People,CYP,Transport Related,CCA,18/08/2022,05-14151,"2,410.24",CT4N Ltd
Nottinghamshire County Council,1111/1001,Children and Young People,CYP,Transport Related,CCA,18/08/2022,05-14152,"2,444.54",CT4N Ltd
Nottinghamshire County Council,1111/1001,Children and Young People,CYP,Transport Related,CCA,18/08/2022,05-14153,"2,573.20",CT4N Ltd
Nottinghamshire County Council,1111/1001,Children and Young People,CYP,Transport Related,CCA,18/08/2022,05-14154,"1,715.13",CT4N Ltd
Nottinghamshire County Council,1111/1001,Children and Young People,CYP,Transport Related,CCA,18/08/2022,05-14155,"2,766.40",CT4N Ltd
Nottinghamshire County Council,1111/1001,Children and Young People,CYP,Transport Related,CCA,18/08/2022,05-14156,"3,359.20",CT4N Ltd
Nottinghamshire County Council,1111/1001,Children and Young People,CYP,Transport Related,CCA,18/08/2022,05-14157,988.00,CT4N Ltd
Nottinghamshire County Council,1111/1001,Children and Young People,CYP,Transport Related,CCA,18/08/2022,05-14159,"1,201.80",SM Travel Yorkshire Ltd
Nottinghamshire County Council,1111/1001,Children and Young People,CYP,Transport Related,CCA,18/08/2022,05-14164,"3,185.00",JK Transport Ltd
Nottinghamshire County Council,1111/1001,Children and Young People,CYP,Transport Related,CCA,18/08/2022,05-14165,"1,157.00",JK Transport Ltd
Nottinghamshire County Council,1111/1001,Children and Young People,CYP,Transport Related,CCA,18/08/2022,05-14166,"1,520.00",JK Transport Ltd
Nottinghamshire County Council,1111/1001,Children and Young People,CYP,Transport Related,CCA,23/08/2022,05-12151,"1,936.48",AJ's Travel
Nottinghamshire County Council,1111/1001,Children and Young People,CYP,Transport Related,CCA,23/08/2022,05-12152,944.31,AJ's Travel
Nottinghamshire County Council,1111/1001,Children and Young People,CYP,Transport Related,CCA,23/08/2022,05-13980,"1,871.82",24 x 7 Nottinghamshire Ltd
Nottinghamshire County Council,1111/1001,Children and Young People,CYP,Transport Related,CCA,24/08/2022,05-11918,"2,873.16",24 x 7 Nottinghamshire Ltd
Nottinghamshire County Council,1111/1001,Children and Young People,CYP,Transport Related,CCA,24/08/2022,05-11919,"3,200.04",24 x 7 Nottinghamshire Ltd
Nottinghamshire County Council,1111/1001,Children and Young People,CYP,Transport Related,CCA,24/08/2022,05-11920,"1,238.28",24 x 7 Nottinghamshire Ltd
Nottinghamshire County Council,1111/1001,Children and Young People,CYP,Transport Related,CCA,24/08/2022,05-11921,"2,531.37",24 x 7 Nottinghamshire Ltd
Nottinghamshire County Council,1111/1001,Children and Young People,CYP,Transport Related,CCA,24/08/2022,05-11922,"2,046.30",24 x 7 Nottinghamshire Ltd
Nottinghamshire County Council,1111/1001,Children and Young People,CYP,Transport Related,CCA,24/08/2022,05-11923,"2,052.19",24 x 7 Nottinghamshire Ltd
Nottinghamshire County Council,1111/1001,Children and Young People,CYP,Transport Related,CCA,24/08/2022,05-11924,"2,255.73",24 x 7 Nottinghamshire Ltd
Nottinghamshire County Council,1111/1001,Children and Young People,CYP,Transport Related,CCA,24/08/2022,05-11925,"1,415.68",24 x 7 Nottinghamshire Ltd
Nottinghamshire County Council,1111/1001,Children and Young People,CYP,Transport Related,CCA,24/08/2022,05-11926,"1,689.45",24 x 7 Nottinghamshire Ltd
Nottinghamshire County Council,1111/1001,Children and Young People,CYP,Transport Related,CCA,24/08/2022,05-11927,"2,212.74",24 x 7 Nottinghamshire Ltd
Nottinghamshire County Council,1111/1001,Children and Young People,CYP,Transport Related,CCA,24/08/2022,05-11928,852.30,24 x 7 Nottinghamshire Ltd
Nottinghamshire County Council,1111/1001,Children and Young People,CYP,Transport Related,CCA,24/08/2022,05-11929,"2,020.86",24 x 7 Nottinghamshire Ltd
Nottinghamshire County Council,1111/1001,Children and Young People,CYP,Transport Related,CCA,24/08/2022,05-11930,"1,356.57",24 x 7 Nottinghamshire Ltd
Nottinghamshire County Council,1111/1001,Children and Young People,CYP,Transport Related,CCA,24/08/2022,05-11932,"1,185.12",24 x 7 Nottinghamshire Ltd
Nottinghamshire County Council,1111/1001,Children and Young People,CYP,Transport Related,CCA,24/08/2022,05-11933,"2,089.43",24 x 7 Nottinghamshire Ltd
Nottinghamshire County Council,1111/1001,Children and Young People,CYP,Transport Related,CCA,24/08/2022,05-11934,"4,515.54",24 x 7 Nottinghamshire Ltd
Nottinghamshire County Council,1111/1001,Children and Young People,CYP,Transport Related,CCA,24/08/2022,05-11964,"2,819.88",Fulwood Travel Ltd
Nottinghamshire County Council,1111/1001,Children and Young People,CYP,Transport Related,CCA,24/08/2022,05-13981,"3,772.86",24 x 7 Nottinghamshire Ltd
Nottinghamshire County Council,1111/1001,Children and Young People,CYP,Transport Related,CCA,24/08/2022,05-13982,694.38,24 x 7 Nottinghamshire Ltd
Nottinghamshire County Council,1111/1001,Children and Young People,CYP,Transport Related,CCA,24/08/2022,05-14510,"2,729.75",Via East Midlands Ltd
Nottinghamshire County Council,1111/1001,Children and Young People,CYP,Transport Related,CCA,24/08/2022,05-14527,573.30,F4Control Ltd (t/a First4care)
Nottinghamshire County Council,1111/1001,Children and Young People,CYP,Transport Related,CCA,24/08/2022,05-14533,"1,684.80",Abacus Cars
Nottinghamshire County Council,1111/1001,Children and Young People,CYP,Transport Related,CCA,24/08/2022,05-14535,"3,461.04",K Matthews Travel
Nottinghamshire County Council,1111/1001,Children and Young People,CYP,Transport Related,CCA,24/08/2022,05-14536,"3,257.36",K Matthews Travel
Nottinghamshire County Council,1111/1001,Children and Young People,CYP,Transport Related,CCA,24/08/2022,05-14537,"2,641.60",K Matthews Travel
Nottinghamshire County Council,1111/1001,Children and Young People,CYP,Transport Related,CCA,24/08/2022,05-14538,"5,080.61",Kettlewell Retford Ltd
Nottinghamshire County Council,1111/1001,Children and Young People,CYP,Transport Related,CCA,24/08/2022,05-14539,509.76,Kettlewell Retford Ltd
Nottinghamshire County Council,1111/1001,Children and Young People,CYP,Transport Related,CCA,24/08/2022,05-14540,"2,101.86",Wallis Coachways
Nottinghamshire County Council,1111/1001,Children and Young People,CYP,Transport Related,CCA,24/08/2022,05-14541,"2,274.84",Wallis Coachways
Nottinghamshire County Council,1111/1001,Children and Young People,CYP,Transport Related,CCA,24/08/2022,05-14543,960.00,Nottingham Cars Ltd
Nottinghamshire County Council,1111/1001,Children and Young People,CYP,Transport Related,CCA,24/08/2022,05-14545,"2,865.20",Rushcliffe Travel Ltd
Nottinghamshire County Council,1111/1001,Children and Young People,CYP,Transport Related,CCA,24/08/2022,05-14546,"4,151.68",Rushcliffe Travel Ltd
Nottinghamshire County Council,1111/1001,Children and Young People,CYP,Transport Related,CCA,24/08/2022,05-14547,"6,314.88",Rushcliffe Travel Ltd
Nottinghamshire County Council,1111/1001,Children and Young People,CYP,Transport Related,CCA,24/08/2022,05-14548,"4,983.68",Rushcliffe Travel Ltd
Nottinghamshire County Council,1111/1001,Children and Young People,CYP,Transport Related,CCA,24/08/2022,05-14549,"3,349.32",Rushcliffe Travel Ltd
Nottinghamshire County Council,1111/1001,Children and Young People,CYP,Transport Related,CCA,24/08/2022,05-14550,"2,756.52",Rushcliffe Travel Ltd
Nottinghamshire County Council,1111/1001,Children and Young People,CYP,Transport Related,CCA,24/08/2022,05-14551,"2,424.24",Rushcliffe Travel Ltd
Nottinghamshire County Council,1111/1001,Children and Young People,CYP,Transport Related,CCA,24/08/2022,05-14552,"3,744.52",Rushcliffe Travel Ltd
Nottinghamshire County Council,1111/1001,Children and Young People,CYP,Transport Related,CCA,24/08/2022,05-14553,"5,264.48",Rushcliffe Travel Ltd
Nottinghamshire County Council,1111/1001,Children and Young People,CYP,Transport Related,CCA,24/08/2022,05-14554,"2,163.72",Rushcliffe Travel Ltd
Nottinghamshire County Council,1111/1001,Children and Young People,CYP,Transport Related,CCA,24/08/2022,05-14555,"2,865.20",Rushcliffe Travel Ltd
Nottinghamshire County Council,1111/1001,Children and Young People,CYP,Transport Related,CCA,24/08/2022,05-14556,"2,798.64",Rushcliffe Travel Ltd
Nottinghamshire County Council,1111/1001,Children and Young People,CYP,Transport Related,CCA,24/08/2022,05-14557,"3,547.44",Rushcliffe Travel Ltd
Nottinghamshire County Council,1111/1001,Children and Young People,CYP,Transport Related,CCA,24/08/2022,05-14558,"2,865.20",Rushcliffe Travel Ltd
Nottinghamshire County Council,1111/1001,Children and Young People,CYP,Transport Related,CCA,24/08/2022,05-14562,"6,542.64",Nottingham Specialist Transport Ltd
Nottinghamshire County Council,1111/1001,Children and Young People,CYP,Transport Related,CCA,25/08/2022,05-14589,"1,330.20",Southside Cars Ltd
Nottinghamshire County Council,1111/1001,Children and Young People,CYP,Transport Related,CCA,25/08/2022,05-14590,"1,449.80",Southside Cars Ltd
Nottinghamshire County Council,1111/1001,Children and Young People,CYP,Transport Related,CCA,25/08/2022,05-14591,"1,361.36",Southside Cars Ltd
Nottinghamshire County Council,1111/1001,Children and Young People,CYP,Transport Related,CCA,25/08/2022,05-14592,"3,228.48",Johnson Bros Tours Ltd
Nottinghamshire County Council,1111/1001,Children and Young People,CYP,Transport Related,CCA,25/08/2022,05-14594,"15,983.87",Erewash Community Transport
Nottinghamshire County Council,1111/1001,Children and Young People,CYP,Transport Related,CCA,25/08/2022,05-14596,"1,327.50",Skills Motor Coaches Ltd
Nottinghamshire County Council,1111/1001,Children and Young People,CYP,Transport Related,CCA,25/08/2022,05-14597,"2,600.84",Marshalls Of Sutton On Trent Ltd
Nottinghamshire County Council,1111/1001,Children and Young People,CYP,Transport Related,CCA,25/08/2022,05-14598,"1,200.00",Silverdale Tours Nottm Ltd
Nottinghamshire County Council,1111/1001,Children and Young People,CYP,Transport Related,CCA,25/08/2022,05-14599,"4,477.50",Freeway Coaches Ltd
Nottinghamshire County Council,1111/1001,Children and Young People,CYP,Transport Related,CCA,25/08/2022,05-14600,"2,500.00",Ace Cars & Minibuses Ltd
Nottinghamshire County Council,1111/1001,Children and Young People,CYP,Transport Related,CCA,25/08/2022,05-14601,876.15,Hammonds Coaches Ltd
Nottinghamshire County Council,1111/1001,Children and Young People,CYP,Transport Related,CCA,25/08/2022,05-14606,"1,181.50",Rushcliffe Travel Ltd
Nottinghamshire County Council,1111/1001,Children and Young People,CYP,Transport Related,CCA,25/08/2022,05-14607,"2,470.00",Rushcliffe Travel Ltd
Nottinghamshire County Council,1111/1001,Children and Young People,CYP,Transport Related,CCA,30/08/2022,05-17115,"5,104.98",Arrow Specialised Transport Ltd
Nottinghamshire County Council,1111/1001,Children and Young People,CYP,Transport Related,CCA,30/08/2022,05-17116,"3,011.44",Freeway Coaches Ltd
Nottinghamshire County Council,1111/1001,Children and Young People,CYP,Transport Related,CCA,30/08/2022,05-17117,"3,089.44",Freeway Coaches Ltd
Nottinghamshire County Council,1111/1001,Children and Young People,CYP,Transport Related,CCA,30/08/2022,05-17118,"4,375.02",Freeway Coaches Ltd
Nottinghamshire County Council,1111/1001,Children and Young People,CYP,Transport Related,CDA,04/08/2022,05-17774,"8,870.40",Lincolnshire County Council
Nottinghamshire County Council,1111/1001,Children and Young People,CYP,Transport Related,CDA,08/08/2022,05-11848,"2,824.92",Nottingham Minibuses & Coaches
Nottinghamshire County Council,1111/1001,Children and Young People,CYP,Transport Related,CDA,08/08/2022,05-11849,"1,614.24",Nottingham Minibuses & Coaches
Nottinghamshire County Council,1111/1001,Children and Young People,CYP,Transport Related,CDA,08/08/2022,05-11858,"2,532.96",Tiger European Uk Ltd
Nottinghamshire County Council,1111/1001,Children and Young People,CYP,Transport Related,CDA,08/08/2022,05-11901,"1,693.12",Ideal Cars (Private Hire) Ltd
Nottinghamshire County Council,1111/1001,Children and Young People,CYP,Transport Related,CDA,08/08/2022,05-11905,"1,760.00",Gxpress Cars
Nottinghamshire County Council,1111/1001,Children and Young People,CYP,Transport Related,CDA,08/08/2022,05-11906,275.00,Millennium Travel (Mansfield) Ltd
Nottinghamshire County Council,1111/1001,Children and Young People,CYP,Transport Related,CDA,11/08/2022,05-12046,"6,436.82",Johnson Bros Tours Ltd
Nottinghamshire County Council,1111/1001,Children and Young People,CYP,Transport Related,CDA,11/08/2022,05-12047,"2,316.48",Johnson Bros Tours Ltd
Nottinghamshire County Council,1111/1001,Children and Young People,CYP,Transport Related,CDA,11/08/2022,05-12048,"6,175.00",Johnson Bros Tours Ltd
Nottinghamshire County Council,1111/1001,Children and Young People,CYP,Transport Related,CDA,11/08/2022,05-12090,"6,579.58",AOT Coaches Nottingham LLP
Nottinghamshire County Council,1111/1001,Children and Young People,CYP,Transport Related,CDA,11/08/2022,05-12111,"5,123.04",Marshalls Of Sutton On Trent Ltd
Nottinghamshire County Council,1111/1001,Children and Young People,CYP,Transport Related,CDA,11/08/2022,05-12114,"3,329.37",Silverdale Tours Nottm Ltd
Nottinghamshire County Council,1111/1001,Children and Young People,CYP,Transport Related,CDA,11/08/2022,05-12115,"3,329.37",Silverdale Tours Nottm Ltd
Nottinghamshire County Council,1111/1001,Children and Young People,CYP,Transport Related,CDA,11/08/2022,05-12116,"3,329.37",Silverdale Tours Nottm Ltd
Nottinghamshire County Council,1111/1001,Children and Young People,CYP,Transport Related,CDA,11/08/2022,05-12124,"5,454.45",Paul S Winson Coaches
Nottinghamshire County Council,1111/1001,Children and Young People,CYP,Transport Related,CDA,11/08/2022,05-17944,"1,914.00",Direct Cars (Lincoln) Ltd
Nottinghamshire County Council,1111/1001,Children and Young People,CYP,Transport Related,CDA,12/08/2022,05-12475,"2,019.63",Arrow Specialised Transport Ltd
Nottinghamshire County Council,1111/1001,Children and Young People,CYP,Transport Related,CDA,12/08/2022,05-12533,"14,107.68",C W Moxon Ltd
Nottinghamshire County Council,1111/1001,Children and Young People,CYP,Transport Related,CDA,12/08/2022,05-12534,"1,577.07",C W Moxon Ltd
Nottinghamshire County Council,1111/1001,Children and Young People,CYP,Transport Related,CDA,12/08/2022,05-12535,"4,932.00",C W Moxon Ltd
Nottinghamshire County Council,1111/1001,Children and Young People,CYP,Transport Related,CDA,16/08/2022,05-13903,"3,344.40",Southside Cars Ltd
Nottinghamshire County Council,1111/1001,Children and Young People,CYP,Transport Related,CDA,16/08/2022,05-13956,"2,485.08",Nottingham Minibuses & Coaches
Nottinghamshire County Council,1111/1001,Children and Young People,CYP,Transport Related,CDA,16/08/2022,05-13957,"2,043.36",Nottingham Minibuses & Coaches
Nottinghamshire County Council,1111/1001,Children and Young People,CYP,Transport Related,CDA,16/08/2022,05-13958,"2,124.00",Nottingham Minibuses & Coaches
Nottinghamshire County Council,1111/1001,Children and Young People,CYP,Transport Related,CDA,16/08/2022,05-13960,"2,402.72",Nottingham Minibuses & Coaches
Nottinghamshire County Council,1111/1001,Children and Young People,CYP,Transport Related,CDA,16/08/2022,05-13961,"3,991.68",Nottingham Minibuses & Coaches
Nottinghamshire County Council,1111/1001,Children and Young People,CYP,Transport Related,CDA,16/08/2022,05-13962,"2,208.96",Nottingham Minibuses & Coaches
Nottinghamshire County Council,1111/1001,Children and Young People,CYP,Transport Related,CDA,16/08/2022,05-13965,"17,211.15",Nottingham Minibuses & Coaches
Nottinghamshire County Council,1111/1001,Children and Young People,CYP,Transport Related,CDA,16/08/2022,05-13967,"26,333.34",Stagecoach Services Ltd
Nottinghamshire County Council,1111/1001,Children and Young People,CYP,Transport Related,CDA,16/08/2022,05-13970,"2,771.82",Tiger European Uk Ltd
Nottinghamshire County Council,1111/1001,Children and Young People,CYP,Transport Related,CDA,24/08/2022,05-11930,452.19,24 x 7 Nottinghamshire Ltd
Nottinghamshire County Council,1111/1001,Children and Young People,CYP,Transport Related,CDA,24/08/2022,05-14544,"2,954.12",Rushcliffe Travel Ltd
Nottinghamshire County Council,1111/1001,Children and Young People,CYP,Transport Related,CDA,25/08/2022,05-14594,359.55,Erewash Community Transport
Nottinghamshire County Council,1111/1001,Children and Young People,CYP,Transport Related,CEA,05/08/2022,05-10731,"3,710.35",Reed Employment Ltd
Nottinghamshire County Council,1111/1001,Children and Young People,CYP,Transport Related,CEA,08/08/2022,05-10736,"2,700.24",Reed Employment Ltd
Nottinghamshire County Council,1111/1001,Children and Young People,CYP,Transport Related,CEA,15/08/2022,05-11990,"2,650.03",Reed Employment Ltd
Nottinghamshire County Council,1111/1001,Children and Young People,CYP,Supplies & Services,DAA,04/08/2022,05-17733,840.00,Robinson Healthcare Ltd
Nottinghamshire County Council,1111/1001,Children and Young People,CYP,Supplies & Services,DAA,04/08/2022,05-17746,5.30,Herts FullStop (890000)
Nottinghamshire County Council,1111/1001,Children and Young People,CYP,Supplies & Services,DAA,05/08/2022,05-17762,607.64,Herts FullStop (890000)
Nottinghamshire County Council,1111/1001,Children and Young People,CYP,Supplies & Services,DAA,25/08/2022,05-14576,"15,000.00",Hawthorne Primary Academy(Flying Hi
Nottinghamshire County Council,1111/1001,Children and Young People,CYP,Supplies & Services,DBA,02/08/2022,05-10556,203.32,M Maloney Country Butchers & B Ltd
Nottinghamshire County Council,1111/1001,Children and Young People,CYP,Supplies & Services,DBA,03/08/2022,05-10052,"1,369.04",Brake Bros Ltd
Nottinghamshire County Council,1111/1001,Children and Young People,CYP,Supplies & Services,DBA,05/08/2022,05-10760,"1,657.78",John Palin (Wholesale) Ltd
Nottinghamshire County Council,1111/1001,Children and Young People,CYP,Supplies & Services,DBA,10/08/2022,05-10106,"1,504.10",Brake Bros Ltd
Nottinghamshire County Council,1111/1001,Children and Young People,CYP,Supplies & Services,DBA,12/08/2022,05-12156,347.40,M Maloney Country Butchers & B Ltd
Nottinghamshire County Council,1111/1001,Children and Young People,CYP,Supplies & Services,DBA,12/08/2022,05-12159,246.86,M Maloney Country Butchers & B Ltd
Nottinghamshire County Council,1111/1001,Children and Young People,CYP,Supplies & Services,DBA,17/08/2022,05-10143,"2,080.04",Brake Bros Ltd
Nottinghamshire County Council,1111/1001,Children and Young People,CYP,Supplies & Services,DBA,24/08/2022,05-10745,730.12,Brake Bros Ltd
Nottinghamshire County Council,1111/1001,Children and Young People,CYP,Supplies & Services,DBA,31/08/2022,05-12004,742.64,Brake Bros Ltd
Nottinghamshire County Council,1111/1001,Children and Young People,CYP,Supplies & Services,DEA,01/08/2022,05-17717,"1,710.00",P Littleford Ltd
Nottinghamshire County Council,1111/1001,Children and Young People,CYP,Supplies & Services,DEA,01/08/2022,05-17725,"1,237.50",LMS Social Work Services Ltd
Nottinghamshire County Council,1111/1001,Children and Young People,CYP,Supplies & Services,DEA,01/08/2022,05-17776,770.00,LMS Social Work Services Ltd
Nottinghamshire County Council,1111/1001,Children and Young People,CYP,Supplies & Services,DEA,01/08/2022,05-17787,770.00,LMS Social Work Services Ltd
Nottinghamshire County Council,1111/1001,Children and Young People,CYP,Supplies & Services,DEA,01/08/2022,05-17788,"1,870.00",LMS Social Work Services Ltd
Nottinghamshire County Council,1111/1001,Children and Young People,CYP,Supplies & Services,DEA,01/08/2022,05-17790,800.00,Little Legs Ltd
Nottinghamshire County Council,1111/1001,Children and Young People,CYP,Supplies & Services,DEA,03/08/2022,05-10573,500.00,Homes 2 Inspire Ltd
Nottinghamshire County Council,1111/1001,Children and Young People,CYP,Supplies & Services,DEA,04/08/2022,05-17727,854.67,Family Focused Ltd
Nottinghamshire County Council,1111/1001,Children and Young People,CYP,Supplies & Services,DEA,04/08/2022,05-17728,522.33,Family Focused Ltd
Nottinghamshire County Council,1111/1001,Children and Young People,CYP,Supplies & Services,DEA,04/08/2022,05-17760,550.00,Clive Harrison Consultancy Ltd
Nottinghamshire County Council,1111/1001,Children and Young People,CYP,Supplies & Services,DEA,04/08/2022,05-17775,"1,257.50",Family Focused Ltd
Nottinghamshire County Council,1111/1001,Children and Young People,CYP,Supplies & Services,DEA,04/08/2022,05-17785,862.34,Family Focused Ltd
Nottinghamshire County Council,1111/1001,Children and Young People,CYP,Supplies & Services,DEA,04/08/2022,05-17786,513.33,Family Focused Ltd
Nottinghamshire County Council,1111/1001,Children and Young People,CYP,Supplies & Services,DEA,05/08/2022,05-10720,"7,668.12",Next Level Sports Ltd
Nottinghamshire County Council,1111/1001,Children and Young People,CYP,Supplies & Services,DEA,05/08/2022,05-10721,"10,032.00",Premier Education Group (WJM Sports
Nottinghamshire County Council,1111/1001,Children and Young People,CYP,Supplies & Services,DEA,05/08/2022,05-10722,"12,456.00",Lime Trees (Colwick)
Nottinghamshire County Council,1111/1001,Children and Young People,CYP,Supplies & Services,DEA,05/08/2022,05-10723,"9,600.00",Nottingham Forest Community Trust
Nottinghamshire County Council,1111/1001,Children and Young People,CYP,Supplies & Services,DEA,05/08/2022,05-10725,"16,922.50",Grade A Sports
Nottinghamshire County Council,1111/1001,Children and Young People,CYP,Supplies & Services,DEA,05/08/2022,05-10726,"12,705.00",Rattle & Roll Ltd
Nottinghamshire County Council,1111/1001,Children and Young People,CYP,Supplies & Services,DEA,05/08/2022,05-10727,"45,682.50",TB Sport
Nottinghamshire County Council,1111/1001,Children and Young People,CYP,Supplies & Services,DEA,05/08/2022,05-10728,"10,245.69",Evolution Soccer Ltd(Worksop Town A
Nottinghamshire County Council,1111/1001,Children and Young People,CYP,Supplies & Services,DEA,05/08/2022,05-10729,"4,323.00",Riley Sport & Fitness-Rileys Kids C
Nottinghamshire County Council,1111/1001,Children and Young People,CYP,Supplies & Services,DEA,08/08/2022,05-10097,"5,852.00",Energy Kidz Ltd
Nottinghamshire County Council,1111/1001,Children and Young People,CYP,Supplies & Services,DEA,08/08/2022,05-17931,"16,825.00",Insite Portable Accommodation Ltd
Nottinghamshire County Council,1111/1001,Children and Young People,CYP,Supplies & Services,DEA,09/08/2022,05-17777,"1,125.00",Janet Fisher Education Ltd
Nottinghamshire County Council,1111/1001,Children and Young People,CYP,Supplies & Services,DEA,10/08/2022,05-12001,500.00,Homes 2 Inspire Ltd
Nottinghamshire County Council,1111/1001,Children and Young People,CYP,Supplies & Services,DEA,11/08/2022,05-17797,642.30,[Redacted]
Nottinghamshire County Council,1111/1001,Children and Young People,CYP,Supplies & Services,DEA,11/08/2022,05-17798,652.20,[Redacted]
Nottinghamshire County Council,1111/1001,Children and Young People,CYP,Supplies & Services,DEA,11/08/2022,05-17803,750.00,Forestry England (National Office)
Nottinghamshire County Council,1111/1001,Children and Young People,CYP,Supplies & Services,DEA,11/08/2022,05-17817,900.00,Creative Pathways
Nottinghamshire County Council,1111/1001,Children and Young People,CYP,Supplies & Services,DEA,11/08/2022,05-17830,600.00,[Redacted]
Nottinghamshire County Council,1111/1001,Children and Young People,CYP,Supplies & Services,DEA,12/08/2022,05-17832,"1,710.00",P Littleford Ltd
Nottinghamshire County Council,1111/1001,Children and Young People,CYP,Supplies & Services,DEA,15/08/2022,05-17933,680.00,[Redacted]
Nottinghamshire County Council,1111/1001,Children and Young People,CYP,Supplies & Services,DEA,17/08/2022,05-13994,500.00,Abbey Green Therapeutic Childrens S
Nottinghamshire County Council,1111/1001,Children and Young People,CYP,Supplies & Services,DEA,17/08/2022,05-13998,500.00,Esland North Ltd
Nottinghamshire County Council,1111/1001,Children and Young People,CYP,Supplies & Services,DEA,17/08/2022,05-17939,990.00,Dove Creatives
Nottinghamshire County Council,1111/1001,Children and Young People,CYP,Supplies & Services,DEA,18/08/2022,05-17889,975.00,Together Emotional Wellbeing & Atta
Nottinghamshire County Council,1111/1001,Children and Young People,CYP,Supplies & Services,DEA,19/08/2022,05-17921,550.00,[Redacted]
Nottinghamshire County Council,1111/1001,Children and Young People,CYP,Supplies & Services,DEA,24/08/2022,05-14526,600.00,JTM Mentoring Ltd
Nottinghamshire County Council,1111/1001,Children and Young People,CYP,Supplies & Services,DKA,03/08/2022,05-10569,15.47,Framework Housing Association
Nottinghamshire County Council,1111/1001,Children and Young People,CYP,Supplies & Services,DKA,03/08/2022,05-10571,970.00,MVS Transportation
Nottinghamshire County Council,1111/1001,Children and Young People,CYP,Supplies & Services,DKA,03/08/2022,05-10572,650.00,[Redacted]
Nottinghamshire County Council,1111/1001,Children and Young People,CYP,Supplies & Services,DKA,10/08/2022,05-11994,850.00,Norman Galloway Ltd
Nottinghamshire County Council,1111/1001,Children and Young People,CYP,Supplies & Services,DKA,10/08/2022,05-11995,465.00,MVS Transportation
Nottinghamshire County Council,1111/1001,Children and Young People,CYP,Supplies & Services,DKA,10/08/2022,05-11997,550.00,Mansfield Property Services LtdT/A
Nottinghamshire County Council,1111/1001,Children and Young People,CYP,Supplies & Services,DKA,10/08/2022,05-11998,553.69,Sixteen Plus Ltd
Nottinghamshire County Council,1111/1001,Children and Young People,CYP,Supplies & Services,DKA,10/08/2022,05-11999,8.65,Nottm Community Housing Assoc (Head
Nottinghamshire County Council,1111/1001,Children and Young People,CYP,Supplies & Services,DKA,10/08/2022,05-12002,550.00,[Redacted]
Nottinghamshire County Council,1111/1001,Children and Young People,CYP,Supplies & Services,DKA,10/08/2022,05-12003,500.00,[Redacted]
Nottinghamshire County Council,1111/1001,Children and Young People,CYP,Supplies & Services,DKA,16/08/2022,05-12546,800.00,[Redacted]
Nottinghamshire County Council,1111/1001,Children and Young People,CYP,Supplies & Services,DKA,17/08/2022,05-13991,519.20,Sunrise Homes Services Ltd
Nottinghamshire County Council,1111/1001,Children and Young People,CYP,Supplies & Services,DKA,17/08/2022,05-13996,936.00,Rene House CIC
Nottinghamshire County Council,1111/1001,Children and Young People,CYP,Supplies & Services,DKA,18/08/2022,05-13997,800.00,G P Removals & Waste Management
Nottinghamshire County Council,1111/1001,Children and Young People,CYP,Supplies & Services,DKA,24/08/2022,05-14520,510.22,Mansfield District Council
Nottinghamshire County Council,1111/1001,Children and Young People,CYP,Supplies & Services,DKA,24/08/2022,05-14521,"1,026.84",Hits Homes Trust
Nottinghamshire County Council,1111/1001,Children and Young People,CYP,Supplies & Services,DKA,24/08/2022,05-14522,"1,614.83",Progressive Care Ltd
Nottinghamshire County Council,1111/1001,Children and Young People,CYP,Supplies & Services,DKA,24/08/2022,05-14523,543.49,Connexus Homes Ltd
Nottinghamshire County Council,1111/1001,Children and Young People,CYP,Supplies & Services,DKA,25/08/2022,05-14577,"6,746.00",Manor Park Infant & Nursery School
Nottinghamshire County Council,1111/1001,Children and Young People,CYP,Third Party Payments,EBA,01/08/2022,05-17738,"58,400.00",Nottm Community Housing Assoc (Head
Nottinghamshire County Council,1111/1001,Children and Young People,CYP,Third Party Payments,EBA,08/08/2022,05-17784,"2,796.00",Longmoor Primary School (Derbys CC)
Nottinghamshire County Council,1111/1001,Children and Young People,CYP,Third Party Payments,EBA,15/08/2022,05-17852,"262,057.25",Nottm & Notts Youth Support Ltd
Nottinghamshire County Council,1111/1001,Children and Young People,CYP,Third Party Payments,EBA,15/08/2022,05-17853,"262,057.25",Nottm & Notts Youth Support Ltd
Nottinghamshire County Council,1111/1001,Children and Young People,CYP,Third Party Payments,EDA,01/08/2022,05-10029,"6,346.00",Candleby Lane School
Nottinghamshire County Council,1111/1001,Children and Young People,CYP,Third Party Payments,EDA,01/08/2022,05-10030,"6,346.00",Magnus Church of England Academy
Nottinghamshire County Council,1111/1001,Children and Young People,CYP,Third Party Payments,EDA,01/08/2022,05-10031,"6,346.00",Joseph Whittaker Academy
Nottinghamshire County Council,1111/1001,Children and Young People,CYP,Third Party Payments,EDA,01/08/2022,05-10032,"6,346.00",Richard Bonnington Primary Academy(
Nottinghamshire County Council,1111/1001,Children and Young People,CYP,Third Party Payments,EDA,01/08/2022,05-10056,"4,938.00",St Johns C of E Academy
Nottinghamshire County Council,1111/1001,Children and Young People,CYP,Third Party Payments,EDA,01/08/2022,05-10057,"11,000.00",Worksop Priory CE Primary Academy
Nottinghamshire County Council,1111/1001,Children and Young People,CYP,Third Party Payments,EDA,01/08/2022,05-10058,"4,654.00",Worksop Priory CE Primary Academy
Nottinghamshire County Council,1111/1001,Children and Young People,CYP,Third Party Payments,EDA,01/08/2022,05-10059,"4,654.00",Worksop Priory CE Primary Academy
Nottinghamshire County Council,1111/1001,Children and Young People,CYP,Third Party Payments,EDA,01/08/2022,05-10060,"11,000.00",Worksop Priory CE Primary Academy
Nottinghamshire County Council,1111/1001,Children and Young People,CYP,Third Party Payments,EDA,01/08/2022,05-10061,"8,346.00",Bishop Alexander LEAD Academy
Nottinghamshire County Council,1111/1001,Children and Young People,CYP,Third Party Payments,EDA,01/08/2022,05-10062,"11,000.00",Christ The King Catholic Voluntary
Nottinghamshire County Council,1111/1001,Children and Young People,CYP,Third Party Payments,EDA,01/08/2022,05-10063,"6,346.00",Ashfield Academy
Nottinghamshire County Council,1111/1001,Children and Young People,CYP,Third Party Payments,EDA,01/08/2022,05-10064,"11,000.00",Kimberley Primary & Nursery Acadamy
Nottinghamshire County Council,1111/1001,Children and Young People,CYP,Third Party Payments,EDA,01/08/2022,05-10065,"6,346.00",Christ The King Catholic Voluntary
Nottinghamshire County Council,1111/1001,Children and Young People,CYP,Third Party Payments,EDA,01/08/2022,05-10066,"7,404.00",East Leake Academy
Nottinghamshire County Council,1111/1001,Children and Young People,CYP,Third Party Payments,EDA,01/08/2022,05-10067,"11,000.00",Greythorn Primary Academy
Nottinghamshire County Council,1111/1001,Children and Young People,CYP,Third Party Payments,EDA,01/08/2022,05-10068,"11,000.00",Holy Trinity Catholic Voluntary Aca
Nottinghamshire County Council,1111/1001,Children and Young People,CYP,Third Party Payments,EDA,01/08/2022,05-10069,"11,000.00",Abbey Primary Academy(Believe Acade
Nottinghamshire County Council,1111/1001,Children and Young People,CYP,Third Party Payments,EDA,01/08/2022,05-10070,"4,654.00",Bleasby C of E Primary School (Acad
Nottinghamshire County Council,1111/1001,Children and Young People,CYP,Third Party Payments,EDA,01/08/2022,05-10071,"6,346.00",The Minster School (Academy)
Nottinghamshire County Council,1111/1001,Children and Young People,CYP,Third Party Payments,EDA,01/08/2022,05-10072,"11,000.00",Robert Miles Infant School (Academy
Nottinghamshire County Council,1111/1001,Children and Young People,CYP,Third Party Payments,EDA,01/08/2022,05-10073,"8,256.00",Hillocks Primary Academy
Nottinghamshire County Council,1111/1001,Children and Young People,CYP,Third Party Payments,EDA,01/08/2022,05-10074,"11,000.00",Mapplewells Primary & Nursery Acade
Nottinghamshire County Council,1111/1001,Children and Young People,CYP,Third Party Payments,EDA,01/08/2022,05-10075,"8,250.00",Bilsthorpe Flying High Academy (Fly
Nottinghamshire County Council,1111/1001,Children and Young People,CYP,Third Party Payments,EDA,01/08/2022,05-10076,"9,066.00",Hawthorne Primary Academy(Flying Hi
Nottinghamshire County Council,1111/1001,Children and Young People,CYP,Third Party Payments,EDA,01/08/2022,05-10077,"5,172.00",Candleby Lane School
Nottinghamshire County Council,1111/1001,Children and Young People,CYP,Third Party Payments,EDA,01/08/2022,05-10078,"6,642.00",Dukeries Academy
Nottinghamshire County Council,1111/1001,Children and Young People,CYP,Third Party Payments,EDA,01/08/2022,05-10079,"11,000.00",Abbey Road Primary School Academy
Nottinghamshire County Council,1111/1001,Children and Young People,CYP,Third Party Payments,EDA,01/08/2022,05-10080,"11,000.00",Greythorn Primary Academy
Nottinghamshire County Council,1111/1001,Children and Young People,CYP,Third Party Payments,EDA,01/08/2022,05-10081,"11,000.00",Arnbrook Primary Academy
Nottinghamshire County Council,1111/1001,Children and Young People,CYP,Third Party Payments,EDA,01/08/2022,05-10082,"11,000.00",St Augustine's Academy (The Forge T
Nottinghamshire County Council,1111/1001,Children and Young People,CYP,Third Party Payments,EDA,01/08/2022,05-10083,"9,519.00",Sutton Community Academy
Nottinghamshire County Council,1111/1001,Children and Young People,CYP,Third Party Payments,EDA,01/08/2022,05-10084,"4,654.00",Beeston Fields Primary(Flying High
Nottinghamshire County Council,1111/1001,Children and Young People,CYP,Third Party Payments,EDA,01/08/2022,05-10085,"4,654.00",Sacred Heart Catholic Voluntary Aca
Nottinghamshire County Council,1111/1001,Children and Young People,CYP,Third Party Payments,EDA,01/08/2022,05-10086,"11,000.00",St Augustine's Academy (The Forge T
Nottinghamshire County Council,1111/1001,Children and Young People,CYP,Third Party Payments,EDA,01/08/2022,05-10087,"4,654.00",Norbridge Academy Trust
Nottinghamshire County Council,1111/1001,Children and Young People,CYP,Third Party Payments,EDA,01/08/2022,05-10088,"11,000.00",Outwood Academy Portland
Nottinghamshire County Council,1111/1001,Children and Young People,CYP,Third Party Payments,EDA,01/08/2022,05-10089,"9,150.00",Outwood Academy Portland
Nottinghamshire County Council,1111/1001,Children and Young People,CYP,Third Party Payments,EDA,01/08/2022,05-10090,"4,654.00",Outwood Academy - Valley
Nottinghamshire County Council,1111/1001,Children and Young People,CYP,Third Party Payments,EDA,01/08/2022,05-10091,"4,654.00",Outwood Academy - Valley
Nottinghamshire County Council,1111/1001,Children and Young People,CYP,Third Party Payments,EDA,01/08/2022,05-10092,"11,000.00",Sparken Hill Academy
Nottinghamshire County Council,1111/1001,Children and Young People,CYP,Third Party Payments,EDA,01/08/2022,05-10093,"11,000.00",Sparken Hill Academy
Nottinghamshire County Council,1111/1001,Children and Young People,CYP,Third Party Payments,EDA,01/08/2022,05-10094,"11,000.00",St Augustine's Academy (The Forge T
Nottinghamshire County Council,1111/1001,Children and Young People,CYP,Third Party Payments,EDA,01/08/2022,05-10095,"11,000.00",St Augustine's Academy (The Forge T
Nottinghamshire County Council,1111/1001,Children and Young People,CYP,Third Party Payments,EDA,01/08/2022,05-10404,"3,319.68",Kings C of E Primary Academy
Nottinghamshire County Council,1111/1001,Children and Young People,CYP,Third Party Payments,EDA,01/08/2022,05-10405,"14,327.04",St Augustine's Academy (The Forge T
Nottinghamshire County Council,1111/1001,Children and Young People,CYP,Third Party Payments,EDA,01/08/2022,05-10406,"4,979.52",Mansfield Primary Academy
Nottinghamshire County Council,1111/1001,Children and Young People,CYP,Third Party Payments,EDA,01/08/2022,05-10407,"11,531.52",Wainwright Primary Academy (DALP)
Nottinghamshire County Council,1111/1001,Children and Young People,CYP,Third Party Payments,EDA,01/08/2022,05-10408,786.24,Kingston Park Academy
Nottinghamshire County Council,1111/1001,Children and Young People,CYP,Third Party Payments,EDA,01/08/2022,05-10409,"4,542.72",Kirkby Woodhouse Academy School
Nottinghamshire County Council,1111/1001,Children and Young People,CYP,Third Party Payments,EDA,01/08/2022,05-10410,"12,929.28",Peafield Lane Academy
Nottinghamshire County Council,1111/1001,Children and Young People,CYP,Third Party Payments,EDA,01/08/2022,05-10411,"12,405.12",Leamington Primary & Nursery Academ
Nottinghamshire County Council,1111/1001,Children and Young People,CYP,Third Party Payments,EDA,01/08/2022,05-10412,"6,901.44",Birklands Primary (Academy)
Nottinghamshire County Council,1111/1001,Children and Young People,CYP,Third Party Payments,EDA,01/08/2022,05-10413,"13,401.02",Richard Bonnington Primary Academy(
Nottinghamshire County Council,1111/1001,Children and Young People,CYP,Third Party Payments,EDA,01/08/2022,05-10414,"1,135.68",Robert Mellors Primary & Nursery Ac
Nottinghamshire County Council,1111/1001,Children and Young People,CYP,Third Party Payments,EDA,01/08/2022,05-10415,"5,678.40",Haddon Primary School (Academy)
Nottinghamshire County Council,1111/1001,Children and Young People,CYP,Third Party Payments,EDA,01/08/2022,05-10416,"37,564.80",Parkdale Primary Academy
Nottinghamshire County Council,1111/1001,Children and Young People,CYP,Third Party Payments,EDA,01/08/2022,05-10417,"3,669.12",John Clifford School
Nottinghamshire County Council,1111/1001,Children and Young People,CYP,Third Party Payments,EDA,01/08/2022,05-10418,"4,368.00",Alderman Pounder Academy(Flying Hig
Nottinghamshire County Council,1111/1001,Children and Young People,CYP,Third Party Payments,EDA,01/08/2022,05-10419,"11,269.44",Thrumpton Primary Academy
Nottinghamshire County Council,1111/1001,Children and Young People,CYP,Third Party Payments,EDA,01/08/2022,05-10420,"11,094.72",Bracken Lane Primary Academy
Nottinghamshire County Council,1111/1001,Children and Young People,CYP,Third Party Payments,EDA,01/08/2022,05-10421,"3,057.60",Forest Glade Primary School (Academ
Nottinghamshire County Council,1111/1001,Children and Young People,CYP,Third Party Payments,EDA,01/08/2022,05-10422,"12,929.28",Hillocks Primary Academy
Nottinghamshire County Council,1111/1001,Children and Young People,CYP,Third Party Payments,EDA,01/08/2022,05-10423,"15,375.36",Heymann Primary School
Nottinghamshire County Council,1111/1001,Children and Young People,CYP,Third Party Payments,EDA,01/08/2022,05-10424,"6,202.56",Haggonfields Primary Academy
Nottinghamshire County Council,1111/1001,Children and Young People,CYP,Third Party Payments,EDA,01/08/2022,05-10425,"22,626.24",Norbridge Academy Trust
Nottinghamshire County Council,1111/1001,Children and Young People,CYP,Third Party Payments,EDA,01/08/2022,05-10426,"8,386.56",John Hunt Academy
Nottinghamshire County Council,1111/1001,Children and Young People,CYP,Third Party Payments,EDA,01/08/2022,05-10427,"8,648.64",Hawthorne Primary Academy(Flying Hi
Nottinghamshire County Council,1111/1001,Children and Young People,CYP,Third Party Payments,EDA,01/08/2022,05-10428,"19,044.48",Samuel Barlow Primary Academy
Nottinghamshire County Council,1111/1001,Children and Young People,CYP,Third Party Payments,EDA,01/08/2022,05-10429,"20,267.52",Parkgate Academy (Forge Trust)
Nottinghamshire County Council,1111/1001,Children and Young People,CYP,Third Party Payments,EDA,01/08/2022,05-10430,"15,142.40",Lowes Wong Infants (Academy)
Nottinghamshire County Council,1111/1001,Children and Young People,CYP,Third Party Payments,EDA,01/08/2022,05-10431,"8,805.89",Tuxford Primary Academy
Nottinghamshire County Council,1111/1001,Children and Young People,CYP,Third Party Payments,EDA,01/08/2022,05-10432,"7,891.52",Ranskill Primary Academy
Nottinghamshire County Council,1111/1001,Children and Young People,CYP,Third Party Payments,EDA,01/08/2022,05-10433,"8,037.12",Kimberley Primary & Nursery Acadamy
Nottinghamshire County Council,1111/1001,Children and Young People,CYP,Third Party Payments,EDA,01/08/2022,05-10434,"16,511.04",Greenwood Primary & Nursery School
Nottinghamshire County Council,1111/1001,Children and Young People,CYP,Third Party Payments,EDA,01/08/2022,05-10435,"8,299.20",West Park Academy
Nottinghamshire County Council,1111/1001,Children and Young People,CYP,Third Party Payments,EDA,01/08/2022,05-10436,"18,170.88",Barnby Road Academy Prim & Nursery
Nottinghamshire County Council,1111/1001,Children and Young People,CYP,Third Party Payments,EDA,01/08/2022,05-10437,"3,893.34",Keyworth Primary & Nursery School
Nottinghamshire County Council,1111/1001,Children and Young People,CYP,Third Party Payments,EDA,01/08/2022,05-10438,"7,076.16",Sparken Hill Academy
Nottinghamshire County Council,1111/1001,Children and Young People,CYP,Third Party Payments,EDA,01/08/2022,05-10439,"7,827.46",Bilsthorpe Flying High Academy (Fly
Nottinghamshire County Council,1111/1001,Children and Young People,CYP,Third Party Payments,EDA,01/08/2022,05-10440,"17,472.00",Beeston Fields Primary(Flying High
Nottinghamshire County Council,1111/1001,Children and Young People,CYP,Third Party Payments,EDA,01/08/2022,05-10441,"7,338.24",Bramble Academy (Evolve Trust)
Nottinghamshire County Council,1111/1001,Children and Young People,CYP,Third Party Payments,EDA,01/08/2022,05-10442,"5,591.04",Mount C of E Primary School (Academ
Nottinghamshire County Council,1111/1001,Children and Young People,CYP,Third Party Payments,EDA,01/08/2022,05-10443,"3,092.54",St Johns C of E Academy
Nottinghamshire County Council,1111/1001,Children and Young People,CYP,Third Party Payments,EDA,01/08/2022,05-10444,"6,086.08",St Peters C of E Academy
Nottinghamshire County Council,1111/1001,Children and Young People,CYP,Third Party Payments,EDA,01/08/2022,05-10445,"5,940.48",St Peters Cross Keys Academy
Nottinghamshire County Council,1111/1001,Children and Young People,CYP,Third Party Payments,EDA,01/08/2022,05-10446,"10,308.48",Leverton C Of E Academy
Nottinghamshire County Council,1111/1001,Children and Young People,CYP,Third Party Payments,EDA,01/08/2022,05-10447,"1,281.28",Holy Trinity C of E Infant School
Nottinghamshire County Council,1111/1001,Children and Young People,CYP,Third Party Payments,EDA,01/08/2022,05-10448,"17,035.20",Sir Donald Bailey Academy (Forge Tr
Nottinghamshire County Council,1111/1001,Children and Young People,CYP,Third Party Payments,EDA,01/08/2022,05-10449,"11,444.16",Langold Dyscarr Community Academy
Nottinghamshire County Council,1111/1001,Children and Young People,CYP,Third Party Payments,EDA,01/08/2022,05-10450,"8,299.20",St Peters C of E Academy Mansfield
Nottinghamshire County Council,1111/1001,Children and Young People,CYP,Third Party Payments,EDA,01/08/2022,05-10451,"4,018.56",Abbey Primary Academy(Believe Acade
Nottinghamshire County Council,1111/1001,Children and Young People,CYP,Third Party Payments,EDA,01/08/2022,05-10452,"7,338.24",Springbank Primary Academy
Nottinghamshire County Council,1111/1001,Children and Young People,CYP,Third Party Payments,EDA,01/08/2022,05-10453,"4,193.28",St Swithuns C of E Primary Academy
Nottinghamshire County Council,1111/1001,Children and Young People,CYP,Third Party Payments,EDA,01/08/2022,05-10454,"4,909.63",Archbishop Cranmer C of E Academy
Nottinghamshire County Council,1111/1001,Children and Young People,CYP,Third Party Payments,EDA,01/08/2022,05-10455,"5,390.11",Gunthorpe C OF E Primary Academy
Nottinghamshire County Council,1111/1001,Children and Young People,CYP,Third Party Payments,EDA,01/08/2022,05-10456,"27,955.20",Good Shephard Prim Catholic Vol Aca
Nottinghamshire County Council,1111/1001,Children and Young People,CYP,Third Party Payments,EDA,01/08/2022,05-10457,"5,678.40",[Redacted]
Nottinghamshire County Council,1111/1001,Children and Young People,CYP,Third Party Payments,EDA,01/08/2022,05-10458,"9,696.96",Holy Trinity Catholic Voluntary Aca
Nottinghamshire County Council,1111/1001,Children and Young People,CYP,Third Party Payments,EDA,01/08/2022,05-10459,"9,871.68",St Philip Neri with St Bede Vol Aca
Nottinghamshire County Council,1111/1001,Children and Young People,CYP,Third Party Payments,EDA,01/08/2022,05-10460,"5,940.48",St Josephs Catholic Primary Sch Aca
Nottinghamshire County Council,1111/1001,Children and Young People,CYP,Third Party Payments,EDA,01/08/2022,05-10461,"13,278.72",Oak Tree Lane Primary Academy
Nottinghamshire County Council,1111/1001,Children and Young People,CYP,Third Party Payments,EDA,01/08/2022,05-10462,"15,462.72",Awsworth Primary & Nursery Academy
Nottinghamshire County Council,1111/1001,Children and Young People,CYP,Third Party Payments,EDA,01/08/2022,05-10463,"16,091.71",Python Hill Academy (Forge Trust)
Nottinghamshire County Council,1111/1001,Children and Young People,CYP,Third Party Payments,EDA,01/08/2022,05-10464,"5,154.24",Arnbrook Primary Academy
Nottinghamshire County Council,1111/1001,Children and Young People,CYP,Third Party Payments,EDA,01/08/2022,05-10465,"14,763.84",Netherfield Primary School (Academy
Nottinghamshire County Council,1111/1001,Children and Young People,CYP,Third Party Payments,EDA,01/08/2022,05-10466,"21,490.56",Florence Nightingale Academy
Nottinghamshire County Council,1111/1001,Children and Young People,CYP,Third Party Payments,EDA,01/08/2022,05-10467,"15,334.59",Candleby Lane School
Nottinghamshire County Council,1111/1001,Children and Young People,CYP,Third Party Payments,EDA,01/08/2022,05-10468,"10,832.64",Hillside Academy
Nottinghamshire County Council,1111/1001,Children and Young People,CYP,Third Party Payments,EDA,01/08/2022,05-10469,"15,618.51",The Flying High Academy
Nottinghamshire County Council,1111/1001,Children and Young People,CYP,Third Party Payments,EDA,01/08/2022,05-10470,"4,892.16",Serlby Park Academy
Nottinghamshire County Council,1111/1001,Children and Young People,CYP,Third Party Payments,EDA,01/08/2022,05-10471,"8,648.64",Hucknall Flying High Academy
Nottinghamshire County Council,1111/1001,Children and Young People,CYP,Third Party Payments,EDA,01/08/2022,05-10472,"20,092.80",Rosecliffe Spencer Academy
Nottinghamshire County Council,1111/1001,Children and Young People,CYP,Third Party Payments,EDA,01/08/2022,05-10473,"16,815.30",Abbey Primary Academy(Believe Acade
Nottinghamshire County Council,1111/1001,Children and Young People,CYP,Third Party Payments,EDA,01/08/2022,05-10474,"28,643.80",Alderman Pounder Academy(Flying Hig
Nottinghamshire County Council,1111/1001,Children and Young People,CYP,Third Party Payments,EDA,01/08/2022,05-10475,"3,864.18",Arnbrook Primary Academy
Nottinghamshire County Council,1111/1001,Children and Young People,CYP,Third Party Payments,EDA,01/08/2022,05-10476,"13,135.26",Awsworth Primary & Nursery Academy
Nottinghamshire County Council,1111/1001,Children and Young People,CYP,Third Party Payments,EDA,01/08/2022,05-10477,"1,909.50",Barnby Road Academy Prim & Nursery
Nottinghamshire County Council,1111/1001,Children and Young People,CYP,Third Party Payments,EDA,01/08/2022,05-10478,"2,319.00",Beeston Fields Primary(Flying High
Nottinghamshire County Council,1111/1001,Children and Young People,CYP,Third Party Payments,EDA,01/08/2022,05-10479,"22,272.30",Bilsthorpe Flying High Academy (Fly
Nottinghamshire County Council,1111/1001,Children and Young People,CYP,Third Party Payments,EDA,01/08/2022,05-10480,"13,513.50",Birklands Primary (Academy)
Nottinghamshire County Council,1111/1001,Children and Young People,CYP,Third Party Payments,EDA,01/08/2022,05-10481,"18,951.66",Bracken Lane Primary Academy
Nottinghamshire County Council,1111/1001,Children and Young People,CYP,Third Party Payments,EDA,01/08/2022,05-10482,"4,641.00",Burntstump Seely CofE Primary Acade
Nottinghamshire County Council,1111/1001,Children and Young People,CYP,Third Party Payments,EDA,01/08/2022,05-10483,"8,968.96",St Peters C of E Academy
Nottinghamshire County Council,1111/1001,Children and Young People,CYP,Third Party Payments,EDA,01/08/2022,05-10484,"1,977.78",Flintham Primary Academy School
Nottinghamshire County Council,1111/1001,Children and Young People,CYP,Third Party Payments,EDA,01/08/2022,05-10485,"10,794.70",The Flying High Academy
Nottinghamshire County Council,1111/1001,Children and Young People,CYP,Third Party Payments,EDA,01/08/2022,05-10486,"11,165.70",Forest Glade Primary School (Academ
Nottinghamshire County Council,1111/1001,Children and Young People,CYP,Third Party Payments,EDA,01/08/2022,05-10487,"26,641.80",Greenwood Primary & Nursery School
Nottinghamshire County Council,1111/1001,Children and Young People,CYP,Third Party Payments,EDA,01/08/2022,05-10488,"2,855.13",Gunthorpe C OF E Primary Academy
Nottinghamshire County Council,1111/1001,Children and Young People,CYP,Third Party Payments,EDA,01/08/2022,05-10489,546.00,Haddon Primary School (Academy)
Nottinghamshire County Council,1111/1001,Children and Young People,CYP,Third Party Payments,EDA,01/08/2022,05-10490,"22,412.40",Hawthorne Primary Academy(Flying Hi
Nottinghamshire County Council,1111/1001,Children and Young People,CYP,Third Party Payments,EDA,01/08/2022,05-10491,"19,142.76",Heymann Primary School
Nottinghamshire County Council,1111/1001,Children and Young People,CYP,Third Party Payments,EDA,01/08/2022,05-10492,"18,033.30",Hillocks Primary Academy
Nottinghamshire County Council,1111/1001,Children and Young People,CYP,Third Party Payments,EDA,01/08/2022,05-10493,"26,890.50",Hillside Academy
Nottinghamshire County Council,1111/1001,Children and Young People,CYP,Third Party Payments,EDA,01/08/2022,05-10494,"15,526.56",Holy Trinity Catholic Voluntary Aca
Nottinghamshire County Council,1111/1001,Children and Young People,CYP,Third Party Payments,EDA,01/08/2022,05-10495,"21,512.40",Hucknall Flying High Academy
Nottinghamshire County Council,1111/1001,Children and Young People,CYP,Third Party Payments,EDA,01/08/2022,05-10496,"4,176.90",John Clifford School
Nottinghamshire County Council,1111/1001,Children and Young People,CYP,Third Party Payments,EDA,01/08/2022,05-10497,"11,667.60",John Hunt Academy
Nottinghamshire County Council,1111/1001,Children and Young People,CYP,Third Party Payments,EDA,01/08/2022,05-10498,"4,401.30",Keyworth Primary & Nursery School
Nottinghamshire County Council,1111/1001,Children and Young People,CYP,Third Party Payments,EDA,01/08/2022,05-10499,"14,061.47",Kimberley Primary & Nursery Acadamy
Nottinghamshire County Council,1111/1001,Children and Young People,CYP,Third Party Payments,EDA,01/08/2022,05-10500,"2,235.60",Kingston Park Academy
Nottinghamshire County Council,1111/1001,Children and Young People,CYP,Third Party Payments,EDA,01/08/2022,05-10501,"15,696.00",Kirkby Woodhouse Academy School
Nottinghamshire County Council,1111/1001,Children and Young People,CYP,Third Party Payments,EDA,01/08/2022,05-10502,"1,768.50",Langold Dyscarr Community Academy
Nottinghamshire County Council,1111/1001,Children and Young People,CYP,Third Party Payments,EDA,01/08/2022,05-10503,"18,723.30",Leamington Primary & Nursery Academ
Nottinghamshire County Council,1111/1001,Children and Young People,CYP,Third Party Payments,EDA,01/08/2022,05-10504,"5,162.40",Leverton C Of E Academy
Nottinghamshire County Council,1111/1001,Children and Young People,CYP,Third Party Payments,EDA,01/08/2022,05-10505,"6,549.00",Mansfield Primary Academy
Nottinghamshire County Council,1111/1001,Children and Young People,CYP,Third Party Payments,EDA,01/08/2022,05-10506,"14,930.10",Mapplewells Primary & Nursery Acade
Nottinghamshire County Council,1111/1001,Children and Young People,CYP,Third Party Payments,EDA,01/08/2022,05-10507,"4,855.20",Mount C of E Primary School (Academ
Nottinghamshire County Council,1111/1001,Children and Young People,CYP,Third Party Payments,EDA,01/08/2022,05-10508,"48,092.10",Netherfield Primary School (Academy
Nottinghamshire County Council,1111/1001,Children and Young People,CYP,Third Party Payments,EDA,01/08/2022,05-10509,"32,757.00",Norbridge Academy Trust
Nottinghamshire County Council,1111/1001,Children and Young People,CYP,Third Party Payments,EDA,01/08/2022,05-10510,"3,540.00",Oak Tree Lane Primary Academy
Nottinghamshire County Council,1111/1001,Children and Young People,CYP,Third Party Payments,EDA,01/08/2022,05-10511,"14,447.16",Parkdale Primary Academy
Nottinghamshire County Council,1111/1001,Children and Young People,CYP,Third Party Payments,EDA,01/08/2022,05-10512,"26,404.50",Peafield Lane Academy
Nottinghamshire County Council,1111/1001,Children and Young People,CYP,Third Party Payments,EDA,01/08/2022,05-10513,"11,141.70",Ranskill Primary Academy
Nottinghamshire County Council,1111/1001,Children and Young People,CYP,Third Party Payments,EDA,01/08/2022,05-10514,"29,329.62",Richard Bonnington Primary Academy(
Nottinghamshire County Council,1111/1001,Children and Young People,CYP,Third Party Payments,EDA,01/08/2022,05-10515,"29,156.40",Robert Mellors Primary & Nursery Ac
Nottinghamshire County Council,1111/1001,Children and Young People,CYP,Third Party Payments,EDA,01/08/2022,05-10516,"4,029.90",Rosecliffe Spencer Academy
Nottinghamshire County Council,1111/1001,Children and Young People,CYP,Third Party Payments,EDA,01/08/2022,05-10517,"12,048.27",Sacred Heart Catholic Voluntary Aca
Nottinghamshire County Council,1111/1001,Children and Young People,CYP,Third Party Payments,EDA,01/08/2022,05-10518,"17,344.92",Samuel Barlow Primary Academy
Nottinghamshire County Council,1111/1001,Children and Young People,CYP,Third Party Payments,EDA,01/08/2022,05-10519,"18,723.30",Serlby Park Academy
Nottinghamshire County Council,1111/1001,Children and Young People,CYP,Third Party Payments,EDA,01/08/2022,05-10520,"14,859.90",Sparken Hill Academy
Nottinghamshire County Council,1111/1001,Children and Young People,CYP,Third Party Payments,EDA,01/08/2022,05-10521,"15,881.10",Springbank Primary Academy
Nottinghamshire County Council,1111/1001,Children and Young People,CYP,Third Party Payments,EDA,01/08/2022,05-10522,"23,821.85",St Augustine's Academy (The Forge T
Nottinghamshire County Council,1111/1001,Children and Young People,CYP,Third Party Payments,EDA,01/08/2022,05-10523,"12,909.90",St Johns C of E Academy
Nottinghamshire County Council,1111/1001,Children and Young People,CYP,Third Party Payments,EDA,01/08/2022,05-10524,"10,721.26",[Redacted]
Nottinghamshire County Council,1111/1001,Children and Young People,CYP,Third Party Payments,EDA,01/08/2022,05-10525,"16,340.70",St Josephs Catholic Primary Sch Aca
Nottinghamshire County Council,1111/1001,Children and Young People,CYP,Third Party Payments,EDA,01/08/2022,05-10526,"7,862.40",St Mary's C of E Primary Academy
Nottinghamshire County Council,1111/1001,Children and Young People,CYP,Third Party Payments,EDA,01/08/2022,05-10527,"11,708.70",St Patricks Catholic Voluntary Acad
Nottinghamshire County Council,1111/1001,Children and Young People,CYP,Third Party Payments,EDA,01/08/2022,05-10528,"5,675.40",St Peters C of E Academy Mansfield
Nottinghamshire County Council,1111/1001,Children and Young People,CYP,Third Party Payments,EDA,01/08/2022,05-10529,"14,523.60",St Philip Neri with St Bede Vol Aca
Nottinghamshire County Council,1111/1001,Children and Young People,CYP,Third Party Payments,EDA,01/08/2022,05-10530,"1,771.50",St Swithuns C of E Primary Academy
Nottinghamshire County Council,1111/1001,Children and Young People,CYP,Third Party Payments,EDA,01/08/2022,05-10531,817.50,Bramble Academy (Evolve Trust)
Nottinghamshire County Council,1111/1001,Children and Young People,CYP,Third Party Payments,EDA,01/08/2022,05-10532,"20,411.30",Candleby Lane School
Nottinghamshire County Council,1111/1001,Children and Young People,CYP,Third Party Payments,EDA,01/08/2022,05-10533,"15,286.50",Florence Nightingale Academy
Nottinghamshire County Council,1111/1001,Children and Young People,CYP,Third Party Payments,EDA,01/08/2022,05-10534,"23,278.50",Good Shephard Prim Catholic Vol Aca
Nottinghamshire County Council,1111/1001,Children and Young People,CYP,Third Party Payments,EDA,01/08/2022,05-10535,"33,762.60",Parkgate Academy (Forge Trust)
Nottinghamshire County Council,1111/1001,Children and Young People,CYP,Third Party Payments,EDA,01/08/2022,05-10536,"9,031.80",Python Hill Academy (Forge Trust)
Nottinghamshire County Council,1111/1001,Children and Young People,CYP,Third Party Payments,EDA,01/08/2022,05-10537,"48,947.70",Sir Donald Bailey Academy (Forge Tr
Nottinghamshire County Council,1111/1001,Children and Young People,CYP,Third Party Payments,EDA,01/08/2022,05-10538,"4,801.80",West Park Academy
Nottinghamshire County Council,1111/1001,Children and Young People,CYP,Third Party Payments,EDA,01/08/2022,05-10539,546.00,Kings C of E Primary Academy
Nottinghamshire County Council,1111/1001,Children and Young People,CYP,Third Party Payments,EDA,01/08/2022,05-10540,"14,739.00",Thrumpton Primary Academy
Nottinghamshire County Council,1111/1001,Children and Young People,CYP,Third Party Payments,EDA,01/08/2022,05-10541,"13,431.60",Tuxford Primary Academy
Nottinghamshire County Council,1111/1001,Children and Young People,CYP,Third Party Payments,EDA,01/08/2022,05-10542,"12,881.10",Wainwright Primary Academy (DALP)
Nottinghamshire County Council,1111/1001,Children and Young People,CYP,Third Party Payments,EDA,01/08/2022,05-10543,"7,070.70",Worksop Priory CE Primary Academy
Nottinghamshire County Council,1111/1001,Children and Young People,CYP,Third Party Payments,EDA,02/08/2022,05-10544,"12,310.80",Carlton Infant Academy & Nursery Sc
Nottinghamshire County Council,1111/1001,Children and Young People,CYP,Third Party Payments,EDA,02/08/2022,05-10545,"10,409.22",Sunnyside Spencer Academy (Spencer
Nottinghamshire County Council,1111/1001,Children and Young People,CYP,Third Party Payments,EDA,02/08/2022,05-10546,"1,771.50",Bishop Alexander LEAD Academy
Nottinghamshire County Council,1111/1001,Children and Young People,CYP,Third Party Payments,EDA,02/08/2022,05-10547,"2,620.80",Bishop Alexander LEAD Academy
Nottinghamshire County Council,1111/1001,Children and Young People,CYP,Third Party Payments,EDA,02/08/2022,05-10548,"11,490.75",Sunnyside Spencer Academy (Spencer
Nottinghamshire County Council,1111/1001,Children and Young People,CYP,Third Party Payments,EDA,02/08/2022,05-10549,"8,736.00",Carlton Infant Academy & Nursery Sc
Nottinghamshire County Council,1111/1001,Children and Young People,CYP,Third Party Payments,EDA,02/08/2022,05-10551,"1,944.00",Birklands Primary (Academy)
Nottinghamshire County Council,1111/1001,Children and Young People,CYP,Third Party Payments,EDA,05/08/2022,05-11313,"180,000.00",Stubbin Wood School
Nottinghamshire County Council,1111/1001,Children and Young People,CYP,Third Party Payments,EDA,05/08/2022,05-17791,"7,615.00",Dover Fed for the Arts Astor Colleg
Nottinghamshire County Council,1111/1001,Children and Young People,CYP,Third Party Payments,EDA,08/08/2022,05-10140,"59,485.00",Barnby Road Academy Prim & Nursery
Nottinghamshire County Council,1111/1001,Children and Young People,CYP,Third Party Payments,EDA,08/08/2022,05-10153,"127,604.00",Holgate Academy
Nottinghamshire County Council,1111/1001,Children and Young People,CYP,Third Party Payments,EDA,08/08/2022,05-17780,"1,400.00",East Wold Church of England Primary
Nottinghamshire County Council,1111/1001,Children and Young People,CYP,Third Party Payments,EDA,08/08/2022,05-17812,700.00,Outwood Academy Portland
Nottinghamshire County Council,1111/1001,Children and Young People,CYP,Third Party Payments,EDA,08/08/2022,05-17814,700.00,West Park Academy
Nottinghamshire County Council,1111/1001,Children and Young People,CYP,Third Party Payments,EDA,08/08/2022,05-17833,650.00,Sparken Hill Academy
Nottinghamshire County Council,1111/1001,Children and Young People,CYP,Third Party Payments,EDA,11/08/2022,05-17802,600.00,Holgate Academy
Nottinghamshire County Council,1111/1001,Children and Young People,CYP,Third Party Payments,EDA,11/08/2022,05-17807,700.00,Killisick Junior Academy
Nottinghamshire County Council,1111/1001,Children and Young People,CYP,Third Party Payments,EDA,11/08/2022,05-17831,676.15,Redlands Community Primary School
Nottinghamshire County Council,1111/1001,Children and Young People,CYP,Third Party Payments,EDA,11/08/2022,05-17837,"1,391.00",Outwood Academy - Valley
Nottinghamshire County Council,1111/1001,Children and Young People,CYP,Third Party Payments,EDA,11/08/2022,05-17838,700.00,Tuxford Primary Academy
Nottinghamshire County Council,1111/1001,Children and Young People,CYP,Third Party Payments,EDA,12/08/2022,05-17818,725.00,Carlton Le Willows Academy
Nottinghamshire County Council,1111/1001,Children and Young People,CYP,Third Party Payments,EDA,16/08/2022,05-12865,"8,356.00",St Josephs Catholic Primary Sch Aca
Nottinghamshire County Council,1111/1001,Children and Young People,CYP,Third Party Payments,EDA,16/08/2022,05-12866,"5,050.00",The Becket Catholic Voluntary Acade
Nottinghamshire County Council,1111/1001,Children and Young People,CYP,Third Party Payments,EDA,16/08/2022,05-12867,"6,526.00",St Edmund Campion Voluntary Academy
Nottinghamshire County Council,1111/1001,Children and Young People,CYP,Third Party Payments,EDA,16/08/2022,05-12868,"38,192.00",Keyworth Primary & Nursery School
Nottinghamshire County Council,1111/1001,Children and Young People,CYP,Third Party Payments,EDA,16/08/2022,05-12869,"12,192.00",Crossdale Primary School
Nottinghamshire County Council,1111/1001,Children and Young People,CYP,Third Party Payments,EDA,16/08/2022,05-12870,"1,462.00",Tollerton Primary School
Nottinghamshire County Council,1111/1001,Children and Young People,CYP,Third Party Payments,EDA,16/08/2022,05-12871,"12,000.00",Keyworth Primary & Nursery School
Nottinghamshire County Council,1111/1001,Children and Young People,CYP,Third Party Payments,EDA,16/08/2022,05-12872,"28,638.00",Birklands Primary (Academy)
Nottinghamshire County Council,1111/1001,Children and Young People,CYP,Third Party Payments,EDA,16/08/2022,05-12873,"7,802.00",All Saints Catholic Voluntary Acade
Nottinghamshire County Council,1111/1001,Children and Young People,CYP,Third Party Payments,EDA,16/08/2022,05-12874,"21,201.00",St Philip Neri with St Bede Vol Aca
Nottinghamshire County Council,1111/1001,Children and Young People,CYP,Third Party Payments,EDA,16/08/2022,05-12875,"8,820.00",Holy Trinity Catholic Voluntary Aca
Nottinghamshire County Council,1111/1001,Children and Young People,CYP,Third Party Payments,EDA,16/08/2022,05-12876,"13,659.00",All Saints Catholic Voluntary Acade
Nottinghamshire County Council,1111/1001,Children and Young People,CYP,Third Party Payments,EDA,16/08/2022,05-12877,"14,945.00",St Philip Neri with St Bede Vol Aca
Nottinghamshire County Council,1111/1001,Children and Young People,CYP,Third Party Payments,EDA,16/08/2022,05-12878,"8,356.00",Holy Trinity Catholic Voluntary Aca
Nottinghamshire County Council,1111/1001,Children and Young People,CYP,Third Party Payments,EDA,16/08/2022,05-12879,"13,659.00",All Saints Catholic Voluntary Acade
Nottinghamshire County Council,1111/1001,Children and Young People,CYP,Third Party Payments,EDA,16/08/2022,05-12880,"14,945.00",St Philip Neri with St Bede Vol Aca
Nottinghamshire County Council,1111/1001,Children and Young People,CYP,Third Party Payments,EDA,16/08/2022,05-12881,"8,356.00",Holy Trinity Catholic Voluntary Aca
Nottinghamshire County Council,1111/1001,Children and Young People,CYP,Third Party Payments,EDA,16/08/2022,05-12882,"12,856.00",St Patricks Catholic Voluntary Acad
Nottinghamshire County Council,1111/1001,Children and Young People,CYP,Third Party Payments,EDA,16/08/2022,05-12883,"12,601.00",St Patricks Catholic Voluntary Acad
Nottinghamshire County Council,1111/1001,Children and Young People,CYP,Third Party Payments,EDA,16/08/2022,05-12884,"13,578.00",St Patricks Catholic Voluntary Acad
Nottinghamshire County Council,1111/1001,Children and Young People,CYP,Third Party Payments,EDA,16/08/2022,05-12885,"11,025.00",St Josephs Catholic Primary Sch Aca
Nottinghamshire County Council,1111/1001,Children and Young People,CYP,Third Party Payments,EDA,16/08/2022,05-12886,"1,260.00",St Josephs Catholic Primary Sch Aca
Nottinghamshire County Council,1111/1001,Children and Young People,CYP,Third Party Payments,EDA,16/08/2022,05-12887,"22,340.00",National C of E Academy (Minster Tr
Nottinghamshire County Council,1111/1001,Children and Young People,CYP,Third Party Payments,EDA,16/08/2022,05-12888,"2,406.00",National C of E Academy (Minster Tr
Nottinghamshire County Council,1111/1001,Children and Young People,CYP,Third Party Payments,EDA,16/08/2022,05-12890,"48,141.00",Meden School - A Torch Academy
Nottinghamshire County Council,1111/1001,Children and Young People,CYP,Third Party Payments,EDA,16/08/2022,05-12891,"52,077.00",South Wolds Academy & Sixth Form
Nottinghamshire County Council,1111/1001,Children and Young People,CYP,Third Party Payments,EDA,18/08/2022,05-17880,"7,000.00",Tuxford Academy
Nottinghamshire County Council,1111/1001,Children and Young People,CYP,Third Party Payments,EDA,22/08/2022,05-14189,"200,000.00",Flying High Trust
Nottinghamshire County Council,1111/1001,Children and Young People,CYP,Third Party Payments,EDA,22/08/2022,05-17934,700.00,Carlton Academy
Nottinghamshire County Council,1111/1001,Children and Young People,CYP,Third Party Payments,EDA,23/08/2022,05-14490,700.00,Park Vale Academy
Nottinghamshire County Council,1111/1001,Children and Young People,CYP,Third Party Payments,EFA,01/08/2022,05-17755,"20,455.00",Ackworth School
Nottinghamshire County Council,1111/1001,Children and Young People,CYP,Third Party Payments,EFA,01/08/2022,05-17756,"20,455.00",Ackworth School
Nottinghamshire County Council,1111/1001,Children and Young People,CYP,Third Party Payments,EFA,01/08/2022,05-17768,"1,109.25",Nottinghamshire Healthcare Nhs F Tr
Nottinghamshire County Council,1111/1001,Children and Young People,CYP,Third Party Payments,EFA,04/08/2022,05-17729,"3,200.00",1st Staff Ltd
Nottinghamshire County Council,1111/1001,Children and Young People,CYP,Third Party Payments,EFA,04/08/2022,05-17757,"6,200.00",1st Staff Ltd
Nottinghamshire County Council,1111/1001,Children and Young People,CYP,Third Party Payments,EFA,05/08/2022,05-17821,"1,079.57",Childrens Therapy Solutions Ltd
Nottinghamshire County Council,1111/1001,Children and Young People,CYP,Third Party Payments,EFA,05/08/2022,05-17822,619.33,Childrens Therapy Solutions Ltd
Nottinghamshire County Council,1111/1001,Children and Young People,CYP,Third Party Payments,EFA,05/08/2022,05-17823,"1,226.52",Childrens Therapy Solutions Ltd
Nottinghamshire County Council,1111/1001,Children and Young People,CYP,Third Party Payments,EFA,08/08/2022,05-17771,699.45,M A F Occupational Therapy Services
Nottinghamshire County Council,1111/1001,Children and Young People,CYP,Third Party Payments,EFA,08/08/2022,05-17793,"5,589.55",Crisp Vocational Provision Ltd
Nottinghamshire County Council,1111/1001,Children and Young People,CYP,Third Party Payments,EFA,10/08/2022,05-11995,200.00,MVS Transportation
Nottinghamshire County Council,1111/1001,Children and Young People,CYP,Third Party Payments,EFA,11/08/2022,05-17851,"14,930.39",National Autistic Society
Nottinghamshire County Council,1111/1001,Children and Young People,CYP,Third Party Payments,EFA,11/08/2022,05-17862,"1,030.69",Hardwick House School Ltd
Nottinghamshire County Council,1111/1001,Children and Young People,CYP,Third Party Payments,EFA,12/08/2022,05-17815,510.00,SpeechRight Ltd
Nottinghamshire County Council,1111/1001,Children and Young People,CYP,Third Party Payments,EFA,12/08/2022,05-17836,"16,666.66",Bridge House Independent School
Nottinghamshire County Council,1111/1001,Children and Young People,CYP,Third Party Payments,EFA,12/08/2022,05-17839,"1,080.00",Good Apple Independent School Ltd(S
Nottinghamshire County Council,1111/1001,Children and Young People,CYP,Third Party Payments,EFA,15/08/2022,05-17829,"5,478.00",Sporting Stars Community Interest C
Nottinghamshire County Council,1111/1001,Children and Young People,CYP,Third Party Payments,EFA,15/08/2022,05-17869,"1,440.00",Equip Education & Support Services
Nottinghamshire County Council,1111/1001,Children and Young People,CYP,Third Party Payments,EFA,15/08/2022,05-17905,648.00,Island Project
Nottinghamshire County Council,1111/1001,Children and Young People,CYP,Third Party Payments,EFA,17/08/2022,05-13991,198.00,Sunrise Homes Services Ltd
Nottinghamshire County Council,1111/1001,Children and Young People,CYP,Third Party Payments,EFA,18/08/2022,05-14096,880.92,Jamie Smith Trust
Nottinghamshire County Council,1111/1001,Children and Young People,CYP,Third Party Payments,EFA,19/08/2022,05-17936,"28,853.51",Real Education Ltd
Nottinghamshire County Council,1111/1001,Children and Young People,CYP,Third Party Payments,EFA,19/08/2022,05-17937,"19,686.05",Acacia Hall (Kisimul)
Nottinghamshire County Council,1111/1001,Children and Young People,CYP,Third Party Payments,EFA,19/08/2022,05-17938,"14,766.00",Real Education Ltd
Nottinghamshire County Council,1111/1001,Children and Young People,CYP,Third Party Payments,EGA,03/08/2022,05-10569,"1,484.00",Framework Housing Association
Nottinghamshire County Council,1111/1001,Children and Young People,CYP,Third Party Payments,EGA,04/08/2022,05-17764,"125,483.76",Resolute Care Ltd
Nottinghamshire County Council,1111/1001,Children and Young People,CYP,Third Party Payments,EGA,04/08/2022,05-17769,"26,571.65",Chrysalis Consortium Ltd
Nottinghamshire County Council,1111/1001,Children and Young People,CYP,Third Party Payments,EGA,08/08/2022,05-17840,"2,885.90",Bridge Together Ltd
Nottinghamshire County Council,1111/1001,Children and Young People,CYP,Third Party Payments,EGA,08/08/2022,05-17843,"4,145.82",Thornbury Community Services
Nottinghamshire County Council,1111/1001,Children and Young People,CYP,Third Party Payments,EGA,08/08/2022,05-17919,"182,342.09",Outcomes For Children (Core Assets
Nottinghamshire County Council,1111/1001,Children and Young People,CYP,Third Party Payments,EGA,15/08/2022,05-12857,"5,477.22",CB Little Toes Day Nursery
Nottinghamshire County Council,1111/1001,Children and Young People,CYP,Third Party Payments,EGA,15/08/2022,05-12858,637.20,Ravenshead Out Of School Club
Nottinghamshire County Council,1111/1001,Children and Young People,CYP,Third Party Payments,EGA,15/08/2022,05-12859,"1,456.00",Wolds Day Nursery @ Stragglethorpe
Nottinghamshire County Council,1111/1001,Children and Young People,CYP,Third Party Payments,EGA,15/08/2022,05-17714,"34,122.00",Crystal Care Solutions Ltd
Nottinghamshire County Council,1111/1001,Children and Young People,CYP,Third Party Payments,EGA,15/08/2022,05-17854,"48,392.50",Nottm & Notts Youth Support Ltd
Nottinghamshire County Council,1111/1001,Children and Young People,CYP,Third Party Payments,EGA,15/08/2022,05-17855,"48,392.50",Nottm & Notts Youth Support Ltd
Nottinghamshire County Council,1111/1001,Children and Young People,CYP,Third Party Payments,EGA,15/08/2022,05-17882,"34,122.00",Crystal Care Solutions Ltd
Nottinghamshire County Council,1111/1001,Children and Young People,CYP,Third Party Payments,EGA,16/08/2022,05-13990,"1,400.00",[Redacted]
Nottinghamshire County Council,1111/1001,Children and Young People,CYP,Third Party Payments,EGA,22/08/2022,05-17943,"2,240.00",Nottm Community Housing Assoc (Head
Nottinghamshire County Council,1111/1001,Children and Young People,CYP,Third Party Payments,EGA,25/08/2022,05-14578,"4,365.90",Rainbows Day Nursery
Nottinghamshire County Council,1111/1001,Children and Young People,CYP,Third Party Payments,EGA,25/08/2022,05-14588,600.00,[Redacted]
Nottinghamshire County Council,1111/1001,Children and Young People,CYP,Third Party Payments,EGA,26/08/2022,05-14615,"11,333.70",Sunnydale Nursery Ltd
Nottinghamshire County Council,1111/1001,Children and Young People,CYP,Third Party Payments,EGA,26/08/2022,05-14618,564.48,[Redacted]
Nottinghamshire County Council,1111/1001,Children and Young People,CYP,Third Party Payments,EGA,26/08/2022,05-14625,696.19,[Redacted]
Nottinghamshire County Council,1111/1001,Children and Young People,CYP,Third Party Payments,EGA,26/08/2022,05-14644,579.60,Little Tots
Nottinghamshire County Council,1111/1001,Children and Young People,CYP,Third Party Payments,EGA,26/08/2022,05-14651,"11,201.35",Wolds Childcare Ltd
Nottinghamshire County Council,1111/1001,Children and Young People,CYP,Third Party Payments,EGA,26/08/2022,05-14653,"3,951.36",Saville House School  T/A NRA Acade
Nottinghamshire County Council,1111/1001,Children and Young People,CYP,Third Party Payments,EGA,26/08/2022,05-14654,564.48,Rachel & Philip's Home From Home Ch
Nottinghamshire County Council,1111/1001,Children and Young People,CYP,Third Party Payments,EGA,26/08/2022,05-14657,"3,544.62",Longdale Nursery School (Cherubs)
Nottinghamshire County Council,1111/1001,Children and Young People,CYP,Third Party Payments,EGA,26/08/2022,05-14659,"8,925.84",Wollaton Village Day Nurseries
Nottinghamshire County Council,1111/1001,Children and Young People,CYP,Third Party Payments,EGA,26/08/2022,05-14661,"2,662.46",Misson Pre-School
Nottinghamshire County Council,1111/1001,Children and Young People,CYP,Third Party Payments,EGA,26/08/2022,05-14664,"4,482.91",Toddlers University (Bee)
Nottinghamshire County Council,1111/1001,Children and Young People,CYP,Third Party Payments,EGA,26/08/2022,05-14666,564.48,Jammie Dodgers Childminding Group
Nottinghamshire County Council,1111/1001,Children and Young People,CYP,Third Party Payments,EGA,26/08/2022,05-14668,"18,000.15",Papermoon Day Nursery
Nottinghamshire County Council,1111/1001,Children and Young People,CYP,Third Party Payments,EGA,26/08/2022,05-14670,"24,061.59",Children 1st @ Breedon House (Plumt
Nottinghamshire County Council,1111/1001,Children and Young People,CYP,Third Party Payments,EGA,26/08/2022,05-14671,"1,914.53",Willow Brook Pre-School
Nottinghamshire County Council,1111/1001,Children and Young People,CYP,Third Party Payments,EGA,26/08/2022,05-14672,"1,384.74",[Redacted]
Nottinghamshire County Council,1111/1001,Children and Young People,CYP,Third Party Payments,EGA,26/08/2022,05-14673,"20,471.15",Daisies Day Nursery
Nottinghamshire County Council,1111/1001,Children and Young People,CYP,Third Party Payments,EGA,26/08/2022,05-14675,"1,481.76",V Gill (Childminder)
Nottinghamshire County Council,1111/1001,Children and Young People,CYP,Third Party Payments,EGA,26/08/2022,05-14676,"7,514.05",Lime Trees  (Burton Joyce)
Nottinghamshire County Council,1111/1001,Children and Young People,CYP,Third Party Payments,EGA,26/08/2022,05-14678,"5,363.89",Ark Pre-School
Nottinghamshire County Council,1111/1001,Children and Young People,CYP,Third Party Payments,EGA,26/08/2022,05-14680,"7,411.74",Little Kites Playgroup
Nottinghamshire County Council,1111/1001,Children and Young People,CYP,Third Party Payments,EGA,26/08/2022,05-14681,"17,767.76",Grosvenor House Day Nursery
Nottinghamshire County Council,1111/1001,Children and Young People,CYP,Third Party Payments,EGA,26/08/2022,05-14684,"1,185.41",[Redacted]
Nottinghamshire County Council,1111/1001,Children and Young People,CYP,Third Party Payments,EGA,26/08/2022,05-14686,917.28,[Redacted]
Nottinghamshire County Council,1111/1001,Children and Young People,CYP,Third Party Payments,EGA,26/08/2022,05-14688,"2,845.92",Lady Bay Pre School Playgroup
Nottinghamshire County Council,1111/1001,Children and Young People,CYP,Third Party Payments,EGA,26/08/2022,05-14689,"16,903.83",All Aboard Nursery Ltd
Nottinghamshire County Council,1111/1001,Children and Young People,CYP,Third Party Payments,EGA,26/08/2022,05-14692,"16,487.52",Carlton & Gedling Day Nursery
Nottinghamshire County Council,1111/1001,Children and Young People,CYP,Third Party Payments,EGA,26/08/2022,05-14693,"11,539.50",Arnold House Day Nursery
Nottinghamshire County Council,1111/1001,Children and Young People,CYP,Third Party Payments,EGA,26/08/2022,05-14696,"13,052.13",Alphabet House Day Nurseries Ltd-Lo
Nottinghamshire County Council,1111/1001,Children and Young People,CYP,Third Party Payments,EGA,26/08/2022,05-14697,"3,739.68",Beeston Nursery
Nottinghamshire County Council,1111/1001,Children and Young People,CYP,Third Party Payments,EGA,26/08/2022,05-14698,"1,841.03",Gotham Pre-School Playgroup
Nottinghamshire County Council,1111/1001,Children and Young People,CYP,Third Party Payments,EGA,26/08/2022,05-14700,"7,155.22",Killisick Pre-School
Nottinghamshire County Council,1111/1001,Children and Young People,CYP,Third Party Payments,EGA,26/08/2022,05-14702,"8,831.17",Hucknall Pre-School Playgroup
Nottinghamshire County Council,1111/1001,Children and Young People,CYP,Third Party Payments,EGA,26/08/2022,05-14704,"2,540.16",Jesters Childcare Ltd
Nottinghamshire County Council,1111/1001,Children and Young People,CYP,Third Party Payments,EGA,26/08/2022,05-14706,"3,851.10",Allsorts Preschool Underwood
Nottinghamshire County Council,1111/1001,Children and Young People,CYP,Third Party Payments,EGA,26/08/2022,05-14711,"5,221.44",Collingham & District Pre-School
Nottinghamshire County Council,1111/1001,Children and Young People,CYP,Third Party Payments,EGA,26/08/2022,05-14713,"4,233.60",Pea Pod Day Nursery Ltd
Nottinghamshire County Council,1111/1001,Children and Young People,CYP,Third Party Payments,EGA,26/08/2022,05-14715,"20,843.87",Safe Haven Day Nursery
Nottinghamshire County Council,1111/1001,Children and Young People,CYP,Third Party Payments,EGA,26/08/2022,05-14717,"21,317.94",Shaping Futures Day Nursery
Nottinghamshire County Council,1111/1001,Children and Young People,CYP,Third Party Payments,EGA,26/08/2022,05-14718,"8,908.20",Applegarth Day Nurseries Ltd
Nottinghamshire County Council,1111/1001,Children and Young People,CYP,Third Party Payments,EGA,26/08/2022,05-14719,"3,537.41",Thrumpton Kids Clubs
Nottinghamshire County Council,1111/1001,Children and Young People,CYP,Third Party Payments,EGA,26/08/2022,05-14720,"8,071.18",Radcliffe On Trent Pre School Playg
Nottinghamshire County Council,1111/1001,Children and Young People,CYP,Third Party Payments,EGA,26/08/2022,05-14722,"6,673.80",Staunton Montessori Nursery School
Nottinghamshire County Council,1111/1001,Children and Young People,CYP,Third Party Payments,EGA,26/08/2022,05-14723,"17,512.11",Fernwood Day Nursery Ltd
Nottinghamshire County Council,1111/1001,Children and Young People,CYP,Third Party Payments,EGA,26/08/2022,05-14724,564.48,[Redacted]
Nottinghamshire County Council,1111/1001,Children and Young People,CYP,Third Party Payments,EGA,26/08/2022,05-14725,"1,975.68",Tinas Childminding
Nottinghamshire County Council,1111/1001,Children and Young People,CYP,Third Party Payments,EGA,26/08/2022,05-14727,"8,802.95",Honey Pot Day Private Day Nursery L
Nottinghamshire County Council,1111/1001,Children and Young People,CYP,Third Party Payments,EGA,26/08/2022,05-14728,"14,601.51",Busy Bees (Daybrook)
Nottinghamshire County Council,1111/1001,Children and Young People,CYP,Third Party Payments,EGA,26/08/2022,05-14729,"10,456.75",Little Nippers Pre-School
Nottinghamshire County Council,1111/1001,Children and Young People,CYP,Third Party Payments,EGA,26/08/2022,05-14730,"6,996.91",North Muskham Playgroup
Nottinghamshire County Council,1111/1001,Children and Young People,CYP,Third Party Payments,EGA,26/08/2022,05-14732,"1,693.44",Colston Bassett Preparatory School
Nottinghamshire County Council,1111/1001,Children and Young People,CYP,Third Party Payments,EGA,26/08/2022,05-14737,"5,803.56",Hermitage Pre-School
Nottinghamshire County Council,1111/1001,Children and Young People,CYP,Third Party Payments,EGA,26/08/2022,05-14739,"5,842.35",Highfields School & Nursery
Nottinghamshire County Council,1111/1001,Children and Young People,CYP,Third Party Payments,EGA,26/08/2022,05-14740,"4,898.62",Horsendale Playgroup
Nottinghamshire County Council,1111/1001,Children and Young People,CYP,Third Party Payments,EGA,26/08/2022,05-14743,"2,610.73",St Giles Pre-school
Nottinghamshire County Council,1111/1001,Children and Young People,CYP,Third Party Payments,EGA,26/08/2022,05-14745,"7,100.37",Busy Bees Nurseries Limited
Nottinghamshire County Council,1111/1001,Children and Young People,CYP,Third Party Payments,EGA,26/08/2022,05-14747,"7,099.66",St Mary's Pre-School
Nottinghamshire County Council,1111/1001,Children and Young People,CYP,Third Party Payments,EGA,26/08/2022,05-14749,"8,940.20",Homestead Day Nursery Ltd
Nottinghamshire County Council,1111/1001,Children and Young People,CYP,Third Party Payments,EGA,26/08/2022,05-14751,"5,801.80",Kimberley Pre-School Playgroup
Nottinghamshire County Council,1111/1001,Children and Young People,CYP,Third Party Payments,EGA,26/08/2022,05-14752,"3,465.67",Leahurst Road Pre-School
Nottinghamshire County Council,1111/1001,Children and Young People,CYP,Third Party Payments,EGA,26/08/2022,05-14753,"14,677.07",Leen Mills Pre School Playgroup
Nottinghamshire County Council,1111/1001,Children and Young People,CYP,Third Party Payments,EGA,26/08/2022,05-14754,"10,342.67",Leos Childrens Nurseries Ltd
Nottinghamshire County Council,1111/1001,Children and Young People,CYP,Third Party Payments,EGA,26/08/2022,05-14755,"47,372.16",Children 1st @ Breedon House (MayFi
Nottinghamshire County Council,1111/1001,Children and Young People,CYP,Third Party Payments,EGA,26/08/2022,05-14756,"13,238.82",Westbourne House Nursery School
Nottinghamshire County Council,1111/1001,Children and Young People,CYP,Third Party Payments,EGA,26/08/2022,05-14757,"3,304.95",Lowdham & Epperstone Pre-School
Nottinghamshire County Council,1111/1001,Children and Young People,CYP,Third Party Payments,EGA,26/08/2022,05-14758,"11,482.46",Millfield Nursery School
Nottinghamshire County Council,1111/1001,Children and Young People,CYP,Third Party Payments,EGA,26/08/2022,05-14760,"6,967.06",Noahs Ark Playgroup
Nottinghamshire County Council,1111/1001,Children and Young People,CYP,Third Party Payments,EGA,26/08/2022,05-14762,"10,125.36",Tiny World Mansfield
Nottinghamshire County Council,1111/1001,Children and Young People,CYP,Third Party Payments,EGA,26/08/2022,05-14763,"3,664.71",Old Cooperative Day Nursery
Nottinghamshire County Council,1111/1001,Children and Young People,CYP,Third Party Payments,EGA,26/08/2022,05-14766,"20,083.14",Orchard Day Nursery
Nottinghamshire County Council,1111/1001,Children and Young People,CYP,Third Party Payments,EGA,26/08/2022,05-14767,"7,387.20",Puddleducks Pre-School
Nottinghamshire County Council,1111/1001,Children and Young People,CYP,Third Party Payments,EGA,26/08/2022,05-14773,"5,715.36",Smarties Private Day Nursery
Nottinghamshire County Council,1111/1001,Children and Young People,CYP,Third Party Payments,EGA,26/08/2022,05-14775,"3,867.65",Cherubs Childrens Centre Pleasley
Nottinghamshire County Council,1111/1001,Children and Young People,CYP,Third Party Payments,EGA,26/08/2022,05-14777,"2,069.76",Orchard School Nursery
Nottinghamshire County Council,1111/1001,Children and Young People,CYP,Third Party Payments,EGA,26/08/2022,05-14780,"11,758.82",Papermoon Day Nursery
Nottinghamshire County Council,1111/1001,Children and Young People,CYP,Third Party Payments,EGA,26/08/2022,05-14781,"5,383.63",Prebend Pre-School Playgroup
Nottinghamshire County Council,1111/1001,Children and Young People,CYP,Third Party Payments,EGA,26/08/2022,05-14782,"10,388.20",Railway Children Playgroup
Nottinghamshire County Council,1111/1001,Children and Young People,CYP,Third Party Payments,EGA,26/08/2022,05-14783,"13,692.68",Worksop College
Nottinghamshire County Council,1111/1001,Children and Young People,CYP,Third Party Payments,EGA,26/08/2022,05-14784,"26,077.03",Cherubs Day Nursery
Nottinghamshire County Council,1111/1001,Children and Young People,CYP,Third Party Payments,EGA,26/08/2022,05-14786,"9,795.49",Claremont Early Years Ltd
Nottinghamshire County Council,1111/1001,Children and Young People,CYP,Third Party Payments,EGA,26/08/2022,05-14788,"13,037.43",Granby House Nursery
Nottinghamshire County Council,1111/1001,Children and Young People,CYP,Third Party Payments,EGA,26/08/2022,05-14789,"3,861.94",Ravenshead Pre-School Playgroup
Nottinghamshire County Council,1111/1001,Children and Young People,CYP,Third Party Payments,EGA,26/08/2022,05-14793,"2,948.40",Salterford House School
Nottinghamshire County Council,1111/1001,Children and Young People,CYP,Third Party Payments,EGA,26/08/2022,05-14795,"3,854.34",Sconce Hills Pre-School Playgroup
Nottinghamshire County Council,1111/1001,Children and Young People,CYP,Third Party Payments,EGA,26/08/2022,05-14797,"10,113.60",Scotts Wood Private Day Nursery
Nottinghamshire County Council,1111/1001,Children and Young People,CYP,Third Party Payments,EGA,26/08/2022,05-14799,"12,381.22",Treetops Nursery (Toton)
Nottinghamshire County Council,1111/1001,Children and Young People,CYP,Third Party Payments,EGA,26/08/2022,05-14802,"2,698.92",Arnold St Mary's Pre-School
Nottinghamshire County Council,1111/1001,Children and Young People,CYP,Third Party Payments,EGA,26/08/2022,05-14804,"14,235.23",Radcliffe On Trent Day Nursery
Nottinghamshire County Council,1111/1001,Children and Young People,CYP,Third Party Payments,EGA,26/08/2022,05-14805,"5,644.80",Tiny Talkers Day Nursery
Nottinghamshire County Council,1111/1001,Children and Young People,CYP,Third Party Payments,EGA,26/08/2022,05-14806,"14,126.70",Oceans Day Nursery
Nottinghamshire County Council,1111/1001,Children and Young People,CYP,Third Party Payments,EGA,26/08/2022,05-14807,"12,665.52",The Secret Garden Private Day Nurse
Nottinghamshire County Council,1111/1001,Children and Young People,CYP,Third Party Payments,EGA,26/08/2022,05-14812,"4,783.97",St Johns Pre � School Playgroup
Nottinghamshire County Council,1111/1001,Children and Young People,CYP,Third Party Payments,EGA,26/08/2022,05-14813,"2,910.31",Walesby School Playgroup
Nottinghamshire County Council,1111/1001,Children and Young People,CYP,Third Party Payments,EGA,26/08/2022,05-14814,"3,318.08",Sutton Bonington Playgroup
Nottinghamshire County Council,1111/1001,Children and Young People,CYP,Third Party Payments,EGA,26/08/2022,05-14815,"5,971.14",Sutton Centre Under 5'S Playgroup
Nottinghamshire County Council,1111/1001,Children and Young People,CYP,Third Party Payments,EGA,26/08/2022,05-14816,"3,861.99",Portland Place Pre-School
Nottinghamshire County Council,1111/1001,Children and Young People,CYP,Third Party Payments,EGA,26/08/2022,05-14819,"11,624.76",The Learning Tree Nursery
Nottinghamshire County Council,1111/1001,Children and Young People,CYP,Third Party Payments,EGA,26/08/2022,05-14820,"11,413.08",Little Bears Day Nursery
Nottinghamshire County Council,1111/1001,Children and Young People,CYP,Third Party Payments,EGA,26/08/2022,05-14822,"9,685.84",Tollerton Playgroup
Nottinghamshire County Council,1111/1001,Children and Young People,CYP,Third Party Payments,EGA,26/08/2022,05-14824,"5,223.21",Pre-School 345
Nottinghamshire County Council,1111/1001,Children and Young People,CYP,Third Party Payments,EGA,26/08/2022,05-14826,"3,807.30",Lambley Day Nursery Ltd
Nottinghamshire County Council,1111/1001,Children and Young People,CYP,Third Party Payments,EGA,26/08/2022,05-14831,"9,117.68",Alphabet House Day Nurseries Ltd-Be
Nottinghamshire County Council,1111/1001,Children and Young People,CYP,Third Party Payments,EGA,26/08/2022,05-14832,"9,404.47",Carlton Preschool Playgroup
Nottinghamshire County Council,1111/1001,Children and Young People,CYP,Third Party Payments,EGA,26/08/2022,05-14833,"15,512.13",Village Day Nursery
Nottinghamshire County Council,1111/1001,Children and Young People,CYP,Third Party Payments,EGA,26/08/2022,05-14834,"2,526.05",Watnall Pre-School Playgroup
Nottinghamshire County Council,1111/1001,Children and Young People,CYP,Third Party Payments,EGA,26/08/2022,05-14836,"8,730.63",Weaverthorpe Pre-School Playgroup
Nottinghamshire County Council,1111/1001,Children and Young People,CYP,Third Party Payments,EGA,26/08/2022,05-14837,"16,646.87",Rocking Horse Nursery (Kingsway)
Nottinghamshire County Council,1111/1001,Children and Young People,CYP,Third Party Payments,EGA,26/08/2022,05-14840,"7,493.48",Attenborough Church Pre-School
Nottinghamshire County Council,1111/1001,Children and Young People,CYP,Third Party Payments,EGA,26/08/2022,05-14841,"9,046.38",Awsworth Schoolhouse Day Nursery
Nottinghamshire County Council,1111/1001,Children and Young People,CYP,Third Party Payments,EGA,26/08/2022,05-14843,"11,658.57",Balderton Pre-School
Nottinghamshire County Council,1111/1001,Children and Young People,CYP,Third Party Payments,EGA,26/08/2022,05-14848,"6,295.28",Balderton Village Day Nursery
Nottinghamshire County Council,1111/1001,Children and Young People,CYP,Third Party Payments,EGA,26/08/2022,05-14849,"5,700.66",West Street Pre-School
Nottinghamshire County Council,1111/1001,Children and Young People,CYP,Third Party Payments,EGA,26/08/2022,05-14850,"15,565.54",Alphabet House Day Nurseries Ltd-Wh
Nottinghamshire County Council,1111/1001,Children and Young People,CYP,Third Party Payments,EGA,26/08/2022,05-14851,"7,691.04",Whitehouse Day Nursery
Nottinghamshire County Council,1111/1001,Children and Young People,CYP,Third Party Payments,EGA,26/08/2022,05-14853,"5,380.20",Willow Pre-School Playgroup
Nottinghamshire County Council,1111/1001,Children and Young People,CYP,Third Party Payments,EGA,26/08/2022,05-14856,"3,626.78",Windmill Kindergarten CIC
Nottinghamshire County Council,1111/1001,Children and Young People,CYP,Third Party Payments,EGA,26/08/2022,05-14858,"22,761.48",Papermoon Day Nursery Sutton In Ash
Nottinghamshire County Council,1111/1001,Children and Young People,CYP,Third Party Payments,EGA,26/08/2022,05-14860,"6,516.81",Buttercross Pre School
Nottinghamshire County Council,1111/1001,Children and Young People,CYP,Third Party Payments,EGA,26/08/2022,05-14861,"6,717.31",Bramcote Pre-School Playgroup
Nottinghamshire County Council,1111/1001,Children and Young People,CYP,Third Party Payments,EGA,26/08/2022,05-14862,"18,307.38",Bright Sparks Day Nursery
Nottinghamshire County Council,1111/1001,Children and Young People,CYP,Third Party Payments,EGA,26/08/2022,05-14865,"16,233.50",Brooklyn Day Nursery
Nottinghamshire County Council,1111/1001,Children and Young People,CYP,Third Party Payments,EGA,26/08/2022,05-14867,"3,146.97",Woodborough Village Pre School
Nottinghamshire County Council,1111/1001,Children and Young People,CYP,Third Party Payments,EGA,26/08/2022,05-14868,"26,853.23",Woodthorpe Day Nursery Ltd
Nottinghamshire County Council,1111/1001,Children and Young People,CYP,Third Party Payments,EGA,26/08/2022,05-14869,"11,718.32",Hollies Day Nurseries Ltd
Nottinghamshire County Council,1111/1001,Children and Young People,CYP,Third Party Payments,EGA,26/08/2022,05-14870,"4,290.05",Hickling Pre-School
Nottinghamshire County Council,1111/1001,Children and Young People,CYP,Third Party Payments,EGA,26/08/2022,05-14871,"61,196.10",Serendipity's Day Nursery
Nottinghamshire County Council,1111/1001,Children and Young People,CYP,Third Party Payments,EGA,26/08/2022,05-14872,"6,057.59",Coteswood House School
Nottinghamshire County Council,1111/1001,Children and Young People,CYP,Third Party Payments,EGA,26/08/2022,05-14873,"17,115.36",Bizzy Kidz
Nottinghamshire County Council,1111/1001,Children and Young People,CYP,Third Party Payments,EGA,26/08/2022,05-14875,"11,288.99",Cherubs Childrens Centre Wynndale
Nottinghamshire County Council,1111/1001,Children and Young People,CYP,Third Party Payments,EGA,26/08/2022,05-14877,"20,879.16",Little Oaks Nursery
Nottinghamshire County Council,1111/1001,Children and Young People,CYP,Third Party Payments,EGA,26/08/2022,05-14879,"10,310.58",The Learning Tree Day Nursery 2
Nottinghamshire County Council,1111/1001,Children and Young People,CYP,Third Party Payments,EGA,26/08/2022,05-14881,"11,778.82",Ruddington Nursery & Pre-School
Nottinghamshire County Council,1111/1001,Children and Young People,CYP,Third Party Payments,EGA,26/08/2022,05-14882,"8,840.58",Papplewick Pre-School Playgroup
Nottinghamshire County Council,1111/1001,Children and Young People,CYP,Third Party Payments,EGA,26/08/2022,05-14888,"3,877.86",Little Friends Day Nursery
Nottinghamshire County Council,1111/1001,Children and Young People,CYP,Third Party Payments,EGA,26/08/2022,05-14890,"20,568.24",Stapleford Day Nursery
Nottinghamshire County Council,1111/1001,Children and Young People,CYP,Third Party Payments,EGA,26/08/2022,05-14891,"9,834.30",Rocking Horse Nursery (Hucknall)
Nottinghamshire County Council,1111/1001,Children and Young People,CYP,Third Party Payments,EGA,26/08/2022,05-14892,"11,660.04",Treetops Nurseries (Workop)
Nottinghamshire County Council,1111/1001,Children and Young People,CYP,Third Party Payments,EGA,26/08/2022,05-14893,"3,492.72",Christchurch Hall Pre-School Playgr
Nottinghamshire County Council,1111/1001,Children and Young People,CYP,Third Party Payments,EGA,26/08/2022,05-14895,"12,351.53",Carnarvon Pre-School
Nottinghamshire County Council,1111/1001,Children and Young People,CYP,Third Party Payments,EGA,26/08/2022,05-14901,"2,725.38",Costock Pre School
Nottinghamshire County Council,1111/1001,Children and Young People,CYP,Third Party Payments,EGA,26/08/2022,05-14903,"7,497.00",Papermoon Day Nursery
Nottinghamshire County Council,1111/1001,Children and Young People,CYP,Third Party Payments,EGA,26/08/2022,05-14908,"4,614.63",Haywood Road Pre-School
Nottinghamshire County Council,1111/1001,Children and Young People,CYP,Third Party Payments,EGA,26/08/2022,05-14911,"4,511.43",Southfields Pre-School
Nottinghamshire County Council,1111/1001,Children and Young People,CYP,Third Party Payments,EGA,26/08/2022,05-14912,"10,485.22",Ashfield Plaza Day Nursery
Nottinghamshire County Council,1111/1001,Children and Young People,CYP,Third Party Payments,EGA,26/08/2022,05-14913,"10,865.07",Cranmer Pre-School
Nottinghamshire County Council,1111/1001,Children and Young People,CYP,Third Party Payments,EGA,26/08/2022,05-14915,"8,105.00",Daisies Day Nursery
Nottinghamshire County Council,1111/1001,Children and Young People,CYP,Third Party Payments,EGA,26/08/2022,05-14917,"12,601.99",East Leake Day Nursery & Pre-School
Nottinghamshire County Council,1111/1001,Children and Young People,CYP,Third Party Payments,EGA,26/08/2022,05-14920,"2,441.37",Elston Pre-school
Nottinghamshire County Council,1111/1001,Children and Young People,CYP,Third Party Payments,EGA,26/08/2022,05-14921,"12,502.25",Wollaton Village Day Nurseries Ltd
Nottinghamshire County Council,1111/1001,Children and Young People,CYP,Third Party Payments,EGA,26/08/2022,05-14924,"12,388.32",Pump Farm Day Nursery
Nottinghamshire County Council,1111/1001,Children and Young People,CYP,Third Party Payments,EGA,26/08/2022,05-14926,"15,037.47",Edwalton Day Nursery
Nottinghamshire County Council,1111/1001,Children and Young People,CYP,Third Party Payments,EGA,26/08/2022,05-14928,"7,819.82",Farnsfield Pre-School
Nottinghamshire County Council,1111/1001,Children and Young People,CYP,Third Party Payments,EGA,26/08/2022,05-14929,"3,983.12",Fledglings Pre School
Nottinghamshire County Council,1111/1001,Children and Young People,CYP,Third Party Payments,EGA,26/08/2022,05-14931,"5,932.34",Early Years Playgroup
Nottinghamshire County Council,1111/1001,Children and Young People,CYP,Third Party Payments,EGA,26/08/2022,05-14933,"3,161.09",Lowater Street Play & Pre School
Nottinghamshire County Council,1111/1001,Children and Young People,CYP,Third Party Payments,EGA,26/08/2022,05-14935,"7,537.50",Little Millers Day Nursery
Nottinghamshire County Council,1111/1001,Children and Young People,CYP,Third Party Payments,EGA,26/08/2022,05-14937,"3,176.97",Tiny Tots Playgroup
Nottinghamshire County Council,1111/1001,Children and Young People,CYP,Third Party Payments,EGA,26/08/2022,05-14939,"11,712.96",Alphabet House Day Nurseries Ltd-We
Nottinghamshire County Council,1111/1001,Children and Young People,CYP,Third Party Payments,EGA,26/08/2022,05-14941,"15,471.59",Good Foundations Day Nursery
Nottinghamshire County Council,1111/1001,Children and Young People,CYP,Third Party Payments,EGA,26/08/2022,05-14943,"2,804.29",Good Shepherd Pre-School
Nottinghamshire County Council,1111/1001,Children and Young People,CYP,Third Party Payments,EGA,26/08/2022,05-14944,"5,192.04",Leo's Childrens Nurseries Ltd
Nottinghamshire County Council,1111/1001,Children and Young People,CYP,Third Party Payments,EGA,26/08/2022,05-14946,"12,181.44",Bircotes Pre-School
Nottinghamshire County Council,1111/1001,Children and Young People,CYP,Third Party Payments,EGA,26/08/2022,05-14949,"9,511.38",East Leake Pre-School Playgroup
Nottinghamshire County Council,1111/1001,Children and Young People,CYP,Third Party Payments,EGA,26/08/2022,05-14950,"6,601.48",Little Acorns Shireoaks
Nottinghamshire County Council,1111/1001,Children and Young People,CYP,Third Party Payments,EGA,26/08/2022,05-14953,"8,333.14",Willow Childcare & Training Ltd
Nottinghamshire County Council,1111/1001,Children and Young People,CYP,Third Party Payments,EGA,26/08/2022,05-14955,"1,505.28",J Fisher (Childminder)
Nottinghamshire County Council,1111/1001,Children and Young People,CYP,Third Party Payments,EGA,26/08/2022,05-14957,"14,411.88",Treetops Nursery (Clipstone)
Nottinghamshire County Council,1111/1001,Children and Young People,CYP,Third Party Payments,EGA,26/08/2022,05-14958,"1,199.52",[Redacted]
Nottinghamshire County Council,1111/1001,Children and Young People,CYP,Third Party Payments,EGA,26/08/2022,05-14961,"13,185.90",Bright Stars Childcare
Nottinghamshire County Council,1111/1001,Children and Young People,CYP,Third Party Payments,EGA,26/08/2022,05-14962,"8,548.19",Cherubs Ryton Park
Nottinghamshire County Council,1111/1001,Children and Young People,CYP,Third Party Payments,EGA,26/08/2022,05-14965,"6,394.50",Bullpit Road Nursery
Nottinghamshire County Council,1111/1001,Children and Young People,CYP,Third Party Payments,EGA,26/08/2022,05-14967,"23,868.05",The Enchanted Garden Day Nursery
Nottinghamshire County Council,1111/1001,Children and Young People,CYP,Third Party Payments,EGA,26/08/2022,05-14968,"1,270.08",[Redacted]
Nottinghamshire County Council,1111/1001,Children and Young People,CYP,Third Party Payments,EGA,26/08/2022,05-14969,"1,270.08",Kylees Childminding Services
Nottinghamshire County Council,1111/1001,Children and Young People,CYP,Third Party Payments,EGA,26/08/2022,05-14971,917.28,C A Quinn (Childminder)
Nottinghamshire County Council,1111/1001,Children and Young People,CYP,Third Party Payments,EGA,26/08/2022,05-14973,"1,609.86",Luans Little Stars
Nottinghamshire County Council,1111/1001,Children and Young People,CYP,Third Party Payments,EGA,26/08/2022,05-14974,"11,430.72",Zoe's Childcare Ltd
Nottinghamshire County Council,1111/1001,Children and Young People,CYP,Third Party Payments,EGA,26/08/2022,05-14977,"6,681.75",Cedar House Day Nursery
Nottinghamshire County Council,1111/1001,Children and Young People,CYP,Third Party Payments,EGA,26/08/2022,05-14980,564.48,Jelly Tots
Nottinghamshire County Council,1111/1001,Children and Young People,CYP,Third Party Payments,EGA,26/08/2022,05-14983,"3,175.20",[Redacted]
Nottinghamshire County Council,1111/1001,Children and Young People,CYP,Third Party Payments,EGA,26/08/2022,05-14984,"32,780.11",Orange Tree Day Nursery
Nottinghamshire County Council,1111/1001,Children and Young People,CYP,Third Party Payments,EGA,26/08/2022,05-14986,635.04,[Redacted]
Nottinghamshire County Council,1111/1001,Children and Young People,CYP,Third Party Payments,EGA,26/08/2022,05-14989,536.25,H Fletcher (Childminder)
Nottinghamshire County Council,1111/1001,Children and Young People,CYP,Third Party Payments,EGA,26/08/2022,05-14990,790.27,[Redacted]
Nottinghamshire County Council,1111/1001,Children and Young People,CYP,Third Party Payments,EGA,26/08/2022,05-14992,564.48,[Redacted]
Nottinghamshire County Council,1111/1001,Children and Young People,CYP,Third Party Payments,EGA,26/08/2022,05-14994,"7,954.48",Rushcliffe Pre-School (Nottingham)
Nottinghamshire County Council,1111/1001,Children and Young People,CYP,Third Party Payments,EGA,26/08/2022,05-14998,"4,967.43",Upton Crickets Day Nursery
Nottinghamshire County Council,1111/1001,Children and Young People,CYP,Third Party Payments,EGA,26/08/2022,05-14999,"1,288.90",[Redacted]
Nottinghamshire County Council,1111/1001,Children and Young People,CYP,Third Party Payments,EGA,26/08/2022,05-15002,564.48,[Redacted]
Nottinghamshire County Council,1111/1001,Children and Young People,CYP,Third Party Payments,EGA,26/08/2022,05-15007,"8,240.82",Cheeky Monkeys Day Nursery
Nottinghamshire County Council,1111/1001,Children and Young People,CYP,Third Party Payments,EGA,26/08/2022,05-15009,564.48,[Redacted]
Nottinghamshire County Council,1111/1001,Children and Young People,CYP,Third Party Payments,EGA,26/08/2022,05-15011,"2,187.36",[Redacted]
Nottinghamshire County Council,1111/1001,Children and Young People,CYP,Third Party Payments,EGA,26/08/2022,05-15013,"1,128.96",[Redacted]
Nottinghamshire County Council,1111/1001,Children and Young People,CYP,Third Party Payments,EGA,26/08/2022,05-15015,890.82,[Redacted]
Nottinghamshire County Council,1111/1001,Children and Young People,CYP,Third Party Payments,EGA,26/08/2022,05-15016,917.28,[Redacted]
Nottinghamshire County Council,1111/1001,Children and Young People,CYP,Third Party Payments,EGA,26/08/2022,05-15019,564.48,[Redacted]
Nottinghamshire County Council,1111/1001,Children and Young People,CYP,Third Party Payments,EGA,26/08/2022,05-15020,"10,646.53",Children 1st @ Newark Centre
Nottinghamshire County Council,1111/1001,Children and Young People,CYP,Third Party Payments,EGA,26/08/2022,05-15022,"6,121.08",Zoes Childcare Ltd
Nottinghamshire County Council,1111/1001,Children and Young People,CYP,Third Party Payments,EGA,26/08/2022,05-15024,"1,128.96",Lucy Doherty (Childminder)
Nottinghamshire County Council,1111/1001,Children and Young People,CYP,Third Party Payments,EGA,26/08/2022,05-15025,564.48,Ami Wallington Childminding Service
Nottinghamshire County Council,1111/1001,Children and Young People,CYP,Third Party Payments,EGA,26/08/2022,05-15026,"1,005.48",[Redacted]
Nottinghamshire County Council,1111/1001,Children and Young People,CYP,Third Party Payments,EGA,26/08/2022,05-15028,705.60,[Redacted]
Nottinghamshire County Council,1111/1001,Children and Young People,CYP,Third Party Payments,EGA,26/08/2022,05-15029,"1,128.96",[Redacted]
Nottinghamshire County Council,1111/1001,Children and Young People,CYP,Third Party Payments,EGA,26/08/2022,05-15033,"1,317.12",[Redacted]
Nottinghamshire County Council,1111/1001,Children and Young People,CYP,Third Party Payments,EGA,26/08/2022,05-15034,969.03,[Redacted]
Nottinghamshire County Council,1111/1001,Children and Young People,CYP,Third Party Payments,EGA,26/08/2022,05-15035,705.60,[Redacted]
Nottinghamshire County Council,1111/1001,Children and Young People,CYP,Third Party Payments,EGA,26/08/2022,05-15036,564.48,Jeanette Hooper Childminding Servic
Nottinghamshire County Council,1111/1001,Children and Young People,CYP,Third Party Payments,EGA,26/08/2022,05-15039,"8,440.74",Little Beans Playgroup
Nottinghamshire County Council,1111/1001,Children and Young People,CYP,Third Party Payments,EGA,26/08/2022,05-15040,"6,621.49",Childrens House Childcare Ltd
Nottinghamshire County Council,1111/1001,Children and Young People,CYP,Third Party Payments,EGA,26/08/2022,05-15041,635.04,[Redacted]
Nottinghamshire County Council,1111/1001,Children and Young People,CYP,Third Party Payments,EGA,26/08/2022,05-15043,"1,354.76",Little Acorns Childminding
Nottinghamshire County Council,1111/1001,Children and Young People,CYP,Third Party Payments,EGA,26/08/2022,05-15045,"13,053.60",Mapperley Day Nursery
Nottinghamshire County Council,1111/1001,Children and Young People,CYP,Third Party Payments,EGA,26/08/2022,05-15047,508.03,T M Fletcher (Childminding Service)
Nottinghamshire County Council,1111/1001,Children and Young People,CYP,Third Party Payments,EGA,26/08/2022,05-15048,917.28,Taylor -Made Childcare
Nottinghamshire County Council,1111/1001,Children and Young People,CYP,Third Party Payments,EGA,26/08/2022,05-15052,"18,865.13",Hollies Day Nurseries Ltd
Nottinghamshire County Council,1111/1001,Children and Young People,CYP,Third Party Payments,EGA,26/08/2022,05-15053,"2,469.60",Yew Tree Childcare
Nottinghamshire County Council,1111/1001,Children and Young People,CYP,Third Party Payments,EGA,26/08/2022,05-15056,"26,304.77",Phoenix Park Nursery Ltd
Nottinghamshire County Council,1111/1001,Children and Young People,CYP,Third Party Payments,EGA,26/08/2022,05-15057,"2,328.48",R Durr Rose Lodge Childminding
Nottinghamshire County Council,1111/1001,Children and Young People,CYP,Third Party Payments,EGA,26/08/2022,05-15061,"2,414.92",Explorers Childcare
Nottinghamshire County Council,1111/1001,Children and Young People,CYP,Third Party Payments,EGA,26/08/2022,05-15063,904.93,Dee Dee's Childminding
Nottinghamshire County Council,1111/1001,Children and Young People,CYP,Third Party Payments,EGA,26/08/2022,05-15065,"8,577.84",Wolds Day Nursery @ Stragglethorpe
Nottinghamshire County Council,1111/1001,Children and Young People,CYP,Third Party Payments,EGA,26/08/2022,05-15068,775.41,D Simpson (Childminder)
Nottinghamshire County Council,1111/1001,Children and Young People,CYP,Third Party Payments,EGA,26/08/2022,05-15069,531.55,Susan Cochran Childminding Service
Nottinghamshire County Council,1111/1001,Children and Young People,CYP,Third Party Payments,EGA,26/08/2022,05-15076,564.48,Belvoir House Childminding
Nottinghamshire County Council,1111/1001,Children and Young People,CYP,Third Party Payments,EGA,26/08/2022,05-15078,"9,754.92",Pre-School Learning Alliance (HO)
Nottinghamshire County Council,1111/1001,Children and Young People,CYP,Third Party Payments,EGA,26/08/2022,05-15080,917.28,J Hall (Childminder)
Nottinghamshire County Council,1111/1001,Children and Young People,CYP,Third Party Payments,EGA,26/08/2022,05-15084,"16,662.75",Aunty Sue's Day Care Ltd
Nottinghamshire County Council,1111/1001,Children and Young People,CYP,Third Party Payments,EGA,26/08/2022,05-15086,"7,973.28",Happy Days Childcare Services Ltd
Nottinghamshire County Council,1111/1001,Children and Young People,CYP,Third Party Payments,EGA,26/08/2022,05-15088,"7,324.13",Alphabet House Day Nursery (Chilwel
Nottinghamshire County Council,1111/1001,Children and Young People,CYP,Third Party Payments,EGA,26/08/2022,05-15091,"1,128.96",L Naylor (Childminding Service)
Nottinghamshire County Council,1111/1001,Children and Young People,CYP,Third Party Payments,EGA,26/08/2022,05-15093,766.08,Hunny Bunny's Childcare
Nottinghamshire County Council,1111/1001,Children and Young People,CYP,Third Party Payments,EGA,26/08/2022,05-15094,"13,907.38",Creative Hands Childcare Ltd
Nottinghamshire County Council,1111/1001,Children and Young People,CYP,Third Party Payments,EGA,26/08/2022,05-15097,691.49,Imogen Barnett (Immy's House)
Nottinghamshire County Council,1111/1001,Children and Young People,CYP,Third Party Payments,EGA,26/08/2022,05-15098,"10,319.40",Little Lambs Day Nursery
Nottinghamshire County Council,1111/1001,Children and Young People,CYP,Third Party Payments,EGA,26/08/2022,05-15102,564.48,J Heath (Childminder)
Nottinghamshire County Council,1111/1001,Children and Young People,CYP,Third Party Payments,EGA,26/08/2022,05-15103,"1,481.76",N Stevenson (Childminder)
Nottinghamshire County Council,1111/1001,Children and Young People,CYP,Third Party Payments,EGA,26/08/2022,05-15104,564.48,B Lilley (Childminder)
Nottinghamshire County Council,1111/1001,Children and Young People,CYP,Third Party Payments,EGA,26/08/2022,05-15106,"1,411.20",S Elliott (Childminder)
Nottinghamshire County Council,1111/1001,Children and Young People,CYP,Third Party Payments,EGA,26/08/2022,05-15107,917.28,S Simpson (Childminder)
Nottinghamshire County Council,1111/1001,Children and Young People,CYP,Third Party Payments,EGA,26/08/2022,05-15108,917.28,Kathryn Birks Childminding Service
Nottinghamshire County Council,1111/1001,Children and Young People,CYP,Third Party Payments,EGA,26/08/2022,05-15111,"1,467.65",N Lees (Childminder)
Nottinghamshire County Council,1111/1001,Children and Young People,CYP,Third Party Payments,EGA,26/08/2022,05-15113,"12,013.30",Jumacare Ltd T/A Church House Nurse
Nottinghamshire County Council,1111/1001,Children and Young People,CYP,Third Party Payments,EGA,26/08/2022,05-15116,"8,915.84",Child First (Welbeck) Nursery
Nottinghamshire County Council,1111/1001,Children and Young People,CYP,Third Party Payments,EGA,26/08/2022,05-15118,564.48,H Machin Childminder
Nottinghamshire County Council,1111/1001,Children and Young People,CYP,Third Party Payments,EGA,26/08/2022,05-15120,564.48,K Watt Childminder
Nottinghamshire County Council,1111/1001,Children and Young People,CYP,Third Party Payments,EGA,26/08/2022,05-15122,662.51,Kates Childminding Services
Nottinghamshire County Council,1111/1001,Children and Young People,CYP,Third Party Payments,EGA,26/08/2022,05-15124,"1,273.61",Elaine Marshall (Childminder)
Nottinghamshire County Council,1111/1001,Children and Young People,CYP,Third Party Payments,EGA,26/08/2022,05-15129,890.82,L Nightingale (Childiminer)
Nottinghamshire County Council,1111/1001,Children and Young People,CYP,Third Party Payments,EGA,26/08/2022,05-15130,"1,500.58",Kate's Childminding
Nottinghamshire County Council,1111/1001,Children and Young People,CYP,Third Party Payments,EGA,26/08/2022,05-15132,"4,300.38",Country Kids Day Nursery (Kneesall)
Nottinghamshire County Council,1111/1001,Children and Young People,CYP,Third Party Payments,EGA,26/08/2022,05-15137,616.23,T Goddard (Childminder)
Nottinghamshire County Council,1111/1001,Children and Young People,CYP,Third Party Payments,EGA,26/08/2022,05-15138,705.60,Butterflies Childminding Services
Nottinghamshire County Council,1111/1001,Children and Young People,CYP,Third Party Payments,EGA,26/08/2022,05-15141,"2,116.80",Little House Of Horrors
Nottinghamshire County Council,1111/1001,Children and Young People,CYP,Third Party Payments,EGA,26/08/2022,05-15143,564.48,Tracys Childminding Services
Nottinghamshire County Council,1111/1001,Children and Young People,CYP,Third Party Payments,EGA,26/08/2022,05-15145,602.11,Ruthies Childcare
Nottinghamshire County Council,1111/1001,Children and Young People,CYP,Third Party Payments,EGA,26/08/2022,05-15146,"4,842.18",Little House Childcare of Brinsley
Nottinghamshire County Council,1111/1001,Children and Young People,CYP,Third Party Payments,EGA,26/08/2022,05-15147,"2,646.00",Green Tot Childcare
Nottinghamshire County Council,1111/1001,Children and Young People,CYP,Third Party Payments,EGA,26/08/2022,05-15148,"1,552.32",E Overton (Childminder)
Nottinghamshire County Council,1111/1001,Children and Young People,CYP,Third Party Payments,EGA,26/08/2022,05-15149,658.56,K J Channer (Childminder)
Nottinghamshire County Council,1111/1001,Children and Young People,CYP,Third Party Payments,EGA,26/08/2022,05-15152,752.64,D G K Services Ltd
Nottinghamshire County Council,1111/1001,Children and Young People,CYP,Third Party Payments,EGA,26/08/2022,05-15155,"1,481.76",Jenny's Jelly Tots
Nottinghamshire County Council,1111/1001,Children and Young People,CYP,Third Party Payments,EGA,26/08/2022,05-15157,635.04,Sarah's Childminding
Nottinghamshire County Council,1111/1001,Children and Young People,CYP,Third Party Payments,EGA,26/08/2022,05-15159,846.72,R Savage (Childminder)
Nottinghamshire County Council,1111/1001,Children and Young People,CYP,Third Party Payments,EGA,26/08/2022,05-15160,"1,270.08",L Warwick (Childminder)
Nottinghamshire County Council,1111/1001,Children and Young People,CYP,Third Party Payments,EGA,26/08/2022,05-15162,"16,878.54",Luan's Little People Ltd
Nottinghamshire County Council,1111/1001,Children and Young People,CYP,Third Party Payments,EGA,26/08/2022,05-15166,"1,241.86",Fingerprints Childminding
Nottinghamshire County Council,1111/1001,Children and Young People,CYP,Third Party Payments,EGA,26/08/2022,05-15171,"10,373.27",Little Adventures Forest School Ltd
Nottinghamshire County Council,1111/1001,Children and Young People,CYP,Third Party Payments,EGA,26/08/2022,05-15178,"1,270.08",L & K's Little Kingdom
Nottinghamshire County Council,1111/1001,Children and Young People,CYP,Third Party Payments,EGA,26/08/2022,05-15180,"9,086.84",Ryan House Day Nursery
Nottinghamshire County Council,1111/1001,Children and Young People,CYP,Third Party Payments,EGA,26/08/2022,05-15181,"15,228.36",Little Baths Ltd T/A Little PLums D
Nottinghamshire County Council,1111/1001,Children and Young People,CYP,Third Party Payments,EGA,26/08/2022,05-15182,705.60,K Mcknight Childcare
Nottinghamshire County Council,1111/1001,Children and Young People,CYP,Third Party Payments,EGA,26/08/2022,05-15183,"9,690.24",Lime Trees Day Nursery Ltd
Nottinghamshire County Council,1111/1001,Children and Young People,CYP,Third Party Payments,EGA,26/08/2022,05-15184,"11,681.86",Hollies Day Nursery (Loughborough R
Nottinghamshire County Council,1111/1001,Children and Young People,CYP,Third Party Payments,EGA,26/08/2022,05-15186,564.48,Gemmas Little Gems
Nottinghamshire County Council,1111/1001,Children and Young People,CYP,Third Party Payments,EGA,26/08/2022,05-15189,"11,507.07",Secret Garden Childcare Ltd
Nottinghamshire County Council,1111/1001,Children and Young People,CYP,Third Party Payments,EGA,26/08/2022,05-15190,635.04,Amanda Birth to 11yrs Childcare
Nottinghamshire County Council,1111/1001,Children and Young People,CYP,Third Party Payments,EGA,26/08/2022,05-15195,"11,876.74",Cherubs (Sutton In Ashfield)
Nottinghamshire County Council,1111/1001,Children and Young People,CYP,Third Party Payments,EGA,26/08/2022,05-15197,"10,567.20",Small People Ltd
Nottinghamshire County Council,1111/1001,Children and Young People,CYP,Third Party Payments,EGA,26/08/2022,05-15198,564.48,E L Smith (Childminder)
Nottinghamshire County Council,1111/1001,Children and Young People,CYP,Third Party Payments,EGA,26/08/2022,05-15199,564.48,Mornington Childcare Services
Nottinghamshire County Council,1111/1001,Children and Young People,CYP,Third Party Payments,EGA,26/08/2022,05-15200,564.48,L Tinsley (Childminder)
Nottinghamshire County Council,1111/1001,Children and Young People,CYP,Third Party Payments,EGA,26/08/2022,05-15202,"8,410.75",Little Wrens Day Nursery & Pre Scho
Nottinghamshire County Council,1111/1001,Children and Young People,CYP,Third Party Payments,EGA,26/08/2022,05-15203,"1,481.76",U Tomlinson (Childminder)
Nottinghamshire County Council,1111/1001,Children and Young People,CYP,Third Party Payments,EGA,26/08/2022,05-15206,"4,021.92",Jelly Beans Day Nursery Ltd
Nottinghamshire County Council,1111/1001,Children and Young People,CYP,Third Party Payments,EGA,26/08/2022,05-15207,691.49,Matthew's Monsters
Nottinghamshire County Council,1111/1001,Children and Young People,CYP,Third Party Payments,EGA,26/08/2022,05-15208,"7,751.31",Play Days Cottage
Nottinghamshire County Council,1111/1001,Children and Young People,CYP,Third Party Payments,EGA,26/08/2022,05-15209,"1,128.96",Little Foxes Hucknall
Nottinghamshire County Council,1111/1001,Children and Young People,CYP,Third Party Payments,EGA,26/08/2022,05-15210,564.48,K Lockyer (Childminder)
Nottinghamshire County Council,1111/1001,Children and Young People,CYP,Third Party Payments,EGA,26/08/2022,05-15211,"1,128.96",New Beginnings Quality Childcare
Nottinghamshire County Council,1111/1001,Children and Young People,CYP,Third Party Payments,EGA,26/08/2022,05-15213,752.64,Fox Cubs Childminding
Nottinghamshire County Council,1111/1001,Children and Young People,CYP,Third Party Payments,EGA,26/08/2022,05-15215,"1,411.20",A Pemberton (Childminder)
Nottinghamshire County Council,1111/1001,Children and Young People,CYP,Third Party Payments,EGA,26/08/2022,05-15218,512.00,Windmills Childcare
Nottinghamshire County Council,1111/1001,Children and Young People,CYP,Third Party Payments,EGA,26/08/2022,05-15219,"1,058.40",Michelle Maddock (Childminder)
Nottinghamshire County Council,1111/1001,Children and Young People,CYP,Third Party Payments,EGA,26/08/2022,05-15220,"1,016.07",Morags Childminding
Nottinghamshire County Council,1111/1001,Children and Young People,CYP,Third Party Payments,EGA,26/08/2022,05-15221,"6,815.54",Country Kids Day Nursery (Newark)
Nottinghamshire County Council,1111/1001,Children and Young People,CYP,Third Party Payments,EGA,26/08/2022,05-15222,"7,338.24",Country Kids Nursery (Rainworth)
Nottinghamshire County Council,1111/1001,Children and Young People,CYP,Third Party Payments,EGA,26/08/2022,05-15226,961.38,Jennytots Childcare
Nottinghamshire County Council,1111/1001,Children and Young People,CYP,Third Party Payments,EGA,26/08/2022,05-15228,"17,725.26",Crocodile Rock Day Care Ltd
Nottinghamshire County Council,1111/1001,Children and Young People,CYP,Third Party Payments,EGA,26/08/2022,05-15229,"5,162.54",Windmills Childcare
Nottinghamshire County Council,1111/1001,Children and Young People,CYP,Third Party Payments,EGA,26/08/2022,05-15231,"1,439.43",E Severs (Childminder)
Nottinghamshire County Council,1111/1001,Children and Young People,CYP,Third Party Payments,EGA,26/08/2022,05-15237,"4,818.67",Cherubs (Edwinstowe)
Nottinghamshire County Council,1111/1001,Children and Young People,CYP,Third Party Payments,EGA,26/08/2022,05-15239,564.48,B Whyman (Childminder)
Nottinghamshire County Council,1111/1001,Children and Young People,CYP,Third Party Payments,EGA,26/08/2022,05-15241,766.75,M Tyreman (Childminder)
Nottinghamshire County Council,1111/1001,Children and Young People,CYP,Third Party Payments,EGA,26/08/2022,05-15243,"2,146.79",M Dodgson (Chidminder)
Nottinghamshire County Council,1111/1001,Children and Young People,CYP,Third Party Payments,EGA,26/08/2022,05-15244,"7,126.56",Cherubs (Ruddington)
Nottinghamshire County Council,1111/1001,Children and Young People,CYP,Third Party Payments,EGA,26/08/2022,05-15245,"17,159.31",Hucknall Day Nursery Ltd
Nottinghamshire County Council,1111/1001,Children and Young People,CYP,Third Party Payments,EGA,26/08/2022,05-15246,"6,353.64",Lime Trees (Cropwell Bishop)
Nottinghamshire County Council,1111/1001,Children and Young People,CYP,Third Party Payments,EGA,26/08/2022,05-15248,"9,843.71",Lime Trees (Kirkby West)
Nottinghamshire County Council,1111/1001,Children and Young People,CYP,Third Party Payments,EGA,26/08/2022,05-15251,"3,466.26",Lime Trees (Netherfield)
Nottinghamshire County Council,1111/1001,Children and Young People,CYP,Third Party Payments,EGA,26/08/2022,05-15253,564.48,L Sturman (Childminder)
Nottinghamshire County Council,1111/1001,Children and Young People,CYP,Third Party Payments,EGA,26/08/2022,05-15254,"18,439.68",Little Lambs Day Nursery (Kirkby in
Nottinghamshire County Council,1111/1001,Children and Young People,CYP,Third Party Payments,EGA,26/08/2022,05-15255,"2,019.78",Kangaroo Teacher Led Childcare Ltd
Nottinghamshire County Council,1111/1001,Children and Young People,CYP,Third Party Payments,EGA,26/08/2022,05-15257,"5,410.72",Poppy & Jacks Ltd
Nottinghamshire County Council,1111/1001,Children and Young People,CYP,Third Party Payments,EGA,26/08/2022,05-15262,"8,317.26",Redwood Scholars Schools LtdT/A Alp
Nottinghamshire County Council,1111/1001,Children and Young People,CYP,Third Party Payments,EGA,26/08/2022,05-15264,"1,072.51",Ems Gems
Nottinghamshire County Council,1111/1001,Children and Young People,CYP,Third Party Payments,EGA,26/08/2022,05-15266,"10,019.52",Playroom Nursery
Nottinghamshire County Council,1111/1001,Children and Young People,CYP,Third Party Payments,EGA,26/08/2022,05-15269,691.49,Lou Lous Childminding
Nottinghamshire County Council,1111/1001,Children and Young People,CYP,Third Party Payments,EGA,26/08/2022,05-15271,"1,411.20",Little Gems Childminding
Nottinghamshire County Council,1111/1001,Children and Young People,CYP,Third Party Payments,EGA,26/08/2022,05-15273,"1,737.54",S Greger (Childminder)
Nottinghamshire County Council,1111/1001,Children and Young People,CYP,Third Party Payments,EGA,26/08/2022,05-15276,677.38,G Runniff (Little Gems Childminding
Nottinghamshire County Council,1111/1001,Children and Young People,CYP,Third Party Payments,EGA,26/08/2022,05-15283,"13,204.45",Cherubs (Mapperley)
Nottinghamshire County Council,1111/1001,Children and Young People,CYP,Third Party Payments,EGA,26/08/2022,05-15287,"3,757.32",Diggory�s Day Nursery Ltd
Nottinghamshire County Council,1111/1001,Children and Young People,CYP,Third Party Payments,EGA,26/08/2022,05-15289,"3,457.44",Little Elms Pre-school (Oxton)
Nottinghamshire County Council,1111/1001,Children and Young People,CYP,Third Party Payments,EGA,26/08/2022,05-15292,917.28,Little Sunshines TLC
Nottinghamshire County Council,1111/1001,Children and Young People,CYP,Third Party Payments,EGA,26/08/2022,05-15294,"1,802.46",Busy Bees (Edwalton)
Nottinghamshire County Council,1111/1001,Children and Young People,CYP,Third Party Payments,EGA,26/08/2022,05-15295,"1,270.08",Eden Adventures Childminding
Nottinghamshire County Council,1111/1001,Children and Young People,CYP,Third Party Payments,EGA,26/08/2022,05-15296,"5,009.76",Country Kids Day Nursery (Farndon)
Nottinghamshire County Council,1111/1001,Children and Young People,CYP,Third Party Payments,EGA,26/08/2022,05-15298,"9,705.01",Purley Green Ltd
Nottinghamshire County Council,1111/1001,Children and Young People,CYP,Third Party Payments,EGA,26/08/2022,05-15300,"12,956.58",Holly House Nursery (Doncaster) Ltd
Nottinghamshire County Council,1111/1001,Children and Young People,CYP,Third Party Payments,EGA,26/08/2022,05-15301,"1,505.28",Kate Turner (Childminder)
Nottinghamshire County Council,1111/1001,Children and Young People,CYP,Third Party Payments,EGA,26/08/2022,05-15302,635.04,R Townroe (Childminder)
Nottinghamshire County Council,1111/1001,Children and Young People,CYP,Third Party Payments,EGA,26/08/2022,05-15308,"8,489.74",Hollies Day Nursery Ltd (Mapperley)
Nottinghamshire County Council,1111/1001,Children and Young People,CYP,Third Party Payments,EGA,26/08/2022,05-15310,"11,545.38",Phoenix Park Nursery (Giltbrook) Lt
Nottinghamshire County Council,1111/1001,Children and Young People,CYP,Third Party Payments,EGA,30/08/2022,05-17121,964.35,Sunnydale Nursery Ltd
Nottinghamshire County Council,1111/1001,Children and Young People,CYP,Third Party Payments,EGA,30/08/2022,05-17122,"1,051.58",Lowdham & Epperstone Pre-School
Nottinghamshire County Council,1111/1001,Children and Young People,CYP,Third Party Payments,EGA,30/08/2022,05-17123,752.76,Noahs Ark Playgroup
Nottinghamshire County Council,1111/1001,Children and Young People,CYP,Third Party Payments,EGA,30/08/2022,05-17124,877.22,Cherubs Childrens Centre Pleasley
Nottinghamshire County Council,1111/1001,Children and Young People,CYP,Third Party Payments,EGA,30/08/2022,05-17125,"1,370.73",Children 1st @ Newark Centre
Nottinghamshire County Council,1111/1001,Children and Young People,CYP,Third Party Payments,EGA,30/08/2022,05-17126,855.90,Poppy & Jacks Ltd
Nottinghamshire County Council,1111/1001,Children and Young People,CYP,Third Party Payments,EGA,30/08/2022,05-17127,739.44,Country Kids Day Nursery (Kneesall)
Nottinghamshire County Council,1111/1001,Children and Young People,CYP,Third Party Payments,EGA,30/08/2022,05-17128,"1,184.60",Wolds Childcare Ltd
Nottinghamshire County Council,1111/1001,Children and Young People,CYP,Third Party Payments,EGA,30/08/2022,05-17129,"1,021.45",Longdale Nursery School (Cherubs)
Nottinghamshire County Council,1111/1001,Children and Young People,CYP,Third Party Payments,EGA,30/08/2022,05-17130,903.75,Wollaton Village Day Nurseries
Nottinghamshire County Council,1111/1001,Children and Young People,CYP,Third Party Payments,EGA,30/08/2022,05-17131,"1,467.95",Papermoon Day Nursery
Nottinghamshire County Council,1111/1001,Children and Young People,CYP,Third Party Payments,EGA,30/08/2022,05-17132,"2,921.58",Children 1st @ Breedon House (Plumt
